Department family,Entity,Date,Expense Type,Expense area,Supplier,Transaction number,AP Amount (�)
Department of Health,NHS Sheffield CCG,31/12/2016,C&M-PMS Baseline Adjustment,PRC DELEGATED CO-COMMISSIONING,ABBEY LANE SURGERY,15290633,"2,210.17 "
Department of Health,NHS Sheffield CCG,31/12/2016,C&M-PMS Contract Value,PRC DELEGATED CO-COMMISSIONING,ABBEY LANE SURGERY,15290633,"42,178.95 "
Department of Health,NHS Sheffield CCG,31/12/2016,C&M-PMS DES Extended Hours Access,PRC DELEGATED CO-COMMISSIONING,ABBEY LANE SURGERY,15290633,"1,471.55 "
Department of Health,NHS Sheffield CCG,31/12/2016,C&M-PMS Out of Hours Opt Outs,PRC DELEGATED CO-COMMISSIONING,ABBEY LANE SURGERY,15290633,(990.71)
Department of Health,NHS Sheffield CCG,31/12/2016,C&M-PMS PCO Seniority,PRC DELEGATED CO-COMMISSIONING,ABBEY LANE SURGERY,15290633,214.92 
Department of Health,NHS Sheffield CCG,31/12/2016,C&M-PMS Prem Notional Rent,PRC DELEGATED CO-COMMISSIONING,ABBEY LANE SURGERY,15290633,"2,122.92 "
Department of Health,NHS Sheffield CCG,31/12/2016,C&M-PMS Prem Rates,PRC DELEGATED CO-COMMISSIONING,ABBEY LANE SURGERY,15290633,653.40 
Department of Health,NHS Sheffield CCG,31/12/2016,C&M-PMS QOF Aspiration,PRC DELEGATED CO-COMMISSIONING,ABBEY LANE SURGERY,15290633,"2,925.38 "
Department of Health,NHS Sheffield CCG,31/12/2016,Cont Care-Physical Disab (65+),CHC ADULT FULLY FUNDED,ABBEYCARE NURSING,15449427,"46,450.00 "
Department of Health,NHS Sheffield CCG,31/12/2016,Cont Care-Physical Disab (65+),CHC ADULT FULLY FUNDED,ABBEYCARE NURSING,15449432,"46,965.00 "
Department of Health,NHS Sheffield CCG,31/12/2016,Cont Care-Physical Disab (<65),CHC ADULT FULLY FUNDED,ALPINE HEALTH CARE,15341578,"29,450.70 "
Department of Health,NHS Sheffield CCG,31/12/2016,Clinical&Medical-Commercial Sector,PATIENT TRANSPORT,ARRIVA TRANSPORT SOLUTIONS,15234104,"90,712.40 "
Department of Health,NHS Sheffield CCG,31/12/2016,C&M-PMS Contract Value,PRC DELEGATED CO-COMMISSIONING,AVENUE MEDICAL CENTRE SHEFFIELD,15290630,"(49,960.28)"
Department of Health,NHS Sheffield CCG,31/12/2016,C&M-PMS GP Statutory Levy,PRC DELEGATED CO-COMMISSIONING,AVENUE MEDICAL CENTRE SHEFFIELD,15290630,(225.42)
Department of Health,NHS Sheffield CCG,31/12/2016,C&M-PMS Out of Hours Opt Outs,PRC DELEGATED CO-COMMISSIONING,AVENUE MEDICAL CENTRE SHEFFIELD,15290630,(37.44)
Department of Health,NHS Sheffield CCG,31/12/2016,C&M-PMS Voluntary Levy,PRC DELEGATED CO-COMMISSIONING,AVENUE MEDICAL CENTRE SHEFFIELD,15290630,(37.57)
Department of Health,NHS Sheffield CCG,31/12/2016,C&M-PMS Contract Value,PRC DELEGATED CO-COMMISSIONING,AVENUE MEDICAL CENTRE SHEFFIELD,15290631,"100,774.10 "
Department of Health,NHS Sheffield CCG,31/12/2016,C&M-PMS DES Extended Hours Access,PRC DELEGATED CO-COMMISSIONING,AVENUE MEDICAL CENTRE SHEFFIELD,15290631,"3,648.95 "
Department of Health,NHS Sheffield CCG,31/12/2016,C&M-PMS DES UNPLANNED ADMISSIONS,PRC DELEGATED CO-COMMISSIONING,AVENUE MEDICAL CENTRE SHEFFIELD,15290631,"5,918.22 "
Department of Health,NHS Sheffield CCG,31/12/2016,C&M-PMS Out of Hours Opt Outs,PRC DELEGATED CO-COMMISSIONING,AVENUE MEDICAL CENTRE SHEFFIELD,15290631,"(2,488.27)"
Department of Health,NHS Sheffield CCG,31/12/2016,C&M-PMS Prem Notional Rent,PRC DELEGATED CO-COMMISSIONING,AVENUE MEDICAL CENTRE SHEFFIELD,15290631,"5,546.67 "
Department of Health,NHS Sheffield CCG,31/12/2016,C&M-PMS Prem Rates,PRC DELEGATED CO-COMMISSIONING,AVENUE MEDICAL CENTRE SHEFFIELD,15290631,"2,360.75 "
Department of Health,NHS Sheffield CCG,31/12/2016,C&M-PMS QOF Aspiration,PRC DELEGATED CO-COMMISSIONING,AVENUE MEDICAL CENTRE SHEFFIELD,15290631,"5,869.92 "
Department of Health,NHS Sheffield CCG,31/12/2016,Hcare Srv Rec Fdtn Trust-Contract Baseline,ACUTE COMMISSIONING,BARNSLEY HOSPITAL NHS FOUNDATION TRUST,15234244,"72,863.00 "
Department of Health,NHS Sheffield CCG,31/12/2016,C&M-PMS Baseline Adjustment,PRC DELEGATED CO-COMMISSIONING,BARNSLEY ROAD SURGERY,15290635,740.67 
Department of Health,NHS Sheffield CCG,31/12/2016,C&M-PMS Contract Value,PRC DELEGATED CO-COMMISSIONING,BARNSLEY ROAD SURGERY,15290635,"41,260.78 "
Department of Health,NHS Sheffield CCG,31/12/2016,C&M-PMS DES Extended Hours Access,PRC DELEGATED CO-COMMISSIONING,BARNSLEY ROAD SURGERY,15290635,"1,290.58 "
Department of Health,NHS Sheffield CCG,31/12/2016,C&M-PMS PCO Seniority,PRC DELEGATED CO-COMMISSIONING,BARNSLEY ROAD SURGERY,15290635,610.58 
Department of Health,NHS Sheffield CCG,31/12/2016,C&M-PMS Prem Notional Rent,PRC DELEGATED CO-COMMISSIONING,BARNSLEY ROAD SURGERY,15290635,"2,652.17 "
Department of Health,NHS Sheffield CCG,31/12/2016,C&M-PMS Prem Rates,PRC DELEGATED CO-COMMISSIONING,BARNSLEY ROAD SURGERY,15290635,738.10 
Department of Health,NHS Sheffield CCG,31/12/2016,C&M-PMS QOF Aspiration,PRC DELEGATED CO-COMMISSIONING,BARNSLEY ROAD SURGERY,15290635,"2,255.94 "
Department of Health,NHS Sheffield CCG,31/12/2016,C&M-GMS Cost of Drugs -Prescribing,LOCAL ENHANCED SERVICES,BASLOW ROAD & SHOREHAM STREET SURGERIES,15474495,"8,796.67 "
Department of Health,NHS Sheffield CCG,31/12/2016,C&M-GMS DES Extended Hours Access,PRC DELEGATED CO-COMMISSIONING,BASLOW ROAD & SHOREHAM STREET SURGERIES,15474495,"5,824.93 "
Department of Health,NHS Sheffield CCG,31/12/2016,C&M-GMS Global Sum,PRC DELEGATED CO-COMMISSIONING,BASLOW ROAD & SHOREHAM STREET SURGERIES,15474495,"87,825.33 "
Department of Health,NHS Sheffield CCG,31/12/2016,C&M-GMS MPIG Correction Factor,PRC DELEGATED CO-COMMISSIONING,BASLOW ROAD & SHOREHAM STREET SURGERIES,15474495,584.85 
Department of Health,NHS Sheffield CCG,31/12/2016,C&M-GMS PCO Seniority,PRC DELEGATED CO-COMMISSIONING,BASLOW ROAD & SHOREHAM STREET SURGERIES,15474495,"3,785.04 "
Department of Health,NHS Sheffield CCG,31/12/2016,C&M-GMS Prem Notional Rent,PRC DELEGATED CO-COMMISSIONING,BASLOW ROAD & SHOREHAM STREET SURGERIES,15474495,"8,444.59 "
Department of Health,NHS Sheffield CCG,31/12/2016,C&M-GMS Prem Rates,PRC DELEGATED CO-COMMISSIONING,BASLOW ROAD & SHOREHAM STREET SURGERIES,15474495,"1,877.48 "
Department of Health,NHS Sheffield CCG,31/12/2016,C&M-GMS Prof Fees Prescribing,PRC DELEGATED CO-COMMISSIONING,BASLOW ROAD & SHOREHAM STREET SURGERIES,15474495,"2,623.78 "
Department of Health,NHS Sheffield CCG,31/12/2016,C&M-GMS QOF Aspiration,PRC DELEGATED CO-COMMISSIONING,BASLOW ROAD & SHOREHAM STREET SURGERIES,15474495,"9,331.34 "
Department of Health,NHS Sheffield CCG,31/12/2016,Cont Care-Physical Disab (65+),CHC ADULT FULLY FUNDED,BC SHEFFIELD LTD,15449429,"33,370.03 "
Department of Health,NHS Sheffield CCG,31/12/2016,Clinical&Medical-Othe Public Sector,NCAS/OATS,BETSI CADWALADR UNIVERSITY LHB,15203696,"30,882.00 "
Department of Health,NHS Sheffield CCG,31/12/2016,C&M-PMS Contract Value,PRC DELEGATED CO-COMMISSIONING,BIRLEY HEALTH CENTRE,15290636,"(57,303.08)"
Department of Health,NHS Sheffield CCG,31/12/2016,C&M-PMS GP Statutory Levy,PRC DELEGATED CO-COMMISSIONING,BIRLEY HEALTH CENTRE,15290636,(253.44)
Department of Health,NHS Sheffield CCG,31/12/2016,C&M-PMS Out of Hours Opt Outs,PRC DELEGATED CO-COMMISSIONING,BIRLEY HEALTH CENTRE,15290636,(115.91)
Department of Health,NHS Sheffield CCG,31/12/2016,C&M-PMS Voluntary Levy,PRC DELEGATED CO-COMMISSIONING,BIRLEY HEALTH CENTRE,15290636,(42.24)
Department of Health,NHS Sheffield CCG,31/12/2016,ME - PMS TPS Added Years Adj EEs,PRC DELEGATED CO-COMMISSIONING,BIRLEY HEALTH CENTRE,15290636,(434.78)
Department of Health,NHS Sheffield CCG,31/12/2016,C&M-PMS Baseline Adjustment,PRC DELEGATED CO-COMMISSIONING,BIRLEY HEALTH CENTRE,15290637,"5,306.08 "
Department of Health,NHS Sheffield CCG,31/12/2016,C&M-PMS Contract Value,PRC DELEGATED CO-COMMISSIONING,BIRLEY HEALTH CENTRE,15290637,"115,949.01 "
Department of Health,NHS Sheffield CCG,31/12/2016,C&M-PMS DES Extended Hours Access,PRC DELEGATED CO-COMMISSIONING,BIRLEY HEALTH CENTRE,15290637,"3,994.75 "
Department of Health,NHS Sheffield CCG,31/12/2016,C&M-PMS Out of Hours Opt Outs,PRC DELEGATED CO-COMMISSIONING,BIRLEY HEALTH CENTRE,15290637,"(2,764.83)"
Department of Health,NHS Sheffield CCG,31/12/2016,C&M-PMS PCO Seniority,PRC DELEGATED CO-COMMISSIONING,BIRLEY HEALTH CENTRE,15290637,"2,098.46 "
Department of Health,NHS Sheffield CCG,31/12/2016,C&M-PMS Prem Notional Rent,PRC DELEGATED CO-COMMISSIONING,BIRLEY HEALTH CENTRE,15290637,"7,310.42 "
Department of Health,NHS Sheffield CCG,31/12/2016,C&M-PMS Prem Rates,PRC DELEGATED CO-COMMISSIONING,BIRLEY HEALTH CENTRE,15290637,"1,180.37 "
Department of Health,NHS Sheffield CCG,31/12/2016,C&M-PMS QOF Aspiration,PRC DELEGATED CO-COMMISSIONING,BIRLEY HEALTH CENTRE,15290637,"8,072.81 "
Department of Health,NHS Sheffield CCG,31/12/2016,Clinical&Medical-Independent Sector,ACUTE COMMISSIONING,BMI HEALTHCARE COLLECTIONS,15234199,"66,833.36 "
Department of Health,NHS Sheffield CCG,31/12/2016,C&M-GMS Cost of Drugs -Prescribing,LOCAL ENHANCED SERVICES,BROOMHILL SURGERY,15474502,"13,858.24 "
Department of Health,NHS Sheffield CCG,31/12/2016,C&M-GMS DES Extended Hours Access,PRC DELEGATED CO-COMMISSIONING,BROOMHILL SURGERY,15474502,"4,450.28 "
Department of Health,NHS Sheffield CCG,31/12/2016,C&M-GMS Global Sum,PRC DELEGATED CO-COMMISSIONING,BROOMHILL SURGERY,15474502,"56,552.84 "
Department of Health,NHS Sheffield CCG,31/12/2016,C&M-GMS MPIG Correction Factor,PRC DELEGATED CO-COMMISSIONING,BROOMHILL SURGERY,15474502,"1,004.01 "
Department of Health,NHS Sheffield CCG,31/12/2016,C&M-GMS PCO Seniority,PRC DELEGATED CO-COMMISSIONING,BROOMHILL SURGERY,15474502,"5,219.41 "
Department of Health,NHS Sheffield CCG,31/12/2016,C&M-GMS Prem Cost Rent,PRC DELEGATED CO-COMMISSIONING,BROOMHILL SURGERY,15474502,"3,380.00 "
Department of Health,NHS Sheffield CCG,31/12/2016,C&M-GMS Prem Notional Rent,PRC DELEGATED CO-COMMISSIONING,BROOMHILL SURGERY,15474502,"2,541.67 "
Department of Health,NHS Sheffield CCG,31/12/2016,C&M-GMS Prem Rates,PRC DELEGATED CO-COMMISSIONING,BROOMHILL SURGERY,15474502,"1,950.73 "
Department of Health,NHS Sheffield CCG,31/12/2016,C&M-GMS Prof Fees Prescribing,PRC DELEGATED CO-COMMISSIONING,BROOMHILL SURGERY,15474502,"3,864.02 "
Department of Health,NHS Sheffield CCG,31/12/2016,C&M-GMS QOF Aspiration,PRC DELEGATED CO-COMMISSIONING,BROOMHILL SURGERY,15474502,"5,942.41 "
Department of Health,NHS Sheffield CCG,31/12/2016,C&M-GMS Cost of Drugs -Prescribing,LOCAL ENHANCED SERVICES,BUCHANAN ROAD SURGERY,15474498,258.37 
Department of Health,NHS Sheffield CCG,31/12/2016,C&M-GMS Global Sum,PRC DELEGATED CO-COMMISSIONING,BUCHANAN ROAD SURGERY,15474498,"33,198.44 "
Department of Health,NHS Sheffield CCG,31/12/2016,C&M-GMS MPIG Correction Factor,PRC DELEGATED CO-COMMISSIONING,BUCHANAN ROAD SURGERY,15474498,"2,621.02 "
Department of Health,NHS Sheffield CCG,31/12/2016,C&M-GMS PCO Seniority,PRC DELEGATED CO-COMMISSIONING,BUCHANAN ROAD SURGERY,15474498,"1,079.72 "
Department of Health,NHS Sheffield CCG,31/12/2016,C&M-GMS Prem Notional Rent,PRC DELEGATED CO-COMMISSIONING,BUCHANAN ROAD SURGERY,15474498,"2,595.83 "
Department of Health,NHS Sheffield CCG,31/12/2016,C&M-GMS Prem Rates,PRC DELEGATED CO-COMMISSIONING,BUCHANAN ROAD SURGERY,15474498,944.30 
Department of Health,NHS Sheffield CCG,31/12/2016,C&M-GMS Prof Fees Prescribing,PRC DELEGATED CO-COMMISSIONING,BUCHANAN ROAD SURGERY,15474498,72.16 
Department of Health,NHS Sheffield CCG,31/12/2016,C&M-GMS QOF Aspiration,PRC DELEGATED CO-COMMISSIONING,BUCHANAN ROAD SURGERY,15474498,"4,134.47 "
Department of Health,NHS Sheffield CCG,31/12/2016,C&M-PMS Contract Value,PRC DELEGATED CO-COMMISSIONING,BURNCROSS SURGERY,15290638,"(110,604.48)"
Department of Health,NHS Sheffield CCG,31/12/2016,C&M-PMS GP Statutory Levy,PRC DELEGATED CO-COMMISSIONING,BURNCROSS SURGERY,15290638,(471.63)
Department of Health,NHS Sheffield CCG,31/12/2016,C&M-PMS Voluntary Levy,PRC DELEGATED CO-COMMISSIONING,BURNCROSS SURGERY,15290638,(78.61)
Department of Health,NHS Sheffield CCG,31/12/2016,C&M-PMS Baseline Adjustment,PRC DELEGATED CO-COMMISSIONING,BURNCROSS SURGERY,15309241,"3,296.83 "
Department of Health,NHS Sheffield CCG,31/12/2016,C&M-PMS Contract Value,PRC DELEGATED CO-COMMISSIONING,BURNCROSS SURGERY,15309241,"223,777.70 "
Department of Health,NHS Sheffield CCG,31/12/2016,C&M-PMS DES Extended Hours Access,PRC DELEGATED CO-COMMISSIONING,BURNCROSS SURGERY,15309241,"7,472.70 "
Department of Health,NHS Sheffield CCG,31/12/2016,C&M-PMS DES Learn Dsblty Hlth Chk,PRC DELEGATED CO-COMMISSIONING,BURNCROSS SURGERY,15309241,"1,392.00 "
Department of Health,NHS Sheffield CCG,31/12/2016,C&M-PMS PCO Locum Adop/Pat/Mat,PRC DELEGATED CO-COMMISSIONING,BURNCROSS SURGERY,15309241,"21,941.90 "
Department of Health,NHS Sheffield CCG,31/12/2016,C&M-PMS PCO Seniority,PRC DELEGATED CO-COMMISSIONING,BURNCROSS SURGERY,15309241,"1,317.04 "
Department of Health,NHS Sheffield CCG,31/12/2016,C&M-PMS Prem Notional Rent,PRC DELEGATED CO-COMMISSIONING,BURNCROSS SURGERY,15309241,"14,058.33 "
Department of Health,NHS Sheffield CCG,31/12/2016,C&M-PMS Prem Rates,PRC DELEGATED CO-COMMISSIONING,BURNCROSS SURGERY,15309241,"2,124.67 "
Department of Health,NHS Sheffield CCG,31/12/2016,C&M-PMS QOF Aspiration,PRC DELEGATED CO-COMMISSIONING,BURNCROSS SURGERY,15309241,"14,166.16 "
Department of Health,NHS Sheffield CCG,31/12/2016,C&M-PMS Contract Value,PRC DELEGATED CO-COMMISSIONING,BURNGREAVE SURGERY,15290639,"(48,407.91)"
Department of Health,NHS Sheffield CCG,31/12/2016,C&M-PMS GP Statutory Levy,PRC DELEGATED CO-COMMISSIONING,BURNGREAVE SURGERY,15290639,(196.65)
Department of Health,NHS Sheffield CCG,31/12/2016,C&M-PMS Out of Hours Opt Outs,PRC DELEGATED CO-COMMISSIONING,BURNGREAVE SURGERY,15290639,(151.68)
Department of Health,NHS Sheffield CCG,31/12/2016,C&M-PMS Voluntary Levy,PRC DELEGATED CO-COMMISSIONING,BURNGREAVE SURGERY,15290639,(32.78)
Department of Health,NHS Sheffield CCG,31/12/2016,C&M-PMS Baseline Adjustment,PRC DELEGATED CO-COMMISSIONING,BURNGREAVE SURGERY,15290640,"2,706.25 "
Department of Health,NHS Sheffield CCG,31/12/2016,C&M-PMS Contract Value,PRC DELEGATED CO-COMMISSIONING,BURNGREAVE SURGERY,15290640,"100,432.16 "
Department of Health,NHS Sheffield CCG,31/12/2016,C&M-PMS DES Extended Hours Access,PRC DELEGATED CO-COMMISSIONING,BURNGREAVE SURGERY,15290640,"3,072.78 "
Department of Health,NHS Sheffield CCG,31/12/2016,C&M-PMS DES UNPLANNED ADMISSIONS,PRC DELEGATED CO-COMMISSIONING,BURNGREAVE SURGERY,15290640,"4,981.90 "
Department of Health,NHS Sheffield CCG,31/12/2016,C&M-PMS Out of Hours Opt Outs,PRC DELEGATED CO-COMMISSIONING,BURNGREAVE SURGERY,15290640,"(2,394.78)"
Department of Health,NHS Sheffield CCG,31/12/2016,C&M-PMS PCO Seniority,PRC DELEGATED CO-COMMISSIONING,BURNGREAVE SURGERY,15290640,701.71 
Department of Health,NHS Sheffield CCG,31/12/2016,C&M-PMS Prem Notional Rent,PRC DELEGATED CO-COMMISSIONING,BURNGREAVE SURGERY,15290640,"5,916.67 "
Department of Health,NHS Sheffield CCG,31/12/2016,C&M-PMS Prem Rates,PRC DELEGATED CO-COMMISSIONING,BURNGREAVE SURGERY,15290640,"2,217.07 "
Department of Health,NHS Sheffield CCG,31/12/2016,C&M-PMS QOF Aspiration,PRC DELEGATED CO-COMMISSIONING,BURNGREAVE SURGERY,15290640,"4,652.74 "
Department of Health,NHS Sheffield CCG,31/12/2016,C&M-GMS Cost of Drugs -Prescribing,LOCAL ENHANCED SERVICES,CARTERKNOWLE & DORE MEDICAL PRACTICE,15474507,"19,591.27 "
Department of Health,NHS Sheffield CCG,31/12/2016,C&M-GMS DES Extended Hours Access,PRC DELEGATED CO-COMMISSIONING,CARTERKNOWLE & DORE MEDICAL PRACTICE,15474507,"5,904.25 "
Department of Health,NHS Sheffield CCG,31/12/2016,C&M-GMS DES Learn Dsblty Hlth Chk,PRC DELEGATED CO-COMMISSIONING,CARTERKNOWLE & DORE MEDICAL PRACTICE,15474507,696.00 
Department of Health,NHS Sheffield CCG,31/12/2016,C&M-GMS Global Sum,PRC DELEGATED CO-COMMISSIONING,CARTERKNOWLE & DORE MEDICAL PRACTICE,15474507,"75,936.74 "
Department of Health,NHS Sheffield CCG,31/12/2016,C&M-GMS MPIG Correction Factor,PRC DELEGATED CO-COMMISSIONING,CARTERKNOWLE & DORE MEDICAL PRACTICE,15474507,"2,989.17 "
Department of Health,NHS Sheffield CCG,31/12/2016,C&M-GMS PCO Seniority,PRC DELEGATED CO-COMMISSIONING,CARTERKNOWLE & DORE MEDICAL PRACTICE,15474507,"3,667.85 "
Department of Health,NHS Sheffield CCG,31/12/2016,C&M-GMS Prem Notional Rent,PRC DELEGATED CO-COMMISSIONING,CARTERKNOWLE & DORE MEDICAL PRACTICE,15474507,"7,538.34 "
Department of Health,NHS Sheffield CCG,31/12/2016,C&M-GMS Prof Fees Prescribing,PRC DELEGATED CO-COMMISSIONING,CARTERKNOWLE & DORE MEDICAL PRACTICE,15474507,"5,873.15 "
Department of Health,NHS Sheffield CCG,31/12/2016,C&M-GMS QOF Aspiration,PRC DELEGATED CO-COMMISSIONING,CARTERKNOWLE & DORE MEDICAL PRACTICE,15474507,"8,761.41 "
Department of Health,NHS Sheffield CCG,31/12/2016,C&M-GMS DES Extended Hours Access,PRC DELEGATED CO-COMMISSIONING,CHARNOCK HEALTH PRIMARY CARE CENTRE,15474504,"2,468.10 "
Department of Health,NHS Sheffield CCG,31/12/2016,C&M-GMS Global Sum,PRC DELEGATED CO-COMMISSIONING,CHARNOCK HEALTH PRIMARY CARE CENTRE,15474504,"35,507.00 "
Department of Health,NHS Sheffield CCG,31/12/2016,C&M-GMS MPIG Correction Factor,PRC DELEGATED CO-COMMISSIONING,CHARNOCK HEALTH PRIMARY CARE CENTRE,15474504,826.50 
Department of Health,NHS Sheffield CCG,31/12/2016,C&M-GMS PCO Seniority,PRC DELEGATED CO-COMMISSIONING,CHARNOCK HEALTH PRIMARY CARE CENTRE,15474504,"2,253.81 "
Department of Health,NHS Sheffield CCG,31/12/2016,C&M-GMS Prem Notional Rent,PRC DELEGATED CO-COMMISSIONING,CHARNOCK HEALTH PRIMARY CARE CENTRE,15474504,305.00 
Department of Health,NHS Sheffield CCG,31/12/2016,C&M-GMS QOF Aspiration,PRC DELEGATED CO-COMMISSIONING,CHARNOCK HEALTH PRIMARY CARE CENTRE,15474504,"4,240.44 "
Department of Health,NHS Sheffield CCG,31/12/2016,Hcare Srv Rec Fdtn Trust-Contract Baseline,ACUTE COMMISSIONING,CHESTERFIELD ROYAL HOSPITAL NHS FOUNDATION TRUST,15234292,"84,668.10 "
Department of Health,NHS Sheffield CCG,31/12/2016,Hcare Srv Rec Fdtn Trust-Contract Baseline,ACUTE COMMISSIONING,CHESTERFIELD ROYAL HOSPITAL NHS FOUNDATION TRUST,15384272,"232,297.00 "
Department of Health,NHS Sheffield CCG,31/12/2016,Clinical&Medical-Independent Sector,ACUTE COMMISSIONING,CLAREMONT HOSPITAL,15384258,"85,569.00 "
Department of Health,NHS Sheffield CCG,31/12/2016,Service Charge,RECHARGES NHS PROPERTY SERVICES LTD,COMMUNITY HEALTH PARTNERSHIPS LTD,15234047,"78,797.63 "
Department of Health,NHS Sheffield CCG,31/12/2016,Voids and Subsidies,PRC DELEGATED CO-COMMISSIONING,COMMUNITY HEALTH PARTNERSHIPS LTD,15234047,"12,559.77 "
Department of Health,NHS Sheffield CCG,31/12/2016,Service Charge,RECHARGES NHS PROPERTY SERVICES LTD,COMMUNITY HEALTH PARTNERSHIPS LTD,15384337,"78,296.78 "
Department of Health,NHS Sheffield CCG,31/12/2016,Voids and Subsidies,PRC DELEGATED CO-COMMISSIONING,COMMUNITY HEALTH PARTNERSHIPS LTD,15384337,"12,532.54 "
Department of Health,NHS Sheffield CCG,31/12/2016,C&M-GMS Cost of Drugs -Prescribing,LOCAL ENHANCED SERVICES,CROOKES PRACTICE,15474511,"3,595.80 "
Department of Health,NHS Sheffield CCG,31/12/2016,C&M-GMS DES Extended Hours Access,PRC DELEGATED CO-COMMISSIONING,CROOKES PRACTICE,15474511,"3,627.10 "
Department of Health,NHS Sheffield CCG,31/12/2016,C&M-GMS DES UNPLANNED ADMISSIONS,PRC DELEGATED CO-COMMISSIONING,CROOKES PRACTICE,15474511,"5,882.03 "
Department of Health,NHS Sheffield CCG,31/12/2016,C&M-GMS Global Sum,PRC DELEGATED CO-COMMISSIONING,CROOKES PRACTICE,15474511,"43,283.09 "
Department of Health,NHS Sheffield CCG,31/12/2016,C&M-GMS MPIG Correction Factor,PRC DELEGATED CO-COMMISSIONING,CROOKES PRACTICE,15474511,"3,091.85 "
Department of Health,NHS Sheffield CCG,31/12/2016,C&M-GMS PCO Seniority,PRC DELEGATED CO-COMMISSIONING,CROOKES PRACTICE,15474511,"2,238.29 "
Department of Health,NHS Sheffield CCG,31/12/2016,C&M-GMS Prem Notional Rent,PRC DELEGATED CO-COMMISSIONING,CROOKES PRACTICE,15474511,"3,752.42 "
Department of Health,NHS Sheffield CCG,31/12/2016,C&M-GMS Prem Rates,PRC DELEGATED CO-COMMISSIONING,CROOKES PRACTICE,15474511,"1,615.25 "
Department of Health,NHS Sheffield CCG,31/12/2016,C&M-GMS Prem Water Rates,PRC DELEGATED CO-COMMISSIONING,CROOKES PRACTICE,15474511,207.77 
Department of Health,NHS Sheffield CCG,31/12/2016,C&M-GMS Prof Fees Prescribing,PRC DELEGATED CO-COMMISSIONING,CROOKES PRACTICE,15474511,"1,103.90 "
Department of Health,NHS Sheffield CCG,31/12/2016,C&M-GMS QOF Aspiration,PRC DELEGATED CO-COMMISSIONING,CROOKES PRACTICE,15474511,"4,263.95 "
Department of Health,NHS Sheffield CCG,31/12/2016,C&M-GMS LES Primary Care Offer,LOCAL ENHANCED SERVICES,DARNALL WELL BEING,15444373,"25,000.00 "
Department of Health,NHS Sheffield CCG,31/12/2016,C&M-PMS Contract Value,PRC DELEGATED CO-COMMISSIONING,DEEPCAR MEDICAL CENTRE,15290643,"(33,509.60)"
Department of Health,NHS Sheffield CCG,31/12/2016,C&M-PMS GP Statutory Levy,PRC DELEGATED CO-COMMISSIONING,DEEPCAR MEDICAL CENTRE,15290643,(153.60)
Department of Health,NHS Sheffield CCG,31/12/2016,C&M-PMS Out of Hours Opt Outs,PRC DELEGATED CO-COMMISSIONING,DEEPCAR MEDICAL CENTRE,15290643,(69.31)
Department of Health,NHS Sheffield CCG,31/12/2016,C&M-PMS Voluntary Levy,PRC DELEGATED CO-COMMISSIONING,DEEPCAR MEDICAL CENTRE,15290643,(25.60)
Department of Health,NHS Sheffield CCG,31/12/2016,C&M-PMS Baseline Adjustment,PRC DELEGATED CO-COMMISSIONING,DEEPCAR MEDICAL CENTRE,15290644,612.25 
Department of Health,NHS Sheffield CCG,31/12/2016,C&M-PMS Contract Value,PRC DELEGATED CO-COMMISSIONING,DEEPCAR MEDICAL CENTRE,15290644,"70,465.72 "
Department of Health,NHS Sheffield CCG,31/12/2016,C&M-PMS DES Extended Hours Access,PRC DELEGATED CO-COMMISSIONING,DEEPCAR MEDICAL CENTRE,15290644,"2,412.05 "
Department of Health,NHS Sheffield CCG,31/12/2016,C&M-PMS Out of Hours Opt Outs,PRC DELEGATED CO-COMMISSIONING,DEEPCAR MEDICAL CENTRE,15290644,"(1,742.78)"
Department of Health,NHS Sheffield CCG,31/12/2016,C&M-PMS PCO Seniority,PRC DELEGATED CO-COMMISSIONING,DEEPCAR MEDICAL CENTRE,15290644,537.60 
Department of Health,NHS Sheffield CCG,31/12/2016,C&M-PMS Prem Healthcentre Rent,PRC DELEGATED CO-COMMISSIONING,DEEPCAR MEDICAL CENTRE,15290644,"26,323.25 "
Department of Health,NHS Sheffield CCG,31/12/2016,C&M-PMS QOF Aspiration,PRC DELEGATED CO-COMMISSIONING,DEEPCAR MEDICAL CENTRE,15290644,"4,038.41 "
Department of Health,NHS Sheffield CCG,31/12/2016,C&M-GMS Cost of Drugs -Prescribing,LOCAL ENHANCED SERVICES,DEVONSHIRE GREEN MEDICAL CENTRE,15474516,"4,242.49 "
Department of Health,NHS Sheffield CCG,31/12/2016,C&M-GMS Global Sum,PRC DELEGATED CO-COMMISSIONING,DEVONSHIRE GREEN MEDICAL CENTRE,15474516,"41,932.75 "
Department of Health,NHS Sheffield CCG,31/12/2016,C&M-GMS MPIG Correction Factor,PRC DELEGATED CO-COMMISSIONING,DEVONSHIRE GREEN MEDICAL CENTRE,15474516,"6,462.40 "
Department of Health,NHS Sheffield CCG,31/12/2016,C&M-GMS PCO Seniority,PRC DELEGATED CO-COMMISSIONING,DEVONSHIRE GREEN MEDICAL CENTRE,15474516,"2,924.12 "
Department of Health,NHS Sheffield CCG,31/12/2016,C&M-GMS Prem Notional Rent,PRC DELEGATED CO-COMMISSIONING,DEVONSHIRE GREEN MEDICAL CENTRE,15474516,"5,987.50 "
Department of Health,NHS Sheffield CCG,31/12/2016,C&M-GMS Prem Rates,PRC DELEGATED CO-COMMISSIONING,DEVONSHIRE GREEN MEDICAL CENTRE,15474516,363.00 
Department of Health,NHS Sheffield CCG,31/12/2016,C&M-GMS Prof Fees Prescribing,PRC DELEGATED CO-COMMISSIONING,DEVONSHIRE GREEN MEDICAL CENTRE,15474516,"1,324.02 "
Department of Health,NHS Sheffield CCG,31/12/2016,C&M-GMS QOF Aspiration,PRC DELEGATED CO-COMMISSIONING,DEVONSHIRE GREEN MEDICAL CENTRE,15474516,"4,722.03 "
Department of Health,NHS Sheffield CCG,31/12/2016,Hcare Srv Rec Fdtn Trust-Contract Baseline,ACUTE COMMISSIONING,DONCASTER AND BASSETLAW HOSPITALS NHS FOUNDATION TRUST,15234088,"28,477.00 "
Department of Health,NHS Sheffield CCG,31/12/2016,C&M-PMS Contract Value,PRC DELEGATED CO-COMMISSIONING,DOVERCOURT SURGERY,15290645,"(63,529.08)"
Department of Health,NHS Sheffield CCG,31/12/2016,C&M-PMS GP Statutory Levy,PRC DELEGATED CO-COMMISSIONING,DOVERCOURT SURGERY,15290645,(243.51)
Department of Health,NHS Sheffield CCG,31/12/2016,C&M-PMS Out of Hours Opt Outs,PRC DELEGATED CO-COMMISSIONING,DOVERCOURT SURGERY,15290645,(236.74)
Department of Health,NHS Sheffield CCG,31/12/2016,C&M-PMS Voluntary Levy,PRC DELEGATED CO-COMMISSIONING,DOVERCOURT SURGERY,15290645,(40.59)
Department of Health,NHS Sheffield CCG,31/12/2016,C&M-PMS Baseline Adjustment,PRC DELEGATED CO-COMMISSIONING,DOVERCOURT SURGERY,15290646,"7,232.08 "
Department of Health,NHS Sheffield CCG,31/12/2016,C&M-PMS Contract Value,PRC DELEGATED CO-COMMISSIONING,DOVERCOURT SURGERY,15290646,"129,181.62 "
Department of Health,NHS Sheffield CCG,31/12/2016,C&M-PMS DES Extended Hours Access,PRC DELEGATED CO-COMMISSIONING,DOVERCOURT SURGERY,15290646,"3,794.78 "
Department of Health,NHS Sheffield CCG,31/12/2016,C&M-PMS DES UNPLANNED ADMISSIONS,PRC DELEGATED CO-COMMISSIONING,DOVERCOURT SURGERY,15290646,"3,850.00 "
Department of Health,NHS Sheffield CCG,31/12/2016,C&M-PMS Out of Hours Opt Outs,PRC DELEGATED CO-COMMISSIONING,DOVERCOURT SURGERY,15290646,"(2,994.08)"
Department of Health,NHS Sheffield CCG,31/12/2016,C&M-PMS PCO Locum Adop/Pat/Mat,PRC DELEGATED CO-COMMISSIONING,DOVERCOURT SURGERY,15290646,"4,624.48 "
Department of Health,NHS Sheffield CCG,31/12/2016,C&M-PMS PCO Seniority,PRC DELEGATED CO-COMMISSIONING,DOVERCOURT SURGERY,15290646,701.71 
Department of Health,NHS Sheffield CCG,31/12/2016,C&M-PMS Prem Actual Rent,PRC DELEGATED CO-COMMISSIONING,DOVERCOURT SURGERY,15290646,"12,400.00 "
Department of Health,NHS Sheffield CCG,31/12/2016,C&M-PMS Prem Notional Rent,PRC DELEGATED CO-COMMISSIONING,DOVERCOURT SURGERY,15290646,"1,708.34 "
Department of Health,NHS Sheffield CCG,31/12/2016,C&M-PMS QOF Aspiration,PRC DELEGATED CO-COMMISSIONING,DOVERCOURT SURGERY,15290646,"7,095.60 "
Department of Health,NHS Sheffield CCG,31/12/2016,C&M-PMS Contract Value,PRC DELEGATED CO-COMMISSIONING,DR MEHROTRA & PARTNER,15290647,"(26,258.92)"
Department of Health,NHS Sheffield CCG,31/12/2016,C&M-PMS GP Statutory Levy,PRC DELEGATED CO-COMMISSIONING,DR MEHROTRA & PARTNER,15290647,(102.57)
Department of Health,NHS Sheffield CCG,31/12/2016,C&M-PMS Voluntary Levy,PRC DELEGATED CO-COMMISSIONING,DR MEHROTRA & PARTNER,15290647,(17.10)
Department of Health,NHS Sheffield CCG,31/12/2016,C&M-PMS Baseline Adjustment,PRC DELEGATED CO-COMMISSIONING,DR MEHROTRA & PARTNER,15290648,"1,771.75 "
Department of Health,NHS Sheffield CCG,31/12/2016,C&M-PMS Contract Value,PRC DELEGATED CO-COMMISSIONING,DR MEHROTRA & PARTNER,15290648,"52,513.78 "
Department of Health,NHS Sheffield CCG,31/12/2016,C&M-PMS DES Extended Hours Access,PRC DELEGATED CO-COMMISSIONING,DR MEHROTRA & PARTNER,15290648,"1,615.95 "
Department of Health,NHS Sheffield CCG,31/12/2016,C&M-PMS DES UNPLANNED ADMISSIONS,PRC DELEGATED CO-COMMISSIONING,DR MEHROTRA & PARTNER,15290648,"2,620.31 "
Department of Health,NHS Sheffield CCG,31/12/2016,C&M-PMS PCO Seniority,PRC DELEGATED CO-COMMISSIONING,DR MEHROTRA & PARTNER,15290648,226.81 
Department of Health,NHS Sheffield CCG,31/12/2016,C&M-PMS Prem Notional Rent,PRC DELEGATED CO-COMMISSIONING,DR MEHROTRA & PARTNER,15290648,"5,157.33 "
Department of Health,NHS Sheffield CCG,31/12/2016,C&M-PMS Prem Rates,PRC DELEGATED CO-COMMISSIONING,DR MEHROTRA & PARTNER,15290648,"1,234.20 "
Department of Health,NHS Sheffield CCG,31/12/2016,C&M-PMS QOF Aspiration,PRC DELEGATED CO-COMMISSIONING,DR MEHROTRA & PARTNER,15290648,"3,080.24 "
Department of Health,NHS Sheffield CCG,31/12/2016,C&M-PMS Contract Value,PRC DELEGATED CO-COMMISSIONING,DR MILNER & PARTNERS,15290649,"(70,473.34)"
Department of Health,NHS Sheffield CCG,31/12/2016,C&M-PMS GP Statutory Levy,PRC DELEGATED CO-COMMISSIONING,DR MILNER & PARTNERS,15290649,(315.36)
Department of Health,NHS Sheffield CCG,31/12/2016,C&M-PMS Out of Hours Opt Outs,PRC DELEGATED CO-COMMISSIONING,DR MILNER & PARTNERS,15290649,(162.59)
Department of Health,NHS Sheffield CCG,31/12/2016,C&M-PMS Voluntary Levy,PRC DELEGATED CO-COMMISSIONING,DR MILNER & PARTNERS,15290649,(52.56)
Department of Health,NHS Sheffield CCG,31/12/2016,ME - PMS TPS Added Years Adj EEs,PRC DELEGATED CO-COMMISSIONING,DR MILNER & PARTNERS,15290649,(253.13)
Department of Health,NHS Sheffield CCG,31/12/2016,C&M-PMS Baseline Adjustment,PRC DELEGATED CO-COMMISSIONING,DR MILNER & PARTNERS,15290650,"9,162.92 "
Department of Health,NHS Sheffield CCG,31/12/2016,C&M-PMS Contract Value,PRC DELEGATED CO-COMMISSIONING,DR MILNER & PARTNERS,15290650,"140,118.64 "
Department of Health,NHS Sheffield CCG,31/12/2016,C&M-PMS DES Extended Hours Access,PRC DELEGATED CO-COMMISSIONING,DR MILNER & PARTNERS,15290650,"4,979.90 "
Department of Health,NHS Sheffield CCG,31/12/2016,C&M-PMS Out of Hours Opt Outs,PRC DELEGATED CO-COMMISSIONING,DR MILNER & PARTNERS,15290650,"(3,256.58)"
Department of Health,NHS Sheffield CCG,31/12/2016,C&M-PMS PCO Seniority,PRC DELEGATED CO-COMMISSIONING,DR MILNER & PARTNERS,15290650,658.80 
Department of Health,NHS Sheffield CCG,31/12/2016,C&M-PMS Prem Actual Rent,PRC DELEGATED CO-COMMISSIONING,DR MILNER & PARTNERS,15290650,"11,382.00 "
Department of Health,NHS Sheffield CCG,31/12/2016,C&M-PMS Prem Notional Rent,PRC DELEGATED CO-COMMISSIONING,DR MILNER & PARTNERS,15290650,"4,221.58 "
Department of Health,NHS Sheffield CCG,31/12/2016,C&M-PMS Prem Rates,PRC DELEGATED CO-COMMISSIONING,DR MILNER & PARTNERS,15290650,"1,702.08 "
Department of Health,NHS Sheffield CCG,31/12/2016,C&M-PMS QOF Aspiration,PRC DELEGATED CO-COMMISSIONING,DR MILNER & PARTNERS,15290650,"6,732.84 "
Department of Health,NHS Sheffield CCG,31/12/2016,C&M-GMS Cost of Drugs -Prescribing,LOCAL ENHANCED SERVICES,DUKE MEDICAL CENTRE,15474524,"4,460.90 "
Department of Health,NHS Sheffield CCG,31/12/2016,C&M-GMS DES Extended Hours Access,PRC DELEGATED CO-COMMISSIONING,DUKE MEDICAL CENTRE,15474524,"3,100.80 "
Department of Health,NHS Sheffield CCG,31/12/2016,C&M-GMS Global Sum,PRC DELEGATED CO-COMMISSIONING,DUKE MEDICAL CENTRE,15474524,"48,841.84 "
Department of Health,NHS Sheffield CCG,31/12/2016,C&M-GMS MPIG Correction Factor,PRC DELEGATED CO-COMMISSIONING,DUKE MEDICAL CENTRE,15474524,"1,225.02 "
Department of Health,NHS Sheffield CCG,31/12/2016,C&M-GMS PCO Seniority,PRC DELEGATED CO-COMMISSIONING,DUKE MEDICAL CENTRE,15474524,"1,897.69 "
Department of Health,NHS Sheffield CCG,31/12/2016,C&M-GMS Prem Notional Rent,PRC DELEGATED CO-COMMISSIONING,DUKE MEDICAL CENTRE,15474524,"5,721.67 "
Department of Health,NHS Sheffield CCG,31/12/2016,C&M-GMS Prem Rates,PRC DELEGATED CO-COMMISSIONING,DUKE MEDICAL CENTRE,15474524,834.90 
Department of Health,NHS Sheffield CCG,31/12/2016,C&M-GMS Prof Fees Prescribing,PRC DELEGATED CO-COMMISSIONING,DUKE MEDICAL CENTRE,15474524,"1,486.30 "
Department of Health,NHS Sheffield CCG,31/12/2016,C&M-GMS QOF Aspiration,PRC DELEGATED CO-COMMISSIONING,DUKE MEDICAL CENTRE,15474524,"4,848.26 "
Department of Health,NHS Sheffield CCG,31/12/2016,C&M-PMS Baseline Adjustment,PRC DELEGATED CO-COMMISSIONING,DUNNINC ROAD SURGERY,15290652,"2,437.42 "
Department of Health,NHS Sheffield CCG,31/12/2016,C&M-PMS Contract Value,PRC DELEGATED CO-COMMISSIONING,DUNNINC ROAD SURGERY,15290652,"45,940.38 "
Department of Health,NHS Sheffield CCG,31/12/2016,C&M-PMS DES Extended Hours Access,PRC DELEGATED CO-COMMISSIONING,DUNNINC ROAD SURGERY,15290652,"1,458.25 "
Department of Health,NHS Sheffield CCG,31/12/2016,C&M-PMS PCO Seniority,PRC DELEGATED CO-COMMISSIONING,DUNNINC ROAD SURGERY,15290652,805.60 
Department of Health,NHS Sheffield CCG,31/12/2016,C&M-PMS Prem Notional Rent,PRC DELEGATED CO-COMMISSIONING,DUNNINC ROAD SURGERY,15290652,"1,604.17 "
Department of Health,NHS Sheffield CCG,31/12/2016,C&M-PMS QOF Aspiration,PRC DELEGATED CO-COMMISSIONING,DUNNINC ROAD SURGERY,15290652,"2,305.31 "
Department of Health,NHS Sheffield CCG,31/12/2016,C&M-PMS Contract Value,PRC DELEGATED CO-COMMISSIONING,DYKES HALL MEDICAL CENTRE,15290653,"(60,995.82)"
Department of Health,NHS Sheffield CCG,31/12/2016,C&M-PMS GP Statutory Levy,PRC DELEGATED CO-COMMISSIONING,DYKES HALL MEDICAL CENTRE,15290653,(291.99)
Department of Health,NHS Sheffield CCG,31/12/2016,C&M-PMS Out of Hours Opt Outs,PRC DELEGATED CO-COMMISSIONING,DYKES HALL MEDICAL CENTRE,15290653,(77.68)
Department of Health,NHS Sheffield CCG,31/12/2016,C&M-PMS Voluntary Levy,PRC DELEGATED CO-COMMISSIONING,DYKES HALL MEDICAL CENTRE,15290653,(48.67)
Department of Health,NHS Sheffield CCG,31/12/2016,ME - PMS TPS Added Years Adj EEs,PRC DELEGATED CO-COMMISSIONING,DYKES HALL MEDICAL CENTRE,15290653,(273.42)
Department of Health,NHS Sheffield CCG,31/12/2016,C&M-PMS Baseline Adjustment,PRC DELEGATED CO-COMMISSIONING,DYKES HALL MEDICAL CENTRE,15290654,399.42 
Department of Health,NHS Sheffield CCG,31/12/2016,C&M-PMS Contract Value,PRC DELEGATED CO-COMMISSIONING,DYKES HALL MEDICAL CENTRE,15290654,"127,954.45 "
Department of Health,NHS Sheffield CCG,31/12/2016,C&M-PMS DES Extended Hours Access,PRC DELEGATED CO-COMMISSIONING,DYKES HALL MEDICAL CENTRE,15290654,"4,607.03 "
Department of Health,NHS Sheffield CCG,31/12/2016,C&M-PMS Out of Hours Opt Outs,PRC DELEGATED CO-COMMISSIONING,DYKES HALL MEDICAL CENTRE,15290654,"(3,198.02)"
Department of Health,NHS Sheffield CCG,31/12/2016,C&M-PMS PCO Seniority,PRC DELEGATED CO-COMMISSIONING,DYKES HALL MEDICAL CENTRE,15290654,"1,038.12 "
Department of Health,NHS Sheffield CCG,31/12/2016,C&M-PMS Prem Notional Rent,PRC DELEGATED CO-COMMISSIONING,DYKES HALL MEDICAL CENTRE,15290654,"5,298.97 "
Department of Health,NHS Sheffield CCG,31/12/2016,C&M-PMS QOF Aspiration,PRC DELEGATED CO-COMMISSIONING,DYKES HALL MEDICAL CENTRE,15290654,"8,049.09 "
Department of Health,NHS Sheffield CCG,31/12/2016,C&M-PMS Contract Value,PRC DELEGATED CO-COMMISSIONING,EAST BANK MEDICAL CENTRE,15290655,"(41,466.23)"
Department of Health,NHS Sheffield CCG,31/12/2016,C&M-PMS GP Statutory Levy,PRC DELEGATED CO-COMMISSIONING,EAST BANK MEDICAL CENTRE,15290655,(164.37)
Department of Health,NHS Sheffield CCG,31/12/2016,C&M-PMS Out of Hours Opt Outs,PRC DELEGATED CO-COMMISSIONING,EAST BANK MEDICAL CENTRE,15290655,(36.31)
Department of Health,NHS Sheffield CCG,31/12/2016,C&M-PMS Voluntary Levy,PRC DELEGATED CO-COMMISSIONING,EAST BANK MEDICAL CENTRE,15290655,(27.40)
Department of Health,NHS Sheffield CCG,31/12/2016,ME - PMS GP Prior Year ERs,PRC DELEGATED CO-COMMISSIONING,EAST BANK MEDICAL CENTRE,15290655,(710.88)
Department of Health,NHS Sheffield CCG,31/12/2016,ME-PMS GP Prior Year EEs,PRC DELEGATED CO-COMMISSIONING,EAST BANK MEDICAL CENTRE,15290655,(830.46)
Department of Health,NHS Sheffield CCG,31/12/2016,C&M-PMS Baseline Adjustment,PRC DELEGATED CO-COMMISSIONING,EAST BANK MEDICAL CENTRE,15290656,"3,176.25 "
Department of Health,NHS Sheffield CCG,31/12/2016,C&M-PMS Contract Value,PRC DELEGATED CO-COMMISSIONING,EAST BANK MEDICAL CENTRE,15290656,"83,677.85 "
Department of Health,NHS Sheffield CCG,31/12/2016,C&M-PMS DES Extended Hours Access,PRC DELEGATED CO-COMMISSIONING,EAST BANK MEDICAL CENTRE,15290656,"2,579.73 "
Department of Health,NHS Sheffield CCG,31/12/2016,C&M-PMS Out of Hours Opt Outs,PRC DELEGATED CO-COMMISSIONING,EAST BANK MEDICAL CENTRE,15290656,"(2,036.66)"
Department of Health,NHS Sheffield CCG,31/12/2016,C&M-PMS PCO Seniority,PRC DELEGATED CO-COMMISSIONING,EAST BANK MEDICAL CENTRE,15290656,305.49 
Department of Health,NHS Sheffield CCG,31/12/2016,C&M-PMS Prem Notional Rent,PRC DELEGATED CO-COMMISSIONING,EAST BANK MEDICAL CENTRE,15290656,"10,466.67 "
Department of Health,NHS Sheffield CCG,31/12/2016,C&M-PMS Prem Rates,PRC DELEGATED CO-COMMISSIONING,EAST BANK MEDICAL CENTRE,15290656,"5,467.00 "
Department of Health,NHS Sheffield CCG,31/12/2016,C&M-PMS QOF Aspiration,PRC DELEGATED CO-COMMISSIONING,EAST BANK MEDICAL CENTRE,15290656,"4,604.77 "
Department of Health,NHS Sheffield CCG,31/12/2016,C&M-GMS Cost of Drugs -Prescribing,LOCAL ENHANCED SERVICES,ECCLESFIELD GROUP PRACTICE,15474520,"7,898.39 "
Department of Health,NHS Sheffield CCG,31/12/2016,C&M-GMS DES Extended Hours Access,PRC DELEGATED CO-COMMISSIONING,ECCLESFIELD GROUP PRACTICE,15474520,"3,704.05 "
Department of Health,NHS Sheffield CCG,31/12/2016,C&M-GMS Global Sum,PRC DELEGATED CO-COMMISSIONING,ECCLESFIELD GROUP PRACTICE,15474520,"58,668.09 "
Department of Health,NHS Sheffield CCG,31/12/2016,C&M-GMS PCO Locum Adop/Pat/Mat,PRC DELEGATED CO-COMMISSIONING,ECCLESFIELD GROUP PRACTICE,15474520,"3,853.73 "
Department of Health,NHS Sheffield CCG,31/12/2016,C&M-GMS PCO Seniority,PRC DELEGATED CO-COMMISSIONING,ECCLESFIELD GROUP PRACTICE,15474520,"3,982.18 "
Department of Health,NHS Sheffield CCG,31/12/2016,C&M-GMS Prem Notional Rent,PRC DELEGATED CO-COMMISSIONING,ECCLESFIELD GROUP PRACTICE,15474520,"6,545.00 "
Department of Health,NHS Sheffield CCG,31/12/2016,C&M-GMS Prem Rates,PRC DELEGATED CO-COMMISSIONING,ECCLESFIELD GROUP PRACTICE,15474520,"2,723.18 "
Department of Health,NHS Sheffield CCG,31/12/2016,C&M-GMS Prem Water Rates,PRC DELEGATED CO-COMMISSIONING,ECCLESFIELD GROUP PRACTICE,15474520,167.18 
Department of Health,NHS Sheffield CCG,31/12/2016,C&M-GMS Prof Fees Prescribing,PRC DELEGATED CO-COMMISSIONING,ECCLESFIELD GROUP PRACTICE,15474520,"2,036.38 "
Department of Health,NHS Sheffield CCG,31/12/2016,C&M-GMS QOF Aspiration,PRC DELEGATED CO-COMMISSIONING,ECCLESFIELD GROUP PRACTICE,15474520,"9,456.61 "
Department of Health,NHS Sheffield CCG,31/12/2016,C&M-GMS Cost of Drugs -Prescribing,LOCAL ENHANCED SERVICES,ELM LANE SURGERY,15474522,"6,450.95 "
Department of Health,NHS Sheffield CCG,31/12/2016,C&M-GMS Global Sum,PRC DELEGATED CO-COMMISSIONING,ELM LANE SURGERY,15474522,"35,586.31 "
Department of Health,NHS Sheffield CCG,31/12/2016,C&M-GMS MPIG Correction Factor,PRC DELEGATED CO-COMMISSIONING,ELM LANE SURGERY,15474522,"1,677.05 "
Department of Health,NHS Sheffield CCG,31/12/2016,C&M-GMS PCO Locum Adop/Pat/Mat,PRC DELEGATED CO-COMMISSIONING,ELM LANE SURGERY,15474522,"22,544.34 "
Department of Health,NHS Sheffield CCG,31/12/2016,C&M-GMS PCO Seniority,PRC DELEGATED CO-COMMISSIONING,ELM LANE SURGERY,15474522,"1,629.61 "
Department of Health,NHS Sheffield CCG,31/12/2016,C&M-GMS Prem Notional Rent,PRC DELEGATED CO-COMMISSIONING,ELM LANE SURGERY,15474522,"4,951.92 "
Department of Health,NHS Sheffield CCG,31/12/2016,C&M-GMS Prof Fees Prescribing,PRC DELEGATED CO-COMMISSIONING,ELM LANE SURGERY,15474522,"2,058.68 "
Department of Health,NHS Sheffield CCG,31/12/2016,C&M-GMS QOF Aspiration,PRC DELEGATED CO-COMMISSIONING,ELM LANE SURGERY,15474522,"4,440.21 "
Department of Health,NHS Sheffield CCG,31/12/2016,Cont Care-Physical Disab (<65),CHC ADULT FULLY FUNDED,FAIRWINDS HEALTH CARE LTD,15384292,"52,194.72 "
Department of Health,NHS Sheffield CCG,31/12/2016,C&M-PMS Baseline Adjustment,PRC DELEGATED CO-COMMISSIONING,FALKLAND HOUSE,15290660,"2,511.83 "
Department of Health,NHS Sheffield CCG,31/12/2016,C&M-PMS Contract Value,PRC DELEGATED CO-COMMISSIONING,FALKLAND HOUSE,15290660,"46,621.38 "
Department of Health,NHS Sheffield CCG,31/12/2016,C&M-PMS DES Extended Hours Access,PRC DELEGATED CO-COMMISSIONING,FALKLAND HOUSE,15290660,"1,888.60 "
Department of Health,NHS Sheffield CCG,31/12/2016,C&M-PMS DES UNPLANNED ADMISSIONS,PRC DELEGATED CO-COMMISSIONING,FALKLAND HOUSE,15290660,"3,061.52 "
Department of Health,NHS Sheffield CCG,31/12/2016,C&M-PMS Out of Hours Opt Outs,PRC DELEGATED CO-COMMISSIONING,FALKLAND HOUSE,15290660,(960.75)
Department of Health,NHS Sheffield CCG,31/12/2016,C&M-PMS PCO Seniority,PRC DELEGATED CO-COMMISSIONING,FALKLAND HOUSE,15290660,331.99 
Department of Health,NHS Sheffield CCG,31/12/2016,C&M-PMS Prem Notional Rent,PRC DELEGATED CO-COMMISSIONING,FALKLAND HOUSE,15290660,"1,802.08 "
Department of Health,NHS Sheffield CCG,31/12/2016,C&M-PMS Prem Rates,PRC DELEGATED CO-COMMISSIONING,FALKLAND HOUSE,15290660,665.50 
Department of Health,NHS Sheffield CCG,31/12/2016,C&M-PMS QOF Aspiration,PRC DELEGATED CO-COMMISSIONING,FALKLAND HOUSE,15290660,"2,350.86 "
Department of Health,NHS Sheffield CCG,31/12/2016,C&M-GMS Cost of Drugs -Prescribing,LOCAL ENHANCED SERVICES,FAR LANE MEDICAL CENTRE,15474531,"6,074.06 "
Department of Health,NHS Sheffield CCG,31/12/2016,C&M-GMS Global Sum,PRC DELEGATED CO-COMMISSIONING,FAR LANE MEDICAL CENTRE,15474531,"51,618.93 "
Department of Health,NHS Sheffield CCG,31/12/2016,C&M-GMS PCO Seniority,PRC DELEGATED CO-COMMISSIONING,FAR LANE MEDICAL CENTRE,15474531,"5,663.50 "
Department of Health,NHS Sheffield CCG,31/12/2016,C&M-GMS Prem Notional Rent,PRC DELEGATED CO-COMMISSIONING,FAR LANE MEDICAL CENTRE,15474531,"3,637.50 "
Department of Health,NHS Sheffield CCG,31/12/2016,C&M-GMS Prem Rates,PRC DELEGATED CO-COMMISSIONING,FAR LANE MEDICAL CENTRE,15474531,"1,016.40 "
Department of Health,NHS Sheffield CCG,31/12/2016,C&M-GMS Prof Fees Prescribing,PRC DELEGATED CO-COMMISSIONING,FAR LANE MEDICAL CENTRE,15474531,"1,998.56 "
Department of Health,NHS Sheffield CCG,31/12/2016,C&M-GMS QOF Aspiration,PRC DELEGATED CO-COMMISSIONING,FAR LANE MEDICAL CENTRE,15474531,"5,648.61 "
Department of Health,NHS Sheffield CCG,31/12/2016,C&M-PMS Contract Value,PRC DELEGATED CO-COMMISSIONING,FIRTH PARK SURGERY,15290657,"(64,272.68)"
Department of Health,NHS Sheffield CCG,31/12/2016,C&M-PMS GP Statutory Levy,PRC DELEGATED CO-COMMISSIONING,FIRTH PARK SURGERY,15290657,(288.90)
Department of Health,NHS Sheffield CCG,31/12/2016,C&M-PMS Out of Hours Opt Outs,PRC DELEGATED CO-COMMISSIONING,FIRTH PARK SURGERY,15290657,(51.75)
Department of Health,NHS Sheffield CCG,31/12/2016,C&M-PMS Voluntary Levy,PRC DELEGATED CO-COMMISSIONING,FIRTH PARK SURGERY,15290657,(48.15)
Department of Health,NHS Sheffield CCG,31/12/2016,ME - PMS TPS Added Years Adj EEs,PRC DELEGATED CO-COMMISSIONING,FIRTH PARK SURGERY,15290657,(29.06)
Department of Health,NHS Sheffield CCG,31/12/2016,C&M-PMS Contract Value,PRC DELEGATED CO-COMMISSIONING,FIRTH PARK SURGERY,15290658,"129,105.94 "
Department of Health,NHS Sheffield CCG,31/12/2016,C&M-PMS DES Extended Hours Access,PRC DELEGATED CO-COMMISSIONING,FIRTH PARK SURGERY,15290658,"4,589.45 "
Department of Health,NHS Sheffield CCG,31/12/2016,C&M-PMS Out of Hours Opt Outs,PRC DELEGATED CO-COMMISSIONING,FIRTH PARK SURGERY,15290658,"(3,238.48)"
Department of Health,NHS Sheffield CCG,31/12/2016,C&M-PMS PCO Seniority,PRC DELEGATED CO-COMMISSIONING,FIRTH PARK SURGERY,15290658,"1,257.24 "
Department of Health,NHS Sheffield CCG,31/12/2016,C&M-PMS Prem Notional Rent,PRC DELEGATED CO-COMMISSIONING,FIRTH PARK SURGERY,15290658,"5,166.67 "
Department of Health,NHS Sheffield CCG,31/12/2016,C&M-PMS Prem Rates,PRC DELEGATED CO-COMMISSIONING,FIRTH PARK SURGERY,15290658,"1,718.79 "
Department of Health,NHS Sheffield CCG,31/12/2016,C&M-PMS QOF Aspiration,PRC DELEGATED CO-COMMISSIONING,FIRTH PARK SURGERY,15290658,"7,439.23 "
Department of Health,NHS Sheffield CCG,31/12/2016,C&M-GMS Cost of Drugs -Prescribing,LOCAL ENHANCED SERVICES,FLOWERS HEALTH CENTRE,15474607,"3,239.72 "
Department of Health,NHS Sheffield CCG,31/12/2016,C&M-GMS DES UNPLANNED ADMISSIONS,PRC DELEGATED CO-COMMISSIONING,FLOWERS HEALTH CENTRE,15474607,"3,565.10 "
Department of Health,NHS Sheffield CCG,31/12/2016,C&M-GMS Global Sum,PRC DELEGATED CO-COMMISSIONING,FLOWERS HEALTH CENTRE,15474607,"30,906.38 "
Department of Health,NHS Sheffield CCG,31/12/2016,C&M-GMS MPIG Correction Factor,PRC DELEGATED CO-COMMISSIONING,FLOWERS HEALTH CENTRE,15474607,"2,952.62 "
Department of Health,NHS Sheffield CCG,31/12/2016,C&M-GMS PCO Seniority,PRC DELEGATED CO-COMMISSIONING,FLOWERS HEALTH CENTRE,15474607,"2,671.50 "
Department of Health,NHS Sheffield CCG,31/12/2016,C&M-GMS Prem Healthcentre Rent,PRC DELEGATED CO-COMMISSIONING,FLOWERS HEALTH CENTRE,15474607,"32,996.55 "
Department of Health,NHS Sheffield CCG,31/12/2016,C&M-GMS Prof Fees Prescribing,PRC DELEGATED CO-COMMISSIONING,FLOWERS HEALTH CENTRE,15474607,"1,031.75 "
Department of Health,NHS Sheffield CCG,31/12/2016,C&M-GMS QOF Aspiration,PRC DELEGATED CO-COMMISSIONING,FLOWERS HEALTH CENTRE,15474607,"3,922.75 "
Department of Health,NHS Sheffield CCG,31/12/2016,C&M-PMS Contract Value,PRC DELEGATED CO-COMMISSIONING,FOXHILL MEDICAL CENTRE SHEFFIELD,15290713,"(46,540.03)"
Department of Health,NHS Sheffield CCG,31/12/2016,C&M-PMS GP Statutory Levy,PRC DELEGATED CO-COMMISSIONING,FOXHILL MEDICAL CENTRE SHEFFIELD,15290713,(186.21)
Department of Health,NHS Sheffield CCG,31/12/2016,C&M-PMS Out of Hours Opt Outs,PRC DELEGATED CO-COMMISSIONING,FOXHILL MEDICAL CENTRE SHEFFIELD,15290713,(75.17)
Department of Health,NHS Sheffield CCG,31/12/2016,C&M-PMS Prem Healthcentre Rent,PRC DELEGATED CO-COMMISSIONING,FOXHILL MEDICAL CENTRE SHEFFIELD,15290713,"(2,261.89)"
Department of Health,NHS Sheffield CCG,31/12/2016,C&M-PMS Voluntary Levy,PRC DELEGATED CO-COMMISSIONING,FOXHILL MEDICAL CENTRE SHEFFIELD,15290713,(31.04)
Department of Health,NHS Sheffield CCG,31/12/2016,C&M-PMS Baseline Adjustment,PRC DELEGATED CO-COMMISSIONING,FOXHILL MEDICAL CENTRE SHEFFIELD,15290714,"2,902.50 "
Department of Health,NHS Sheffield CCG,31/12/2016,C&M-PMS Contract Value,PRC DELEGATED CO-COMMISSIONING,FOXHILL MEDICAL CENTRE SHEFFIELD,15290714,"94,946.78 "
Department of Health,NHS Sheffield CCG,31/12/2016,C&M-PMS DES Extended Hours Access,PRC DELEGATED CO-COMMISSIONING,FOXHILL MEDICAL CENTRE SHEFFIELD,15290714,"2,964.00 "
Department of Health,NHS Sheffield CCG,31/12/2016,C&M-PMS DES Learn Dsblty Hlth Chk,PRC DELEGATED CO-COMMISSIONING,FOXHILL MEDICAL CENTRE SHEFFIELD,15290714,"1,624.00 "
Department of Health,NHS Sheffield CCG,31/12/2016,C&M-PMS Out of Hours Opt Outs,PRC DELEGATED CO-COMMISSIONING,FOXHILL MEDICAL CENTRE SHEFFIELD,15290714,"(2,291.28)"
Department of Health,NHS Sheffield CCG,31/12/2016,C&M-PMS PCO Seniority,PRC DELEGATED CO-COMMISSIONING,FOXHILL MEDICAL CENTRE SHEFFIELD,15290714,"1,051.95 "
Department of Health,NHS Sheffield CCG,31/12/2016,C&M-PMS Prem Healthcentre Rent,PRC DELEGATED CO-COMMISSIONING,FOXHILL MEDICAL CENTRE SHEFFIELD,15290714,"48,172.21 "
Department of Health,NHS Sheffield CCG,31/12/2016,C&M-PMS QOF Aspiration,PRC DELEGATED CO-COMMISSIONING,FOXHILL MEDICAL CENTRE SHEFFIELD,15290714,"5,186.12 "
Department of Health,NHS Sheffield CCG,31/12/2016,C&M-PMS Contract Value,PRC DELEGATED CO-COMMISSIONING,GLEADLESS MEDICAL CENTRE,15290661,"(61,039.11)"
Department of Health,NHS Sheffield CCG,31/12/2016,C&M-PMS GP Statutory Levy,PRC DELEGATED CO-COMMISSIONING,GLEADLESS MEDICAL CENTRE,15290661,(264.18)
Department of Health,NHS Sheffield CCG,31/12/2016,C&M-PMS Out of Hours Opt Outs,PRC DELEGATED CO-COMMISSIONING,GLEADLESS MEDICAL CENTRE,15290661,(175.63)
Department of Health,NHS Sheffield CCG,31/12/2016,C&M-PMS Voluntary Levy,PRC DELEGATED CO-COMMISSIONING,GLEADLESS MEDICAL CENTRE,15290661,(44.03)
Department of Health,NHS Sheffield CCG,31/12/2016,C&M-PMS Baseline Adjustment,PRC DELEGATED CO-COMMISSIONING,GLEADLESS MEDICAL CENTRE,15290662,"2,522.83 "
Department of Health,NHS Sheffield CCG,31/12/2016,C&M-PMS Contract Value,PRC DELEGATED CO-COMMISSIONING,GLEADLESS MEDICAL CENTRE,15290662,"126,775.81 "
Department of Health,NHS Sheffield CCG,31/12/2016,C&M-PMS Out of Hours Opt Outs,PRC DELEGATED CO-COMMISSIONING,GLEADLESS MEDICAL CENTRE,15290662,"(3,042.06)"
Department of Health,NHS Sheffield CCG,31/12/2016,C&M-PMS PCO Seniority,PRC DELEGATED CO-COMMISSIONING,GLEADLESS MEDICAL CENTRE,15290662,"1,989.53 "
Department of Health,NHS Sheffield CCG,31/12/2016,C&M-PMS Prem Notional Rent,PRC DELEGATED CO-COMMISSIONING,GLEADLESS MEDICAL CENTRE,15290662,"6,750.00 "
Department of Health,NHS Sheffield CCG,31/12/2016,C&M-PMS Prem Rates,PRC DELEGATED CO-COMMISSIONING,GLEADLESS MEDICAL CENTRE,15290662,"1,118.25 "
Department of Health,NHS Sheffield CCG,31/12/2016,C&M-PMS Prem Water Rates,PRC DELEGATED CO-COMMISSIONING,GLEADLESS MEDICAL CENTRE,15290662,396.16 
Department of Health,NHS Sheffield CCG,31/12/2016,C&M-PMS QOF Aspiration,PRC DELEGATED CO-COMMISSIONING,GLEADLESS MEDICAL CENTRE,15290662,"7,431.65 "
Department of Health,NHS Sheffield CCG,31/12/2016,C&M-GMS Cost of Drugs -Prescribing,LOCAL ENHANCED SERVICES,GRENOSIDE SURGERY,15474538,"9,008.79 "
Department of Health,NHS Sheffield CCG,31/12/2016,C&M-GMS DES Extended Hours Access,PRC DELEGATED CO-COMMISSIONING,GRENOSIDE SURGERY,15474538,"3,451.35 "
Department of Health,NHS Sheffield CCG,31/12/2016,C&M-GMS DES UNPLANNED ADMISSIONS,PRC DELEGATED CO-COMMISSIONING,GRENOSIDE SURGERY,15474538,"5,597.90 "
Department of Health,NHS Sheffield CCG,31/12/2016,C&M-GMS Global Sum,PRC DELEGATED CO-COMMISSIONING,GRENOSIDE SURGERY,15474538,"50,407.71 "
Department of Health,NHS Sheffield CCG,31/12/2016,C&M-GMS PCO Locum Adop/Pat/Mat,PRC DELEGATED CO-COMMISSIONING,GRENOSIDE SURGERY,15474538,"2,263.48 "
Department of Health,NHS Sheffield CCG,31/12/2016,C&M-GMS PCO Seniority,PRC DELEGATED CO-COMMISSIONING,GRENOSIDE SURGERY,15474538,"2,117.65 "
Department of Health,NHS Sheffield CCG,31/12/2016,C&M-GMS Prem Notional Rent,PRC DELEGATED CO-COMMISSIONING,GRENOSIDE SURGERY,15474538,"8,150.17 "
Department of Health,NHS Sheffield CCG,31/12/2016,C&M-GMS Prem Rates,PRC DELEGATED CO-COMMISSIONING,GRENOSIDE SURGERY,15474538,"2,927.20 "
Department of Health,NHS Sheffield CCG,31/12/2016,C&M-GMS Prof Fees Prescribing,PRC DELEGATED CO-COMMISSIONING,GRENOSIDE SURGERY,15474538,"2,466.31 "
Department of Health,NHS Sheffield CCG,31/12/2016,C&M-GMS QOF Aspiration,PRC DELEGATED CO-COMMISSIONING,GRENOSIDE SURGERY,15474538,"5,640.25 "
Department of Health,NHS Sheffield CCG,31/12/2016,ME - GMS GP Prior Year ERs,PRC DELEGATED CO-COMMISSIONING,GRENOSIDE SURGERY,15474538,"1,193.97 "
Department of Health,NHS Sheffield CCG,31/12/2016,ME-GMS GP Prior Year EEs,PRC DELEGATED CO-COMMISSIONING,GRENOSIDE SURGERY,15474538,"1,043.68 "
Department of Health,NHS Sheffield CCG,31/12/2016,C&M-GMS Cost of Drugs -Prescribing,LOCAL ENHANCED SERVICES,GREYSTONES MEDICAL CENTRE,15474540,"1,322.30 "
Department of Health,NHS Sheffield CCG,31/12/2016,C&M-GMS DES Extended Hours Access,PRC DELEGATED CO-COMMISSIONING,GREYSTONES MEDICAL CENTRE,15474540,"1,718.55 "
Department of Health,NHS Sheffield CCG,31/12/2016,C&M-GMS Global Sum,PRC DELEGATED CO-COMMISSIONING,GREYSTONES MEDICAL CENTRE,15474540,"17,824.66 "
Department of Health,NHS Sheffield CCG,31/12/2016,C&M-GMS MPIG Correction Factor,PRC DELEGATED CO-COMMISSIONING,GREYSTONES MEDICAL CENTRE,15474540,"2,208.92 "
Department of Health,NHS Sheffield CCG,31/12/2016,C&M-GMS PCO Seniority,PRC DELEGATED CO-COMMISSIONING,GREYSTONES MEDICAL CENTRE,15474540,611.82 
Department of Health,NHS Sheffield CCG,31/12/2016,C&M-GMS Prem Notional Rent,PRC DELEGATED CO-COMMISSIONING,GREYSTONES MEDICAL CENTRE,15474540,"2,729.17 "
Department of Health,NHS Sheffield CCG,31/12/2016,C&M-GMS Prem Rates,PRC DELEGATED CO-COMMISSIONING,GREYSTONES MEDICAL CENTRE,15474540,849.04 
Department of Health,NHS Sheffield CCG,31/12/2016,C&M-GMS Prof Fees Prescribing,PRC DELEGATED CO-COMMISSIONING,GREYSTONES MEDICAL CENTRE,15474540,416.07 
Department of Health,NHS Sheffield CCG,31/12/2016,C&M-GMS QOF Aspiration,PRC DELEGATED CO-COMMISSIONING,GREYSTONES MEDICAL CENTRE,15474540,"1,888.68 "
Department of Health,NHS Sheffield CCG,31/12/2016,C&M-PMS Contract Value,PRC DELEGATED CO-COMMISSIONING,HACKENTHORPE MEDICAL CENTRE,15290665,"(43,660.67)"
Department of Health,NHS Sheffield CCG,31/12/2016,C&M-PMS GP Statutory Levy,PRC DELEGATED CO-COMMISSIONING,HACKENTHORPE MEDICAL CENTRE,15290665,(200.46)
Department of Health,NHS Sheffield CCG,31/12/2016,C&M-PMS Out of Hours Opt Outs,PRC DELEGATED CO-COMMISSIONING,HACKENTHORPE MEDICAL CENTRE,15290665,(82.70)
Department of Health,NHS Sheffield CCG,31/12/2016,C&M-PMS Voluntary Levy,PRC DELEGATED CO-COMMISSIONING,HACKENTHORPE MEDICAL CENTRE,15290665,(33.41)
Department of Health,NHS Sheffield CCG,31/12/2016,ME - PMS TPS Added Years Adj EEs,PRC DELEGATED CO-COMMISSIONING,HACKENTHORPE MEDICAL CENTRE,15290665,(457.50)
Department of Health,NHS Sheffield CCG,31/12/2016,C&M-PMS Baseline Adjustment,PRC DELEGATED CO-COMMISSIONING,HACKENTHORPE MEDICAL CENTRE,15290666,"4,211.17 "
Department of Health,NHS Sheffield CCG,31/12/2016,C&M-PMS Contract Value,PRC DELEGATED CO-COMMISSIONING,HACKENTHORPE MEDICAL CENTRE,15290666,"88,046.76 "
Department of Health,NHS Sheffield CCG,31/12/2016,C&M-PMS DES Extended Hours Access,PRC DELEGATED CO-COMMISSIONING,HACKENTHORPE MEDICAL CENTRE,15290666,"3,173.00 "
Department of Health,NHS Sheffield CCG,31/12/2016,C&M-PMS Out of Hours Opt Outs,PRC DELEGATED CO-COMMISSIONING,HACKENTHORPE MEDICAL CENTRE,15290666,"(2,094.67)"
Department of Health,NHS Sheffield CCG,31/12/2016,C&M-PMS PCO Seniority,PRC DELEGATED CO-COMMISSIONING,HACKENTHORPE MEDICAL CENTRE,15290666,"1,532.98 "
Department of Health,NHS Sheffield CCG,31/12/2016,C&M-PMS Prem Notional Rent,PRC DELEGATED CO-COMMISSIONING,HACKENTHORPE MEDICAL CENTRE,15290666,"4,981.25 "
Department of Health,NHS Sheffield CCG,31/12/2016,C&M-PMS Prem Rates,PRC DELEGATED CO-COMMISSIONING,HACKENTHORPE MEDICAL CENTRE,15290666,847.00 
Department of Health,NHS Sheffield CCG,31/12/2016,C&M-PMS QOF Aspiration,PRC DELEGATED CO-COMMISSIONING,HACKENTHORPE MEDICAL CENTRE,15290666,"6,104.43 "
Department of Health,NHS Sheffield CCG,31/12/2016,C&M-GMS Cost of Drugs -Prescribing,LOCAL ENHANCED SERVICES,HANDSWORTH MEDICAL PRACTICE SHEFFIELD,15474536,"5,613.23 "
Department of Health,NHS Sheffield CCG,31/12/2016,C&M-GMS DES Extended Hours Access,PRC DELEGATED CO-COMMISSIONING,HANDSWORTH MEDICAL PRACTICE SHEFFIELD,15474536,"4,593.25 "
Department of Health,NHS Sheffield CCG,31/12/2016,C&M-GMS Global Sum,PRC DELEGATED CO-COMMISSIONING,HANDSWORTH MEDICAL PRACTICE SHEFFIELD,15474536,"67,656.00 "
Department of Health,NHS Sheffield CCG,31/12/2016,C&M-GMS PCO Seniority,PRC DELEGATED CO-COMMISSIONING,HANDSWORTH MEDICAL PRACTICE SHEFFIELD,15474536,"1,881.00 "
Department of Health,NHS Sheffield CCG,31/12/2016,C&M-GMS Prem Notional Rent,PRC DELEGATED CO-COMMISSIONING,HANDSWORTH MEDICAL PRACTICE SHEFFIELD,15474536,"3,321.67 "
Department of Health,NHS Sheffield CCG,31/12/2016,C&M-GMS Prof Fees Prescribing,PRC DELEGATED CO-COMMISSIONING,HANDSWORTH MEDICAL PRACTICE SHEFFIELD,15474536,"1,753.26 "
Department of Health,NHS Sheffield CCG,31/12/2016,C&M-GMS QOF Aspiration,PRC DELEGATED CO-COMMISSIONING,HANDSWORTH MEDICAL PRACTICE SHEFFIELD,15474536,"7,268.73 "
Department of Health,NHS Sheffield CCG,31/12/2016,C&M-PMS Baseline Adjustment,PRC DELEGATED CO-COMMISSIONING,HAROLD STREET MEDICAL CENTRE,15290664,"1,810.25 "
Department of Health,NHS Sheffield CCG,31/12/2016,C&M-PMS Contract Value,PRC DELEGATED CO-COMMISSIONING,HAROLD STREET MEDICAL CENTRE,15290664,"19,828.45 "
Department of Health,NHS Sheffield CCG,31/12/2016,C&M-PMS DES Extended Hours Access,PRC DELEGATED CO-COMMISSIONING,HAROLD STREET MEDICAL CENTRE,15290664,633.65 
Department of Health,NHS Sheffield CCG,31/12/2016,C&M-PMS Out of Hours Opt Outs,PRC DELEGATED CO-COMMISSIONING,HAROLD STREET MEDICAL CENTRE,15290664,(438.40)
Department of Health,NHS Sheffield CCG,31/12/2016,C&M-PMS PCO Seniority,PRC DELEGATED CO-COMMISSIONING,HAROLD STREET MEDICAL CENTRE,15290664,509.15 
Department of Health,NHS Sheffield CCG,31/12/2016,C&M-PMS Prem Notional Rent,PRC DELEGATED CO-COMMISSIONING,HAROLD STREET MEDICAL CENTRE,15290664,"2,304.17 "
Department of Health,NHS Sheffield CCG,31/12/2016,C&M-PMS QOF Aspiration,PRC DELEGATED CO-COMMISSIONING,HAROLD STREET MEDICAL CENTRE,15290664,"1,106.23 "
Department of Health,NHS Sheffield CCG,31/12/2016,Cont Care-Foundation Trust,PLANNED CARE,HARROGATE & DISTRICT NHS FOUNDATION NHS TRUST,15341199,"37,210.77 "
Department of Health,NHS Sheffield CCG,31/12/2016,C&M-GMS Cost of Drugs -Prescribing,LOCAL ENHANCED SERVICES,HEALTH CARE SURGERY,15474546,"3,525.41 "
Department of Health,NHS Sheffield CCG,31/12/2016,C&M-GMS DES Extended Hours Access,PRC DELEGATED CO-COMMISSIONING,HEALTH CARE SURGERY,15474546,"2,314.20 "
Department of Health,NHS Sheffield CCG,31/12/2016,C&M-GMS Global Sum,PRC DELEGATED CO-COMMISSIONING,HEALTH CARE SURGERY,15474546,"33,550.06 "
Department of Health,NHS Sheffield CCG,31/12/2016,C&M-GMS MPIG Correction Factor,PRC DELEGATED CO-COMMISSIONING,HEALTH CARE SURGERY,15474546,"1,560.04 "
Department of Health,NHS Sheffield CCG,31/12/2016,C&M-GMS PCO Seniority,PRC DELEGATED CO-COMMISSIONING,HEALTH CARE SURGERY,15474546,"1,855.40 "
Department of Health,NHS Sheffield CCG,31/12/2016,C&M-GMS Prem Notional Rent,PRC DELEGATED CO-COMMISSIONING,HEALTH CARE SURGERY,15474546,"3,862.50 "
Department of Health,NHS Sheffield CCG,31/12/2016,C&M-GMS Prem Rates,PRC DELEGATED CO-COMMISSIONING,HEALTH CARE SURGERY,15474546,"1,356.40 "
Department of Health,NHS Sheffield CCG,31/12/2016,C&M-GMS Prof Fees Prescribing,PRC DELEGATED CO-COMMISSIONING,HEALTH CARE SURGERY,15474546,"1,077.44 "
Department of Health,NHS Sheffield CCG,31/12/2016,C&M-GMS QOF Aspiration,PRC DELEGATED CO-COMMISSIONING,HEALTH CARE SURGERY,15474546,"3,988.06 "
Department of Health,NHS Sheffield CCG,31/12/2016,C&M-GMS Cost of Drugs -Prescribing,LOCAL ENHANCED SERVICES,HEELEY GREEN SURGERY,15474542,"5,756.08 "
Department of Health,NHS Sheffield CCG,31/12/2016,C&M-GMS DES Extended Hours Access,PRC DELEGATED CO-COMMISSIONING,HEELEY GREEN SURGERY,15474542,"2,608.70 "
Department of Health,NHS Sheffield CCG,31/12/2016,C&M-GMS Global Sum,PRC DELEGATED CO-COMMISSIONING,HEELEY GREEN SURGERY,15474542,"36,604.46 "
Department of Health,NHS Sheffield CCG,31/12/2016,C&M-GMS MPIG Correction Factor,PRC DELEGATED CO-COMMISSIONING,HEELEY GREEN SURGERY,15474542,752.40 
Department of Health,NHS Sheffield CCG,31/12/2016,C&M-GMS PCO Seniority,PRC DELEGATED CO-COMMISSIONING,HEELEY GREEN SURGERY,15474542,"1,029.82 "
Department of Health,NHS Sheffield CCG,31/12/2016,C&M-GMS Prem Notional Rent,PRC DELEGATED CO-COMMISSIONING,HEELEY GREEN SURGERY,15474542,"3,254.17 "
Department of Health,NHS Sheffield CCG,31/12/2016,C&M-GMS Prem Rates,PRC DELEGATED CO-COMMISSIONING,HEELEY GREEN SURGERY,15474542,137.22 
Department of Health,NHS Sheffield CCG,31/12/2016,C&M-GMS Prem Water Rates,PRC DELEGATED CO-COMMISSIONING,HEELEY GREEN SURGERY,15474542,94.88 
Department of Health,NHS Sheffield CCG,31/12/2016,C&M-GMS Prof Fees Prescribing,PRC DELEGATED CO-COMMISSIONING,HEELEY GREEN SURGERY,15474542,"1,730.30 "
Department of Health,NHS Sheffield CCG,31/12/2016,C&M-GMS QOF Aspiration,PRC DELEGATED CO-COMMISSIONING,HEELEY GREEN SURGERY,15474542,"4,447.38 "
Department of Health,NHS Sheffield CCG,31/12/2016,Cont Care-Learning Disab(<65),CHC ADULT FULLY FUNDED,HESLEY GROUP,15384330,"57,612.25 "
Department of Health,NHS Sheffield CCG,31/12/2016,C&M-GMS Cost of Drugs -Prescribing,LOCAL ENHANCED SERVICES,HOLLIES MEDICAL CENTRE,15474544,"7,376.53 "
Department of Health,NHS Sheffield CCG,31/12/2016,C&M-GMS DES Extended Hours Access,PRC DELEGATED CO-COMMISSIONING,HOLLIES MEDICAL CENTRE,15474544,"3,786.23 "
Department of Health,NHS Sheffield CCG,31/12/2016,C&M-GMS Global Sum,PRC DELEGATED CO-COMMISSIONING,HOLLIES MEDICAL CENTRE,15474544,"46,698.65 "
Department of Health,NHS Sheffield CCG,31/12/2016,C&M-GMS MPIG Correction Factor,PRC DELEGATED CO-COMMISSIONING,HOLLIES MEDICAL CENTRE,15474544,"2,905.46 "
Department of Health,NHS Sheffield CCG,31/12/2016,C&M-GMS PCO Seniority,PRC DELEGATED CO-COMMISSIONING,HOLLIES MEDICAL CENTRE,15474544,"4,621.99 "
Department of Health,NHS Sheffield CCG,31/12/2016,C&M-GMS Prem Notional Rent,PRC DELEGATED CO-COMMISSIONING,HOLLIES MEDICAL CENTRE,15474544,"3,229.17 "
Department of Health,NHS Sheffield CCG,31/12/2016,C&M-GMS Prof Fees Prescribing,PRC DELEGATED CO-COMMISSIONING,HOLLIES MEDICAL CENTRE,15474544,"2,304.00 "
Department of Health,NHS Sheffield CCG,31/12/2016,C&M-GMS QOF Aspiration,PRC DELEGATED CO-COMMISSIONING,HOLLIES MEDICAL CENTRE,15474544,"5,955.77 "
Department of Health,NHS Sheffield CCG,31/12/2016,Cont Care-Physical Disab (<65),CHC ADULT FULLY FUNDED,HORIZON CARE HOMES LTD,15384290,"39,673.37 "
Department of Health,NHS Sheffield CCG,31/12/2016,C&M-PMS Contract Value,PRC DELEGATED CO-COMMISSIONING,JAUNTY SPRINGS HEALTH CENTRE,15290667,"(26,888.78)"
Department of Health,NHS Sheffield CCG,31/12/2016,C&M-PMS GP Statutory Levy,PRC DELEGATED CO-COMMISSIONING,JAUNTY SPRINGS HEALTH CENTRE,15290667,(109.26)
Department of Health,NHS Sheffield CCG,31/12/2016,C&M-PMS Out of Hours Opt Outs,PRC DELEGATED CO-COMMISSIONING,JAUNTY SPRINGS HEALTH CENTRE,15290667,(22.01)
Department of Health,NHS Sheffield CCG,31/12/2016,C&M-PMS Voluntary Levy,PRC DELEGATED CO-COMMISSIONING,JAUNTY SPRINGS HEALTH CENTRE,15290667,(18.21)
Department of Health,NHS Sheffield CCG,31/12/2016,C&M-PMS Baseline Adjustment,PRC DELEGATED CO-COMMISSIONING,JAUNTY SPRINGS HEALTH CENTRE,15290668,896.00 
Department of Health,NHS Sheffield CCG,31/12/2016,C&M-PMS Contract Value,PRC DELEGATED CO-COMMISSIONING,JAUNTY SPRINGS HEALTH CENTRE,15290668,"54,300.70 "
Department of Health,NHS Sheffield CCG,31/12/2016,C&M-PMS DES Extended Hours Access,PRC DELEGATED CO-COMMISSIONING,JAUNTY SPRINGS HEALTH CENTRE,15290668,"1,606.96 "
Department of Health,NHS Sheffield CCG,31/12/2016,C&M-PMS Out of Hours Opt Outs,PRC DELEGATED CO-COMMISSIONING,JAUNTY SPRINGS HEALTH CENTRE,15290668,"(1,319.36)"
Department of Health,NHS Sheffield CCG,31/12/2016,C&M-PMS PCO Seniority,PRC DELEGATED CO-COMMISSIONING,JAUNTY SPRINGS HEALTH CENTRE,15290668,301.82 
Department of Health,NHS Sheffield CCG,31/12/2016,C&M-PMS Prem Notional Rent,PRC DELEGATED CO-COMMISSIONING,JAUNTY SPRINGS HEALTH CENTRE,15290668,"3,208.34 "
Department of Health,NHS Sheffield CCG,31/12/2016,C&M-PMS Prem Rates,PRC DELEGATED CO-COMMISSIONING,JAUNTY SPRINGS HEALTH CENTRE,15290668,"1,230.08 "
Department of Health,NHS Sheffield CCG,31/12/2016,C&M-PMS QOF Aspiration,PRC DELEGATED CO-COMMISSIONING,JAUNTY SPRINGS HEALTH CENTRE,15290668,"3,987.95 "
Department of Health,NHS Sheffield CCG,31/12/2016,ME - PMS GP Prior Year ERs,PRC DELEGATED CO-COMMISSIONING,JAUNTY SPRINGS HEALTH CENTRE,15290668,629.66 
Department of Health,NHS Sheffield CCG,31/12/2016,ME-PMS GP Prior Year EEs,PRC DELEGATED CO-COMMISSIONING,JAUNTY SPRINGS HEALTH CENTRE,15290668,590.38 
Department of Health,NHS Sheffield CCG,31/12/2016,C&M-GMS IT Comm Servs -GP Practices,PRIMARY CARE IT,KIER BUSINESS SERVICES LTD,15391108,"118,458.00 "
Department of Health,NHS Sheffield CCG,31/12/2016,FM Computer Contracts,BUSINESS INFORMATICS,KIER BUSINESS SERVICES LTD,15391108,"41,803.20 "
Department of Health,NHS Sheffield CCG,31/12/2016,C&M-GMS LES Translation Fees,INTERPRETING SERVICES,LANGUAGELINE SOLUTIONS,15391117,"47,267.23 "
Department of Health,NHS Sheffield CCG,31/12/2016,Hcare Srv Rec NHS Trust-Contract Baseline,ACUTE COMMISSIONING,LEEDS TEACHING HOSPITALS NHS TRUST,15234059,"53,234.57 "
Department of Health,NHS Sheffield CCG,31/12/2016,Cont Care-Funded Nursing Care Allow,FUNDED NURSING CARE,LIFE STYLE CARE (2011) PLC,15384280,"33,727.47 "
Department of Health,NHS Sheffield CCG,31/12/2016,Cont Care-Physical Disab (<65),CHC ADULT FULLY FUNDED,LONGLEY HEALTH CARE LTD,15384296,"109,590.01 "
Department of Health,NHS Sheffield CCG,31/12/2016,Cont Care-Physical Disab (<65),CHC ADULT FULLY FUNDED,LOXLEY HEALTH CARE LTD,15384295,"90,317.28 "
Department of Health,NHS Sheffield CCG,31/12/2016,C&M-PMS Contract Value,PRC DELEGATED CO-COMMISSIONING,MANCHESTER ROAD SURGERY SHEFFIELD,15290671,"(28,217.26)"
Department of Health,NHS Sheffield CCG,31/12/2016,C&M-PMS GP Statutory Levy,PRC DELEGATED CO-COMMISSIONING,MANCHESTER ROAD SURGERY SHEFFIELD,15290671,(138.21)
Department of Health,NHS Sheffield CCG,31/12/2016,C&M-PMS Out of Hours Opt Outs,PRC DELEGATED CO-COMMISSIONING,MANCHESTER ROAD SURGERY SHEFFIELD,15290671,(54.31)
Department of Health,NHS Sheffield CCG,31/12/2016,C&M-PMS Voluntary Levy,PRC DELEGATED CO-COMMISSIONING,MANCHESTER ROAD SURGERY SHEFFIELD,15290671,(23.04)
Department of Health,NHS Sheffield CCG,31/12/2016,C&M-PMS Baseline Adjustment,PRC DELEGATED CO-COMMISSIONING,MANCHESTER ROAD SURGERY SHEFFIELD,15290672,893.25 
Department of Health,NHS Sheffield CCG,31/12/2016,C&M-PMS Contract Value,PRC DELEGATED CO-COMMISSIONING,MANCHESTER ROAD SURGERY SHEFFIELD,15290672,"56,237.61 "
Department of Health,NHS Sheffield CCG,31/12/2016,C&M-PMS Out of Hours Opt Outs,PRC DELEGATED CO-COMMISSIONING,MANCHESTER ROAD SURGERY SHEFFIELD,15290672,"(1,316.03)"
Department of Health,NHS Sheffield CCG,31/12/2016,C&M-PMS PCO Seniority,PRC DELEGATED CO-COMMISSIONING,MANCHESTER ROAD SURGERY SHEFFIELD,15290672,768.70 
Department of Health,NHS Sheffield CCG,31/12/2016,C&M-PMS Prem Cost Rent,PRC DELEGATED CO-COMMISSIONING,MANCHESTER ROAD SURGERY SHEFFIELD,15290672,"3,472.17 "
Department of Health,NHS Sheffield CCG,31/12/2016,C&M-PMS Prem Notional Rent,PRC DELEGATED CO-COMMISSIONING,MANCHESTER ROAD SURGERY SHEFFIELD,15290672,442.91 
Department of Health,NHS Sheffield CCG,31/12/2016,C&M-PMS Prem Rates,PRC DELEGATED CO-COMMISSIONING,MANCHESTER ROAD SURGERY SHEFFIELD,15290672,981.57 
Department of Health,NHS Sheffield CCG,31/12/2016,C&M-PMS Prem Water Rates,PRC DELEGATED CO-COMMISSIONING,MANCHESTER ROAD SURGERY SHEFFIELD,15290672,105.95 
Department of Health,NHS Sheffield CCG,31/12/2016,C&M-PMS QOF Aspiration,PRC DELEGATED CO-COMMISSIONING,MANCHESTER ROAD SURGERY SHEFFIELD,15290672,"3,934.29 "
Department of Health,NHS Sheffield CCG,31/12/2016,C&M-GMS Cost of Drugs -Prescribing,LOCAL ENHANCED SERVICES,MANOR PARK MEDICAL CENTRE SHEFFIELD,15474557,"2,430.86 "
Department of Health,NHS Sheffield CCG,31/12/2016,C&M-GMS DES Extended Hours Access,PRC DELEGATED CO-COMMISSIONING,MANOR PARK MEDICAL CENTRE SHEFFIELD,15474557,"2,132.28 "
Department of Health,NHS Sheffield CCG,31/12/2016,C&M-GMS Global Sum,PRC DELEGATED CO-COMMISSIONING,MANOR PARK MEDICAL CENTRE SHEFFIELD,15474557,"31,913.48 "
Department of Health,NHS Sheffield CCG,31/12/2016,C&M-GMS MPIG Correction Factor,PRC DELEGATED CO-COMMISSIONING,MANOR PARK MEDICAL CENTRE SHEFFIELD,15474557,745.59 
Department of Health,NHS Sheffield CCG,31/12/2016,C&M-GMS PCO Seniority,PRC DELEGATED CO-COMMISSIONING,MANOR PARK MEDICAL CENTRE SHEFFIELD,15474557,"1,433.18 "
Department of Health,NHS Sheffield CCG,31/12/2016,C&M-GMS Prem Notional Rent,PRC DELEGATED CO-COMMISSIONING,MANOR PARK MEDICAL CENTRE SHEFFIELD,15474557,"3,050.00 "
Department of Health,NHS Sheffield CCG,31/12/2016,C&M-GMS Prem Rates,PRC DELEGATED CO-COMMISSIONING,MANOR PARK MEDICAL CENTRE SHEFFIELD,15474557,435.60 
Department of Health,NHS Sheffield CCG,31/12/2016,C&M-GMS Prof Fees Prescribing,PRC DELEGATED CO-COMMISSIONING,MANOR PARK MEDICAL CENTRE SHEFFIELD,15474557,808.09 
Department of Health,NHS Sheffield CCG,31/12/2016,C&M-GMS QOF Aspiration,PRC DELEGATED CO-COMMISSIONING,MANOR PARK MEDICAL CENTRE SHEFFIELD,15474557,"4,079.05 "
Department of Health,NHS Sheffield CCG,31/12/2016,C&M-GMS Cost of Drugs -Prescribing,LOCAL ENHANCED SERVICES,MATHEWS PRACTICE,15474554,"4,413.38 "
Department of Health,NHS Sheffield CCG,31/12/2016,C&M-GMS DES Extended Hours Access,PRC DELEGATED CO-COMMISSIONING,MATHEWS PRACTICE,15474554,"4,517.73 "
Department of Health,NHS Sheffield CCG,31/12/2016,C&M-GMS Global Sum,PRC DELEGATED CO-COMMISSIONING,MATHEWS PRACTICE,15474554,"64,004.83 "
Department of Health,NHS Sheffield CCG,31/12/2016,C&M-GMS MPIG Correction Factor,PRC DELEGATED CO-COMMISSIONING,MATHEWS PRACTICE,15474554,"1,197.92 "
Department of Health,NHS Sheffield CCG,31/12/2016,C&M-GMS PCO Seniority,PRC DELEGATED CO-COMMISSIONING,MATHEWS PRACTICE,15474554,"1,304.91 "
Department of Health,NHS Sheffield CCG,31/12/2016,C&M-GMS Prem Notional Rent,PRC DELEGATED CO-COMMISSIONING,MATHEWS PRACTICE,15474554,"11,476.89 "
Department of Health,NHS Sheffield CCG,31/12/2016,C&M-GMS Prem Rates,PRC DELEGATED CO-COMMISSIONING,MATHEWS PRACTICE,15474554,"1,598.35 "
Department of Health,NHS Sheffield CCG,31/12/2016,C&M-GMS Prof Fees Prescribing,PRC DELEGATED CO-COMMISSIONING,MATHEWS PRACTICE,15474554,"1,446.42 "
Department of Health,NHS Sheffield CCG,31/12/2016,C&M-GMS QOF Aspiration,PRC DELEGATED CO-COMMISSIONING,MATHEWS PRACTICE,15474554,"8,872.15 "
Department of Health,NHS Sheffield CCG,31/12/2016,C&M-PMS Contract Value,PRC DELEGATED CO-COMMISSIONING,MEADOWHEAD GROUP PRACTICE,15290669,"(63,698.77)"
Department of Health,NHS Sheffield CCG,31/12/2016,C&M-PMS GP Statutory Levy,PRC DELEGATED CO-COMMISSIONING,MEADOWHEAD GROUP PRACTICE,15290669,(293.07)
Department of Health,NHS Sheffield CCG,31/12/2016,C&M-PMS Out of Hours Opt Outs,PRC DELEGATED CO-COMMISSIONING,MEADOWHEAD GROUP PRACTICE,15290669,(169.55)
Department of Health,NHS Sheffield CCG,31/12/2016,C&M-PMS Voluntary Levy,PRC DELEGATED CO-COMMISSIONING,MEADOWHEAD GROUP PRACTICE,15290669,(48.85)
Department of Health,NHS Sheffield CCG,31/12/2016,C&M-PMS Contract Value,PRC DELEGATED CO-COMMISSIONING,MEADOWHEAD GROUP PRACTICE,15290670,"136,407.92 "
Department of Health,NHS Sheffield CCG,31/12/2016,C&M-PMS DES Extended Hours Access,PRC DELEGATED CO-COMMISSIONING,MEADOWHEAD GROUP PRACTICE,15290670,"4,616.53 "
Department of Health,NHS Sheffield CCG,31/12/2016,C&M-PMS Out of Hours Opt Outs,PRC DELEGATED CO-COMMISSIONING,MEADOWHEAD GROUP PRACTICE,15290670,"(3,396.41)"
Department of Health,NHS Sheffield CCG,31/12/2016,C&M-PMS PCO Seniority,PRC DELEGATED CO-COMMISSIONING,MEADOWHEAD GROUP PRACTICE,15290670,"1,491.89 "
Department of Health,NHS Sheffield CCG,31/12/2016,C&M-PMS Prem Cost Rent,PRC DELEGATED CO-COMMISSIONING,MEADOWHEAD GROUP PRACTICE,15290670,"3,647.42 "
Department of Health,NHS Sheffield CCG,31/12/2016,C&M-PMS Prem Notional Rent,PRC DELEGATED CO-COMMISSIONING,MEADOWHEAD GROUP PRACTICE,15290670,"3,358.33 "
Department of Health,NHS Sheffield CCG,31/12/2016,C&M-PMS Prem Rates,PRC DELEGATED CO-COMMISSIONING,MEADOWHEAD GROUP PRACTICE,15290670,"1,663.43 "
Department of Health,NHS Sheffield CCG,31/12/2016,C&M-PMS Prem Water Rates,PRC DELEGATED CO-COMMISSIONING,MEADOWHEAD GROUP PRACTICE,15290670,164.86 
Department of Health,NHS Sheffield CCG,31/12/2016,C&M-PMS QOF Aspiration,PRC DELEGATED CO-COMMISSIONING,MEADOWHEAD GROUP PRACTICE,15290670,"9,587.98 "
Department of Health,NHS Sheffield CCG,31/12/2016,C&M-GMS Cost of Drugs -Prescribing,LOCAL ENHANCED SERVICES,MEDICAL CENTRE CRYSTAL PEAKS,15474550,"6,413.89 "
Department of Health,NHS Sheffield CCG,31/12/2016,C&M-GMS DES Extended Hours Access,PRC DELEGATED CO-COMMISSIONING,MEDICAL CENTRE CRYSTAL PEAKS,15474550,"3,086.08 "
Department of Health,NHS Sheffield CCG,31/12/2016,C&M-GMS Global Sum,PRC DELEGATED CO-COMMISSIONING,MEDICAL CENTRE CRYSTAL PEAKS,15474550,"40,997.79 "
Department of Health,NHS Sheffield CCG,31/12/2016,C&M-GMS MPIG Correction Factor,PRC DELEGATED CO-COMMISSIONING,MEDICAL CENTRE CRYSTAL PEAKS,15474550,"2,262.69 "
Department of Health,NHS Sheffield CCG,31/12/2016,C&M-GMS PCO Seniority,PRC DELEGATED CO-COMMISSIONING,MEDICAL CENTRE CRYSTAL PEAKS,15474550,"2,792.25 "
Department of Health,NHS Sheffield CCG,31/12/2016,C&M-GMS Prem Actual Rent,PRC DELEGATED CO-COMMISSIONING,MEDICAL CENTRE CRYSTAL PEAKS,15474550,"17,610.00 "
Department of Health,NHS Sheffield CCG,31/12/2016,C&M-GMS Prem Notional Rent,PRC DELEGATED CO-COMMISSIONING,MEDICAL CENTRE CRYSTAL PEAKS,15474550,270.00 
Department of Health,NHS Sheffield CCG,31/12/2016,C&M-GMS Prem Rates,PRC DELEGATED CO-COMMISSIONING,MEDICAL CENTRE CRYSTAL PEAKS,15474550,"2,037.70 "
Department of Health,NHS Sheffield CCG,31/12/2016,C&M-GMS Prof Fees Prescribing,PRC DELEGATED CO-COMMISSIONING,MEDICAL CENTRE CRYSTAL PEAKS,15474550,"2,110.65 "
Department of Health,NHS Sheffield CCG,31/12/2016,C&M-GMS QOF Aspiration,PRC DELEGATED CO-COMMISSIONING,MEDICAL CENTRE CRYSTAL PEAKS,15474550,"5,451.18 "
Department of Health,NHS Sheffield CCG,31/12/2016,C&M-GMS Cost of Drugs -Prescribing,LOCAL ENHANCED SERVICES,MILL ROAD SURGERY SHEFFIELD,15474559,"6,341.34 "
Department of Health,NHS Sheffield CCG,31/12/2016,C&M-GMS DES Extended Hours Access,PRC DELEGATED CO-COMMISSIONING,MILL ROAD SURGERY SHEFFIELD,15474559,"2,494.70 "
Department of Health,NHS Sheffield CCG,31/12/2016,C&M-GMS DES Learn Dsblty Hlth Chk,PRC DELEGATED CO-COMMISSIONING,MILL ROAD SURGERY SHEFFIELD,15474559,348.00 
Department of Health,NHS Sheffield CCG,31/12/2016,C&M-GMS Global Sum,PRC DELEGATED CO-COMMISSIONING,MILL ROAD SURGERY SHEFFIELD,15474559,"36,081.53 "
Department of Health,NHS Sheffield CCG,31/12/2016,C&M-GMS MPIG Correction Factor,PRC DELEGATED CO-COMMISSIONING,MILL ROAD SURGERY SHEFFIELD,15474559,244.08 
Department of Health,NHS Sheffield CCG,31/12/2016,C&M-GMS PCO Seniority,PRC DELEGATED CO-COMMISSIONING,MILL ROAD SURGERY SHEFFIELD,15474559,"1,518.30 "
Department of Health,NHS Sheffield CCG,31/12/2016,C&M-GMS Prem Notional Rent,PRC DELEGATED CO-COMMISSIONING,MILL ROAD SURGERY SHEFFIELD,15474559,"4,587.50 "
Department of Health,NHS Sheffield CCG,31/12/2016,C&M-GMS Prem Rates,PRC DELEGATED CO-COMMISSIONING,MILL ROAD SURGERY SHEFFIELD,15474559,726.00 
Department of Health,NHS Sheffield CCG,31/12/2016,C&M-GMS Prof Fees Prescribing,PRC DELEGATED CO-COMMISSIONING,MILL ROAD SURGERY SHEFFIELD,15474559,"1,755.66 "
Department of Health,NHS Sheffield CCG,31/12/2016,C&M-GMS QOF Aspiration,PRC DELEGATED CO-COMMISSIONING,MILL ROAD SURGERY SHEFFIELD,15474559,"4,939.72 "
Department of Health,NHS Sheffield CCG,31/12/2016,C&M-PMS Contract Value,PRC DELEGATED CO-COMMISSIONING,MOSBOROUGH HEALTH CENTRE,15290673,"(41,319.94)"
Department of Health,NHS Sheffield CCG,31/12/2016,C&M-PMS GP Statutory Levy,PRC DELEGATED CO-COMMISSIONING,MOSBOROUGH HEALTH CENTRE,15290673,(196.26)
Department of Health,NHS Sheffield CCG,31/12/2016,C&M-PMS Out of Hours Opt Outs,PRC DELEGATED CO-COMMISSIONING,MOSBOROUGH HEALTH CENTRE,15290673,(136.09)
Department of Health,NHS Sheffield CCG,31/12/2016,C&M-PMS Voluntary Levy,PRC DELEGATED CO-COMMISSIONING,MOSBOROUGH HEALTH CENTRE,15290673,(32.71)
Department of Health,NHS Sheffield CCG,31/12/2016,ME - PMS TPS Added Years Adj EEs,PRC DELEGATED CO-COMMISSIONING,MOSBOROUGH HEALTH CENTRE,15290673,(436.59)
Department of Health,NHS Sheffield CCG,31/12/2016,C&M-PMS Baseline Adjustment,PRC DELEGATED CO-COMMISSIONING,MOSBOROUGH HEALTH CENTRE,15290674,"2,506.00 "
Department of Health,NHS Sheffield CCG,31/12/2016,C&M-PMS Contract Value,PRC DELEGATED CO-COMMISSIONING,MOSBOROUGH HEALTH CENTRE,15290674,"86,015.00 "
Department of Health,NHS Sheffield CCG,31/12/2016,C&M-PMS DES Extended Hours Access,PRC DELEGATED CO-COMMISSIONING,MOSBOROUGH HEALTH CENTRE,15290674,"3,073.73 "
Department of Health,NHS Sheffield CCG,31/12/2016,C&M-PMS DES Learn Dsblty Hlth Chk,PRC DELEGATED CO-COMMISSIONING,MOSBOROUGH HEALTH CENTRE,15290674,580.00 
Department of Health,NHS Sheffield CCG,31/12/2016,C&M-PMS Out of Hours Opt Outs,PRC DELEGATED CO-COMMISSIONING,MOSBOROUGH HEALTH CENTRE,15290674,"(2,058.45)"
Department of Health,NHS Sheffield CCG,31/12/2016,C&M-PMS PCO Seniority,PRC DELEGATED CO-COMMISSIONING,MOSBOROUGH HEALTH CENTRE,15290674,"1,662.36 "
Department of Health,NHS Sheffield CCG,31/12/2016,C&M-PMS Prem Notional Rent,PRC DELEGATED CO-COMMISSIONING,MOSBOROUGH HEALTH CENTRE,15290674,"4,091.67 "
Department of Health,NHS Sheffield CCG,31/12/2016,C&M-PMS Prem Rates,PRC DELEGATED CO-COMMISSIONING,MOSBOROUGH HEALTH CENTRE,15290674,665.50 
Department of Health,NHS Sheffield CCG,31/12/2016,C&M-PMS QOF Aspiration,PRC DELEGATED CO-COMMISSIONING,MOSBOROUGH HEALTH CENTRE,15290674,"5,470.61 "
Department of Health,NHS Sheffield CCG,31/12/2016,C&M-PMS Contract Value,PRC DELEGATED CO-COMMISSIONING,NETHERGREEN SURGERY,15290675,"(55,700.59)"
Department of Health,NHS Sheffield CCG,31/12/2016,C&M-PMS GP Statutory Levy,PRC DELEGATED CO-COMMISSIONING,NETHERGREEN SURGERY,15290675,(279.09)
Department of Health,NHS Sheffield CCG,31/12/2016,C&M-PMS Out of Hours Opt Outs,PRC DELEGATED CO-COMMISSIONING,NETHERGREEN SURGERY,15290675,(78.78)
Department of Health,NHS Sheffield CCG,31/12/2016,C&M-PMS Voluntary Levy,PRC DELEGATED CO-COMMISSIONING,NETHERGREEN SURGERY,15290675,(46.52)
Department of Health,NHS Sheffield CCG,31/12/2016,ME - PMS TPS Added Years Adj EEs,PRC DELEGATED CO-COMMISSIONING,NETHERGREEN SURGERY,15290675,(255.16)
Department of Health,NHS Sheffield CCG,31/12/2016,C&M-PMS Baseline Adjustment,PRC DELEGATED CO-COMMISSIONING,NETHERGREEN SURGERY,15290676,"3,753.08 "
Department of Health,NHS Sheffield CCG,31/12/2016,C&M-PMS Contract Value,PRC DELEGATED CO-COMMISSIONING,NETHERGREEN SURGERY,15290676,"112,569.55 "
Department of Health,NHS Sheffield CCG,31/12/2016,C&M-PMS DES Extended Hours Access,PRC DELEGATED CO-COMMISSIONING,NETHERGREEN SURGERY,15290676,"4,427.48 "
Department of Health,NHS Sheffield CCG,31/12/2016,C&M-PMS Out of Hours Opt Outs,PRC DELEGATED CO-COMMISSIONING,NETHERGREEN SURGERY,15290676,"(2,696.76)"
Department of Health,NHS Sheffield CCG,31/12/2016,C&M-PMS PCO Seniority,PRC DELEGATED CO-COMMISSIONING,NETHERGREEN SURGERY,15290676,"1,829.95 "
Department of Health,NHS Sheffield CCG,31/12/2016,C&M-PMS Prem Notional Rent,PRC DELEGATED CO-COMMISSIONING,NETHERGREEN SURGERY,15290676,"5,057.33 "
Department of Health,NHS Sheffield CCG,31/12/2016,C&M-PMS Prem Rates,PRC DELEGATED CO-COMMISSIONING,NETHERGREEN SURGERY,15290676,"1,143.10 "
Department of Health,NHS Sheffield CCG,31/12/2016,C&M-PMS QOF Aspiration,PRC DELEGATED CO-COMMISSIONING,NETHERGREEN SURGERY,15290676,"5,755.28 "
Department of Health,NHS Sheffield CCG,31/12/2016,Charges from CSU,BUSINESS INFORMATICS,NHS NORTH OF ENGLAND CSU,15203772,"30,083.00 "
Department of Health,NHS Sheffield CCG,31/12/2016,Charges from CSU,BUSINESS INFORMATICS,NHS NORTH OF ENGLAND CSU,15481391,"30,083.00 "
Department of Health,NHS Sheffield CCG,31/12/2016,Service Charge,RECHARGES NHS PROPERTY SERVICES LTD,NHS PROPERTY SERVICES LTD,15203442,"98,428.08 "
Department of Health,NHS Sheffield CCG,31/12/2016,Rent,ESTATES AND FACILITIES,NHS PROPERTY SERVICES LTD,15203544,"75,285.07 "
Department of Health,NHS Sheffield CCG,31/12/2016,Rent,ESTATES AND FACILITIES,NHS PROPERTY SERVICES LTD,15203559,"65,211.89 "
Department of Health,NHS Sheffield CCG,31/12/2016,Rent,ESTATES AND FACILITIES,NHS PROPERTY SERVICES LTD,15203575,"(71,494.22)"
Department of Health,NHS Sheffield CCG,31/12/2016,Rent,ESTATES AND FACILITIES,NHS PROPERTY SERVICES LTD,15203636,"75,285.07 "
Department of Health,NHS Sheffield CCG,31/12/2016,Rent,ESTATES AND FACILITIES,NHS PROPERTY SERVICES LTD,15203650,"65,211.89 "
Department of Health,NHS Sheffield CCG,31/12/2016,Service Charge,RECHARGES NHS PROPERTY SERVICES LTD,NHS PROPERTY SERVICES LTD,15203926,"(98,428.08)"
Department of Health,NHS Sheffield CCG,31/12/2016,C&M-GMS Cost of Drugs -Prescribing,LOCAL ENHANCED SERVICES,NORFOLK PARK HEALTH CENTRE,15474564,"3,022.85 "
Department of Health,NHS Sheffield CCG,31/12/2016,C&M-GMS Global Sum,PRC DELEGATED CO-COMMISSIONING,NORFOLK PARK HEALTH CENTRE,15474564,"31,162.50 "
Department of Health,NHS Sheffield CCG,31/12/2016,C&M-GMS MPIG Correction Factor,PRC DELEGATED CO-COMMISSIONING,NORFOLK PARK HEALTH CENTRE,15474564,"1,849.21 "
Department of Health,NHS Sheffield CCG,31/12/2016,C&M-GMS PCO Seniority,PRC DELEGATED CO-COMMISSIONING,NORFOLK PARK HEALTH CENTRE,15474564,"2,924.45 "
Department of Health,NHS Sheffield CCG,31/12/2016,C&M-GMS Prem Healthcentre Rent,PRC DELEGATED CO-COMMISSIONING,NORFOLK PARK HEALTH CENTRE,15474564,"23,089.03 "
Department of Health,NHS Sheffield CCG,31/12/2016,C&M-GMS Prof Fees Prescribing,PRC DELEGATED CO-COMMISSIONING,NORFOLK PARK HEALTH CENTRE,15474564,791.25 
Department of Health,NHS Sheffield CCG,31/12/2016,C&M-GMS QOF Aspiration,PRC DELEGATED CO-COMMISSIONING,NORFOLK PARK HEALTH CENTRE,15474564,"3,691.39 "
Department of Health,NHS Sheffield CCG,31/12/2016,Clinical&Medical-Commercial Sector,PATIENT TRANSPORT,NORTHERN TAXIS LTD,15384319,"161,646.60 "
Department of Health,NHS Sheffield CCG,31/12/2016,C&M-GMS Cost of Drugs -Prescribing,LOCAL ENHANCED SERVICES,NORWOOD MEDICAL CENTRE SHEFFIELD,15474567,"7,908.92 "
Department of Health,NHS Sheffield CCG,31/12/2016,C&M-GMS DES Extended Hours Access,PRC DELEGATED CO-COMMISSIONING,NORWOOD MEDICAL CENTRE SHEFFIELD,15474567,"3,750.13 "
Department of Health,NHS Sheffield CCG,31/12/2016,C&M-GMS DES UNPLANNED ADMISSIONS,PRC DELEGATED CO-COMMISSIONING,NORWOOD MEDICAL CENTRE SHEFFIELD,15474567,"6,081.46 "
Department of Health,NHS Sheffield CCG,31/12/2016,C&M-GMS Global Sum,PRC DELEGATED CO-COMMISSIONING,NORWOOD MEDICAL CENTRE SHEFFIELD,15474567,"57,541.68 "
Department of Health,NHS Sheffield CCG,31/12/2016,C&M-GMS PCO Seniority,PRC DELEGATED CO-COMMISSIONING,NORWOOD MEDICAL CENTRE SHEFFIELD,15474567,"3,353.22 "
Department of Health,NHS Sheffield CCG,31/12/2016,C&M-GMS Prem Notional Rent,PRC DELEGATED CO-COMMISSIONING,NORWOOD MEDICAL CENTRE SHEFFIELD,15474567,"5,187.50 "
Department of Health,NHS Sheffield CCG,31/12/2016,C&M-GMS Prem Rates,PRC DELEGATED CO-COMMISSIONING,NORWOOD MEDICAL CENTRE SHEFFIELD,15474567,981.58 
Department of Health,NHS Sheffield CCG,31/12/2016,C&M-GMS Prof Fees Prescribing,PRC DELEGATED CO-COMMISSIONING,NORWOOD MEDICAL CENTRE SHEFFIELD,15474567,"2,435.04 "
Department of Health,NHS Sheffield CCG,31/12/2016,C&M-GMS QOF Aspiration,PRC DELEGATED CO-COMMISSIONING,NORWOOD MEDICAL CENTRE SHEFFIELD,15474567,"7,632.11 "
Department of Health,NHS Sheffield CCG,31/12/2016,Clinical&Medical-Independent Sector,URGENT CARE,ONE MEDICARE,15529365,"199,286.08 "
Department of Health,NHS Sheffield CCG,31/12/2016,Clinical&Medical-Independent Sector,URGENT CARE,ONE MEDICARE,15529610,"(199,286.08)"
Department of Health,NHS Sheffield CCG,31/12/2016,Clinical&Medical-Independent Sector,ACUTE COMMISSIONING,ONEHEALTH GROUP,15384261,"90,000.00 "
Department of Health,NHS Sheffield CCG,31/12/2016,C&M-GMS Cost of Drugs -Dispensing,LOCAL ENHANCED SERVICES,OUGHTIBRIDGE SURGERY,15474571,"(15,843.50)"
Department of Health,NHS Sheffield CCG,31/12/2016,C&M-GMS GP Statutory Levy,PRC DELEGATED CO-COMMISSIONING,OUGHTIBRIDGE SURGERY,15474571,(174.12)
Department of Health,NHS Sheffield CCG,31/12/2016,C&M-GMS PrscChrgsCll&RmttdbyGPCntra,PRC DELEGATED CO-COMMISSIONING,OUGHTIBRIDGE SURGERY,15474571,(655.20)
Department of Health,NHS Sheffield CCG,31/12/2016,C&M-GMS Voluntary Levy,PRC DELEGATED CO-COMMISSIONING,OUGHTIBRIDGE SURGERY,15474571,(29.02)
Department of Health,NHS Sheffield CCG,31/12/2016,ME - GMS TPS Added Years Adj EEs,PRC DELEGATED CO-COMMISSIONING,OUGHTIBRIDGE SURGERY,15474571,(694.70)
Department of Health,NHS Sheffield CCG,31/12/2016,ME-GMS GP Prior Year AVCs,PRC DELEGATED CO-COMMISSIONING,OUGHTIBRIDGE SURGERY,15474571,(554.35)
Department of Health,NHS Sheffield CCG,31/12/2016,C&M-GMS Cost of Drugs -Dispensing,LOCAL ENHANCED SERVICES,OUGHTIBRIDGE SURGERY,15474572,"35,136.88 "
Department of Health,NHS Sheffield CCG,31/12/2016,C&M-GMS DES Extended Hours Access,PRC DELEGATED CO-COMMISSIONING,OUGHTIBRIDGE SURGERY,15474572,"2,754.53 "
Department of Health,NHS Sheffield CCG,31/12/2016,C&M-GMS Global Sum,PRC DELEGATED CO-COMMISSIONING,OUGHTIBRIDGE SURGERY,15474572,"38,630.05 "
Department of Health,NHS Sheffield CCG,31/12/2016,C&M-GMS PCO Seniority,PRC DELEGATED CO-COMMISSIONING,OUGHTIBRIDGE SURGERY,15474572,"2,642.50 "
Department of Health,NHS Sheffield CCG,31/12/2016,C&M-GMS Prem Notional Rent,PRC DELEGATED CO-COMMISSIONING,OUGHTIBRIDGE SURGERY,15474572,"3,888.33 "
Department of Health,NHS Sheffield CCG,31/12/2016,C&M-GMS Prem Rates,PRC DELEGATED CO-COMMISSIONING,OUGHTIBRIDGE SURGERY,15474572,"1,652.53 "
Department of Health,NHS Sheffield CCG,31/12/2016,C&M-GMS Prof Fees Dispensing,PRC DELEGATED CO-COMMISSIONING,OUGHTIBRIDGE SURGERY,15474572,"5,450.37 "
Department of Health,NHS Sheffield CCG,31/12/2016,C&M-GMS PrscrptnChrgsColl&RmttdbyGP,LOCAL ENHANCED SERVICES,OUGHTIBRIDGE SURGERY,15474572,655.20 
Department of Health,NHS Sheffield CCG,31/12/2016,C&M-GMS QOF Aspiration,PRC DELEGATED CO-COMMISSIONING,OUGHTIBRIDGE SURGERY,15474572,"4,273.35 "
Department of Health,NHS Sheffield CCG,31/12/2016,C&M-PMS Contract Value,PRC DELEGATED CO-COMMISSIONING,OWLTHORPE MEDICAL CENTRE,15290677,"(23,535.41)"
Department of Health,NHS Sheffield CCG,31/12/2016,C&M-PMS GP Statutory Levy,PRC DELEGATED CO-COMMISSIONING,OWLTHORPE MEDICAL CENTRE,15290677,(124.62)
Department of Health,NHS Sheffield CCG,31/12/2016,C&M-PMS Out of Hours Opt Outs,PRC DELEGATED CO-COMMISSIONING,OWLTHORPE MEDICAL CENTRE,15290677,(556.68)
Department of Health,NHS Sheffield CCG,31/12/2016,C&M-PMS Voluntary Levy,PRC DELEGATED CO-COMMISSIONING,OWLTHORPE MEDICAL CENTRE,15290677,(20.77)
Department of Health,NHS Sheffield CCG,31/12/2016,C&M-PMS Baseline Adjustment,PRC DELEGATED CO-COMMISSIONING,OWLTHORPE MEDICAL CENTRE,15290678,"2,999.33 "
Department of Health,NHS Sheffield CCG,31/12/2016,C&M-PMS Contract Value,PRC DELEGATED CO-COMMISSIONING,OWLTHORPE MEDICAL CENTRE,15290678,"56,608.61 "
Department of Health,NHS Sheffield CCG,31/12/2016,C&M-PMS DES Extended Hours Access,PRC DELEGATED CO-COMMISSIONING,OWLTHORPE MEDICAL CENTRE,15290678,"1,731.38 "
Department of Health,NHS Sheffield CCG,31/12/2016,C&M-PMS Out of Hours Opt Outs,PRC DELEGATED CO-COMMISSIONING,OWLTHORPE MEDICAL CENTRE,15290678,"(1,088.92)"
Department of Health,NHS Sheffield CCG,31/12/2016,C&M-PMS PCO Seniority,PRC DELEGATED CO-COMMISSIONING,OWLTHORPE MEDICAL CENTRE,15290678,328.36 
Department of Health,NHS Sheffield CCG,31/12/2016,C&M-PMS Prem Actual Rent,PRC DELEGATED CO-COMMISSIONING,OWLTHORPE MEDICAL CENTRE,15290678,"7,436.33 "
Department of Health,NHS Sheffield CCG,31/12/2016,C&M-PMS Prem Rates,PRC DELEGATED CO-COMMISSIONING,OWLTHORPE MEDICAL CENTRE,15290678,981.58 
Department of Health,NHS Sheffield CCG,31/12/2016,C&M-PMS QOF Aspiration,PRC DELEGATED CO-COMMISSIONING,OWLTHORPE MEDICAL CENTRE,15290678,"3,175.78 "
Department of Health,NHS Sheffield CCG,31/12/2016,C&M-PMS Contract Value,PRC DELEGATED CO-COMMISSIONING,PAGE HALL MEDICAL CENTRE,15290679,"(56,931.27)"
Department of Health,NHS Sheffield CCG,31/12/2016,C&M-PMS GP Statutory Levy,PRC DELEGATED CO-COMMISSIONING,PAGE HALL MEDICAL CENTRE,15290679,(222.18)
Department of Health,NHS Sheffield CCG,31/12/2016,C&M-PMS Out of Hours Opt Outs,PRC DELEGATED CO-COMMISSIONING,PAGE HALL MEDICAL CENTRE,15290679,(64.32)
Department of Health,NHS Sheffield CCG,31/12/2016,C&M-PMS Voluntary Levy,PRC DELEGATED CO-COMMISSIONING,PAGE HALL MEDICAL CENTRE,15290679,(37.03)
Department of Health,NHS Sheffield CCG,31/12/2016,ME - PMS TPS Added Years Adj EEs,PRC DELEGATED CO-COMMISSIONING,PAGE HALL MEDICAL CENTRE,15290679,(605.25)
Department of Health,NHS Sheffield CCG,31/12/2016,C&M-PMS Baseline Adjustment,PRC DELEGATED CO-COMMISSIONING,PAGE HALL MEDICAL CENTRE,15290680,"10,782.17 "
Department of Health,NHS Sheffield CCG,31/12/2016,C&M-PMS Contract Value,PRC DELEGATED CO-COMMISSIONING,PAGE HALL MEDICAL CENTRE,15290680,"106,729.60 "
Department of Health,NHS Sheffield CCG,31/12/2016,C&M-PMS DES Extended Hours Access,PRC DELEGATED CO-COMMISSIONING,PAGE HALL MEDICAL CENTRE,15290680,"3,506.45 "
Department of Health,NHS Sheffield CCG,31/12/2016,C&M-PMS DES Learn Dsblty Hlth Chk,PRC DELEGATED CO-COMMISSIONING,PAGE HALL MEDICAL CENTRE,15290680,"1,276.00 "
Department of Health,NHS Sheffield CCG,31/12/2016,C&M-PMS Out of Hours Opt Outs,PRC DELEGATED CO-COMMISSIONING,PAGE HALL MEDICAL CENTRE,15290680,"(2,367.68)"
Department of Health,NHS Sheffield CCG,31/12/2016,C&M-PMS PCO Seniority,PRC DELEGATED CO-COMMISSIONING,PAGE HALL MEDICAL CENTRE,15290680,"1,039.69 "
Department of Health,NHS Sheffield CCG,31/12/2016,C&M-PMS Prem Notional Rent,PRC DELEGATED CO-COMMISSIONING,PAGE HALL MEDICAL CENTRE,15290680,"4,683.33 "
Department of Health,NHS Sheffield CCG,31/12/2016,C&M-PMS Prem Rates,PRC DELEGATED CO-COMMISSIONING,PAGE HALL MEDICAL CENTRE,15290680,762.30 
Department of Health,NHS Sheffield CCG,31/12/2016,C&M-PMS QOF Aspiration,PRC DELEGATED CO-COMMISSIONING,PAGE HALL MEDICAL CENTRE,15290680,"4,608.67 "
Department of Health,NHS Sheffield CCG,31/12/2016,C&M-PMS Contract Value,PRC DELEGATED CO-COMMISSIONING,PARK HEALTH CENTRE,15290681,"(42,049.68)"
Department of Health,NHS Sheffield CCG,31/12/2016,C&M-PMS GP Statutory Levy,PRC DELEGATED CO-COMMISSIONING,PARK HEALTH CENTRE,15290681,(160.92)
Department of Health,NHS Sheffield CCG,31/12/2016,C&M-PMS Out of Hours Opt Outs,PRC DELEGATED CO-COMMISSIONING,PARK HEALTH CENTRE,15290681,(43.69)
Department of Health,NHS Sheffield CCG,31/12/2016,C&M-PMS Voluntary Levy,PRC DELEGATED CO-COMMISSIONING,PARK HEALTH CENTRE,15290681,(26.82)
Department of Health,NHS Sheffield CCG,31/12/2016,C&M-PMS Baseline Adjustment,PRC DELEGATED CO-COMMISSIONING,PARK HEALTH CENTRE,15290682,"6,580.33 "
Department of Health,NHS Sheffield CCG,31/12/2016,C&M-PMS Contract Value,PRC DELEGATED CO-COMMISSIONING,PARK HEALTH CENTRE,15290682,"81,022.21 "
Department of Health,NHS Sheffield CCG,31/12/2016,C&M-PMS DES Extended Hours Access,PRC DELEGATED CO-COMMISSIONING,PARK HEALTH CENTRE,15290682,"2,552.65 "
Department of Health,NHS Sheffield CCG,31/12/2016,C&M-PMS Out of Hours Opt Outs,PRC DELEGATED CO-COMMISSIONING,PARK HEALTH CENTRE,15290682,"(1,862.98)"
Department of Health,NHS Sheffield CCG,31/12/2016,C&M-PMS PCO Seniority,PRC DELEGATED CO-COMMISSIONING,PARK HEALTH CENTRE,15290682,858.21 
Department of Health,NHS Sheffield CCG,31/12/2016,C&M-PMS Prem Notional Rent,PRC DELEGATED CO-COMMISSIONING,PARK HEALTH CENTRE,15290682,"6,000.00 "
Department of Health,NHS Sheffield CCG,31/12/2016,C&M-PMS Prem Rates,PRC DELEGATED CO-COMMISSIONING,PARK HEALTH CENTRE,15290682,701.80 
Department of Health,NHS Sheffield CCG,31/12/2016,C&M-PMS Prem Water Rates,PRC DELEGATED CO-COMMISSIONING,PARK HEALTH CENTRE,15290682,592.54 
Department of Health,NHS Sheffield CCG,31/12/2016,C&M-PMS QOF Aspiration,PRC DELEGATED CO-COMMISSIONING,PARK HEALTH CENTRE,15290682,"3,864.73 "
Department of Health,NHS Sheffield CCG,31/12/2016,ME - PMS GP Prior Year ERs,PRC DELEGATED CO-COMMISSIONING,PARK HEALTH CENTRE,15290682,"1,144.00 "
Department of Health,NHS Sheffield CCG,31/12/2016,ME-PMS GP Prior Year EEs,PRC DELEGATED CO-COMMISSIONING,PARK HEALTH CENTRE,15290682,"1,000.00 "
Department of Health,NHS Sheffield CCG,31/12/2016,C&M-PMS Contract Value,PRC DELEGATED CO-COMMISSIONING,PITSMOOR SURGERY,15290683,"(63,166.00)"
Department of Health,NHS Sheffield CCG,31/12/2016,C&M-PMS GP Statutory Levy,PRC DELEGATED CO-COMMISSIONING,PITSMOOR SURGERY,15290683,(283.71)
Department of Health,NHS Sheffield CCG,31/12/2016,C&M-PMS Out of Hours Opt Outs,PRC DELEGATED CO-COMMISSIONING,PITSMOOR SURGERY,15290683,(286.08)
Department of Health,NHS Sheffield CCG,31/12/2016,C&M-PMS Voluntary Levy,PRC DELEGATED CO-COMMISSIONING,PITSMOOR SURGERY,15290683,(47.29)
Department of Health,NHS Sheffield CCG,31/12/2016,C&M-PMS Contract Value,PRC DELEGATED CO-COMMISSIONING,PITSMOOR SURGERY,15290684,"137,249.13 "
Department of Health,NHS Sheffield CCG,31/12/2016,C&M-PMS DES Extended Hours Access,PRC DELEGATED CO-COMMISSIONING,PITSMOOR SURGERY,15290684,"4,401.35 "
Department of Health,NHS Sheffield CCG,31/12/2016,C&M-PMS DES Learn Dsblty Hlth Chk,PRC DELEGATED CO-COMMISSIONING,PITSMOOR SURGERY,15290684,"1,856.00 "
Department of Health,NHS Sheffield CCG,31/12/2016,C&M-PMS DES UNPLANNED ADMISSIONS,PRC DELEGATED CO-COMMISSIONING,PITSMOOR SURGERY,15290684,"7,134.82 "
Department of Health,NHS Sheffield CCG,31/12/2016,C&M-PMS Out of Hours Opt Outs,PRC DELEGATED CO-COMMISSIONING,PITSMOOR SURGERY,15290684,"(3,375.08)"
Department of Health,NHS Sheffield CCG,31/12/2016,C&M-PMS PCO Seniority,PRC DELEGATED CO-COMMISSIONING,PITSMOOR SURGERY,15290684,"1,159.29 "
Department of Health,NHS Sheffield CCG,31/12/2016,C&M-PMS Prem Notional Rent,PRC DELEGATED CO-COMMISSIONING,PITSMOOR SURGERY,15290684,"9,479.17 "
Department of Health,NHS Sheffield CCG,31/12/2016,C&M-PMS QOF Aspiration,PRC DELEGATED CO-COMMISSIONING,PITSMOOR SURGERY,15290684,"6,765.92 "
Department of Health,NHS Sheffield CCG,31/12/2016,C&M-PMS Contract Value,PRC DELEGATED CO-COMMISSIONING,PORTER BROOK MEDICAL CENTRE,15290685,"(156,325.06)"
Department of Health,NHS Sheffield CCG,31/12/2016,C&M-PMS GP Statutory Levy,PRC DELEGATED CO-COMMISSIONING,PORTER BROOK MEDICAL CENTRE,15290685,(881.61)
Department of Health,NHS Sheffield CCG,31/12/2016,C&M-PMS Out of Hours Opt Outs,PRC DELEGATED CO-COMMISSIONING,PORTER BROOK MEDICAL CENTRE,15290685,"(2,282.80)"
Department of Health,NHS Sheffield CCG,31/12/2016,C&M-PMS Voluntary Levy,PRC DELEGATED CO-COMMISSIONING,PORTER BROOK MEDICAL CENTRE,15290685,(146.94)
Department of Health,NHS Sheffield CCG,31/12/2016,C&M-PMS Baseline Adjustment,PRC DELEGATED CO-COMMISSIONING,PORTER BROOK MEDICAL CENTRE,15290686,"10,224.25 "
Department of Health,NHS Sheffield CCG,31/12/2016,C&M-PMS Contract Value,PRC DELEGATED CO-COMMISSIONING,PORTER BROOK MEDICAL CENTRE,15290686,"339,218.56 "
Department of Health,NHS Sheffield CCG,31/12/2016,C&M-PMS DES Extended Hours Access,PRC DELEGATED CO-COMMISSIONING,PORTER BROOK MEDICAL CENTRE,15290686,"13,272.49 "
Department of Health,NHS Sheffield CCG,31/12/2016,C&M-PMS Out of Hours Opt Outs,PRC DELEGATED CO-COMMISSIONING,PORTER BROOK MEDICAL CENTRE,15290686,"(6,732.92)"
Department of Health,NHS Sheffield CCG,31/12/2016,C&M-PMS PCO Seniority,PRC DELEGATED CO-COMMISSIONING,PORTER BROOK MEDICAL CENTRE,15290686,"3,262.08 "
Department of Health,NHS Sheffield CCG,31/12/2016,C&M-PMS Prem Actual Rent,PRC DELEGATED CO-COMMISSIONING,PORTER BROOK MEDICAL CENTRE,15290686,"1,333.33 "
Department of Health,NHS Sheffield CCG,31/12/2016,C&M-PMS Prem Notional Rent,PRC DELEGATED CO-COMMISSIONING,PORTER BROOK MEDICAL CENTRE,15290686,"9,559.58 "
Department of Health,NHS Sheffield CCG,31/12/2016,C&M-PMS QOF Aspiration,PRC DELEGATED CO-COMMISSIONING,PORTER BROOK MEDICAL CENTRE,15290686,"8,138.32 "
Department of Health,NHS Sheffield CCG,31/12/2016,C&M-GMS LES Basket of Procedures,LOCAL ENHANCED SERVICES,PRIMARY CARE SHEFFIELD LTD,15203857,"150,000.00 "
Department of Health,NHS Sheffield CCG,31/12/2016,C&M-GMS LES Basket of Procedures,LOCAL ENHANCED SERVICES,PRIMARY CARE SHEFFIELD LTD,15384203,"61,324.50 "
Department of Health,NHS Sheffield CCG,31/12/2016,C&M-OES Childrens Schemes,LOCAL ENHANCED SERVICES,PRIMARY EYECARE (SHEFFIELD) LTD,15207443,700.00 
Department of Health,NHS Sheffield CCG,31/12/2016,C&M-OES Glaucoma,LOCAL ENHANCED SERVICES,PRIMARY EYECARE (SHEFFIELD) LTD,15207443,665.00 
Department of Health,NHS Sheffield CCG,31/12/2016,C&M-OES Intra-ocular Ocular Hypertn,LOCAL ENHANCED SERVICES,PRIMARY EYECARE (SHEFFIELD) LTD,15207443,"1,140.00 "
Department of Health,NHS Sheffield CCG,31/12/2016,C&M-OES PEARS,LOCAL ENHANCED SERVICES,PRIMARY EYECARE (SHEFFIELD) LTD,15207443,"22,745.50 "
Department of Health,NHS Sheffield CCG,31/12/2016,C&M-OES Childrens Schemes,LOCAL ENHANCED SERVICES,PRIMARY EYECARE (SHEFFIELD) LTD,15384311,"1,300.00 "
Department of Health,NHS Sheffield CCG,31/12/2016,C&M-OES Glaucoma,LOCAL ENHANCED SERVICES,PRIMARY EYECARE (SHEFFIELD) LTD,15384311,840.00 
Department of Health,NHS Sheffield CCG,31/12/2016,C&M-OES Intra-ocular Ocular Hypertn,LOCAL ENHANCED SERVICES,PRIMARY EYECARE (SHEFFIELD) LTD,15384311,"1,120.00 "
Department of Health,NHS Sheffield CCG,31/12/2016,C&M-OES PEARS,LOCAL ENHANCED SERVICES,PRIMARY EYECARE (SHEFFIELD) LTD,15384311,"24,282.50 "
Department of Health,NHS Sheffield CCG,31/12/2016,C&M-PMS Contract Value,PRC DELEGATED CO-COMMISSIONING,RICHMOND MEDICAL CENTRE,15290687,"(55,053.34)"
Department of Health,NHS Sheffield CCG,31/12/2016,C&M-PMS GP Statutory Levy,PRC DELEGATED CO-COMMISSIONING,RICHMOND MEDICAL CENTRE,15290687,(252.66)
Department of Health,NHS Sheffield CCG,31/12/2016,C&M-PMS Out of Hours Opt Outs,PRC DELEGATED CO-COMMISSIONING,RICHMOND MEDICAL CENTRE,15290687,(135.65)
Department of Health,NHS Sheffield CCG,31/12/2016,C&M-PMS Voluntary Levy,PRC DELEGATED CO-COMMISSIONING,RICHMOND MEDICAL CENTRE,15290687,(42.11)
Department of Health,NHS Sheffield CCG,31/12/2016,C&M-PMS Baseline Adjustment,PRC DELEGATED CO-COMMISSIONING,RICHMOND MEDICAL CENTRE,15290688,"3,604.75 "
Department of Health,NHS Sheffield CCG,31/12/2016,C&M-PMS Contract Value,PRC DELEGATED CO-COMMISSIONING,RICHMOND MEDICAL CENTRE,15290688,"113,490.12 "
Department of Health,NHS Sheffield CCG,31/12/2016,C&M-PMS DES Extended Hours Access,PRC DELEGATED CO-COMMISSIONING,RICHMOND MEDICAL CENTRE,15290688,"3,971.00 "
Department of Health,NHS Sheffield CCG,31/12/2016,C&M-PMS Out of Hours Opt Outs,PRC DELEGATED CO-COMMISSIONING,RICHMOND MEDICAL CENTRE,15290688,"(2,736.08)"
Department of Health,NHS Sheffield CCG,31/12/2016,C&M-PMS PCO Seniority,PRC DELEGATED CO-COMMISSIONING,RICHMOND MEDICAL CENTRE,15290688,850.96 
Department of Health,NHS Sheffield CCG,31/12/2016,C&M-PMS Prem Notional Rent,PRC DELEGATED CO-COMMISSIONING,RICHMOND MEDICAL CENTRE,15290688,"4,520.00 "
Department of Health,NHS Sheffield CCG,31/12/2016,C&M-PMS Prem Rates,PRC DELEGATED CO-COMMISSIONING,RICHMOND MEDICAL CENTRE,15290688,"1,018.85 "
Department of Health,NHS Sheffield CCG,31/12/2016,C&M-PMS QOF Aspiration,PRC DELEGATED CO-COMMISSIONING,RICHMOND MEDICAL CENTRE,15290688,"7,024.93 "
Department of Health,NHS Sheffield CCG,31/12/2016,Cont Care-Funded Nursing Care Allow,FUNDED NURSING CARE,ROSEBERRY CARE CENTRES,15384274,"36,703.53 "
Department of Health,NHS Sheffield CCG,31/12/2016,Cont Care-Physical Disab (<65),CHC ADULT FULLY FUNDED,ROSEBERRY CARE CENTRES,15384287,"47,660.51 "
Department of Health,NHS Sheffield CCG,31/12/2016,Cont Care-Physical Disab (<65),CHC ADULT FULLY FUNDED,ROSEBERRY CARE CENTRES,15384299,"32,529.22 "
Department of Health,NHS Sheffield CCG,31/12/2016,Hcare Srv Rec Fdtn Trust-Contract Baseline,ACUTE COMMISSIONING,ROTHERHAM NHS FOUNDATION TRUST,15234130,"435,933.00 "
Department of Health,NHS Sheffield CCG,31/12/2016,Hcare Srv Rec Fdtn Trust-Contract Baseline,ACUTE COMMISSIONING,ROTHERHAM NHS FOUNDATION TRUST,15384240,"413,805.00 "
Department of Health,NHS Sheffield CCG,31/12/2016,C&M-PMS Contract Value,PRC DELEGATED CO-COMMISSIONING,RUSTLINGS ROAD MEDICAL CENTRE,15290691,"(25,113.42)"
Department of Health,NHS Sheffield CCG,31/12/2016,C&M-PMS GP Statutory Levy,PRC DELEGATED CO-COMMISSIONING,RUSTLINGS ROAD MEDICAL CENTRE,15290691,(138.66)
Department of Health,NHS Sheffield CCG,31/12/2016,C&M-PMS Out of Hours Opt Outs,PRC DELEGATED CO-COMMISSIONING,RUSTLINGS ROAD MEDICAL CENTRE,15290691,(92.68)
Department of Health,NHS Sheffield CCG,31/12/2016,C&M-PMS Voluntary Levy,PRC DELEGATED CO-COMMISSIONING,RUSTLINGS ROAD MEDICAL CENTRE,15290691,(23.11)
Department of Health,NHS Sheffield CCG,31/12/2016,C&M-PMS Baseline Adjustment,PRC DELEGATED CO-COMMISSIONING,RUSTLINGS ROAD MEDICAL CENTRE,15290692,"2,471.83 "
Department of Health,NHS Sheffield CCG,31/12/2016,C&M-PMS Contract Value,PRC DELEGATED CO-COMMISSIONING,RUSTLINGS ROAD MEDICAL CENTRE,15290692,"51,463.31 "
Department of Health,NHS Sheffield CCG,31/12/2016,C&M-PMS Out of Hours Opt Outs,PRC DELEGATED CO-COMMISSIONING,RUSTLINGS ROAD MEDICAL CENTRE,15290692,"(1,200.08)"
Department of Health,NHS Sheffield CCG,31/12/2016,C&M-PMS PCO Seniority,PRC DELEGATED CO-COMMISSIONING,RUSTLINGS ROAD MEDICAL CENTRE,15290692,791.11 
Department of Health,NHS Sheffield CCG,31/12/2016,C&M-PMS Prem Notional Rent,PRC DELEGATED CO-COMMISSIONING,RUSTLINGS ROAD MEDICAL CENTRE,15290692,"1,167.92 "
Department of Health,NHS Sheffield CCG,31/12/2016,C&M-PMS Prem Rates,PRC DELEGATED CO-COMMISSIONING,RUSTLINGS ROAD MEDICAL CENTRE,15290692,435.60 
Department of Health,NHS Sheffield CCG,31/12/2016,C&M-PMS QOF Aspiration,PRC DELEGATED CO-COMMISSIONING,RUSTLINGS ROAD MEDICAL CENTRE,15290692,"2,262.57 "
Department of Health,NHS Sheffield CCG,31/12/2016,C&M-PMS Baseline Adjustment,PRC DELEGATED CO-COMMISSIONING,SELBORNE ROAD MEDICAL CENTRE,15290690,"1,263.08 "
Department of Health,NHS Sheffield CCG,31/12/2016,C&M-PMS Contract Value,PRC DELEGATED CO-COMMISSIONING,SELBORNE ROAD MEDICAL CENTRE,15290690,"36,040.07 "
Department of Health,NHS Sheffield CCG,31/12/2016,C&M-PMS Out of Hours Opt Outs,PRC DELEGATED CO-COMMISSIONING,SELBORNE ROAD MEDICAL CENTRE,15290690,(865.04)
Department of Health,NHS Sheffield CCG,31/12/2016,C&M-PMS PCO Seniority,PRC DELEGATED CO-COMMISSIONING,SELBORNE ROAD MEDICAL CENTRE,15290690,331.99 
Department of Health,NHS Sheffield CCG,31/12/2016,C&M-PMS Prem Notional Rent,PRC DELEGATED CO-COMMISSIONING,SELBORNE ROAD MEDICAL CENTRE,15290690,"1,677.08 "
Department of Health,NHS Sheffield CCG,31/12/2016,C&M-PMS Prem Rates,PRC DELEGATED CO-COMMISSIONING,SELBORNE ROAD MEDICAL CENTRE,15290690,592.90 
Department of Health,NHS Sheffield CCG,31/12/2016,C&M-PMS QOF Aspiration,PRC DELEGATED CO-COMMISSIONING,SELBORNE ROAD MEDICAL CENTRE,15290690,"2,134.94 "
Department of Health,NHS Sheffield CCG,31/12/2016,Cont Care-Physical Disab (<65),CHC ADULT FULLY FUNDED,SEVEN HILLS NURSING HOME,15384277,"41,084.68 "
Department of Health,NHS Sheffield CCG,31/12/2016,C&M-GMS Cost of Drugs -Prescribing,LOCAL ENHANCED SERVICES,SHARROW LANE MEDICAL CENTRE,15474577,"2,344.96 "
Department of Health,NHS Sheffield CCG,31/12/2016,C&M-GMS DES Extended Hours Access,PRC DELEGATED CO-COMMISSIONING,SHARROW LANE MEDICAL CENTRE,15474577,"1,416.23 "
Department of Health,NHS Sheffield CCG,31/12/2016,C&M-GMS Global Sum,PRC DELEGATED CO-COMMISSIONING,SHARROW LANE MEDICAL CENTRE,15474577,"20,453.84 "
Department of Health,NHS Sheffield CCG,31/12/2016,C&M-GMS MPIG Correction Factor,PRC DELEGATED CO-COMMISSIONING,SHARROW LANE MEDICAL CENTRE,15474577,"3,920.64 "
Department of Health,NHS Sheffield CCG,31/12/2016,C&M-GMS PCO Seniority,PRC DELEGATED CO-COMMISSIONING,SHARROW LANE MEDICAL CENTRE,15474577,264.74 
Department of Health,NHS Sheffield CCG,31/12/2016,C&M-GMS Prem Notional Rent,PRC DELEGATED CO-COMMISSIONING,SHARROW LANE MEDICAL CENTRE,15474577,"2,658.33 "
Department of Health,NHS Sheffield CCG,31/12/2016,C&M-GMS Prem Rates,PRC DELEGATED CO-COMMISSIONING,SHARROW LANE MEDICAL CENTRE,15474577,"1,192.80 "
Department of Health,NHS Sheffield CCG,31/12/2016,C&M-GMS Prof Fees Prescribing,PRC DELEGATED CO-COMMISSIONING,SHARROW LANE MEDICAL CENTRE,15474577,731.12 
Department of Health,NHS Sheffield CCG,31/12/2016,C&M-GMS QOF Aspiration,PRC DELEGATED CO-COMMISSIONING,SHARROW LANE MEDICAL CENTRE,15474577,"2,466.40 "
Department of Health,NHS Sheffield CCG,31/12/2016,Hcare Srv Rec Fdtn Trust-CQUIN,ACUTE CHILDRENS SERVICES,SHEFFIELD CHILDRENS NHS FOUNDATION TRUST,15234025,"32,898.00 "
Department of Health,NHS Sheffield CCG,31/12/2016,Hcare Srv Rec Fdtn Trust-CQUIN,COMMUNITY SERVICES,SHEFFIELD CHILDRENS NHS FOUNDATION TRUST,15234025,"4,084.00 "
Department of Health,NHS Sheffield CCG,31/12/2016,Hcare Srv Rec Fdtn Trust-Contract Baseline,ACUTE CHILDRENS SERVICES,SHEFFIELD CHILDRENS NHS FOUNDATION TRUST,15234025,"223,874.82 "
Department of Health,NHS Sheffield CCG,31/12/2016,Hcare Srv Rec Fdtn Trust-Contract Baseline,CHILD AND ADOLESCENT MENTAL HEALTH,SHEFFIELD CHILDRENS NHS FOUNDATION TRUST,15234025,"351,912.00 "
Department of Health,NHS Sheffield CCG,31/12/2016,Hcare Srv Rec Fdtn Trust-Contract Baseline,COMMUNITY SERVICES,SHEFFIELD CHILDRENS NHS FOUNDATION TRUST,15234025,"326,732.00 "
Department of Health,NHS Sheffield CCG,31/12/2016,Hcare Srv Rec Fdtn Trust-Contract Baseline,HIGH COST DRUGS,SHEFFIELD CHILDRENS NHS FOUNDATION TRUST,15234025,"58,683.00 "
Department of Health,NHS Sheffield CCG,31/12/2016,Hcare Srv Rec Fdtn Trust-Contract Baseline,MENTAL HEALTH CONTRACTS,SHEFFIELD CHILDRENS NHS FOUNDATION TRUST,15234025,"3,332.00 "
Department of Health,NHS Sheffield CCG,31/12/2016,Hcare Srv Rec Fdtn Trust-Contract Baseline,PLANNED CARE,SHEFFIELD CHILDRENS NHS FOUNDATION TRUST,15234025,"1,046,640.00 "
Department of Health,NHS Sheffield CCG,31/12/2016,Hcare Srv Rec Fdtn Trust-Contract Baseline,SAFEGUARDING,SHEFFIELD CHILDRENS NHS FOUNDATION TRUST,15234025,"27,458.00 "
Department of Health,NHS Sheffield CCG,31/12/2016,Hcare Srv Rec Fdtn Trust-Contract Baseline,URGENT CARE,SHEFFIELD CHILDRENS NHS FOUNDATION TRUST,15234025,"965,475.00 "
Department of Health,NHS Sheffield CCG,31/12/2016,Clinical&Medical-Othe Public Sector,COMMUNITY SERVICES,SHEFFIELD CITY COUNCIL,15384305,"26,741.00 "
Department of Health,NHS Sheffield CCG,31/12/2016,Clinical&Medical-Othe Public Sector,MENTAL HEALTH SERVICES - COLLABORATIVE COMMISSIONING,SHEFFIELD CITY COUNCIL,15384305,"16,919.00 "
Department of Health,NHS Sheffield CCG,31/12/2016,Clinical&Medical-Othe Public Sector,REABLEMENT,SHEFFIELD CITY COUNCIL,15384305,"160,417.00 "
Department of Health,NHS Sheffield CCG,31/12/2016,Clinical&Medical-Othe Public Sector,SAFEGUARDING,SHEFFIELD CITY COUNCIL,15384305,"26,425.00 "
Department of Health,NHS Sheffield CCG,31/12/2016,Soc Care-Joint H&C Teams/Working,INTERMEDIATE CARE,SHEFFIELD CITY COUNCIL,15384305,"94,727.00 "
Department of Health,NHS Sheffield CCG,31/12/2016,Soc Care-Learn Disab Servs,LEARNING DIFFICULTIES,SHEFFIELD CITY COUNCIL,15384305,"216,667.00 "
Department of Health,NHS Sheffield CCG,31/12/2016,Soc Care-Other Soc Care,COMMUNITY SERVICES,SHEFFIELD CITY COUNCIL,15384305,"1,051,083.00 "
Department of Health,NHS Sheffield CCG,31/12/2016,Soc Care-Re-ablement services,REABLEMENT,SHEFFIELD CITY COUNCIL,15384305,"56,721.00 "
Department of Health,NHS Sheffield CCG,31/12/2016,Soc Care-Support Prim Care,COMMUNITY SERVICES,SHEFFIELD CITY COUNCIL,15384305,"41,667.00 "
Department of Health,NHS Sheffield CCG,31/12/2016,Cont Care-Physical Disab (65+),CHC ADULT FULLY FUNDED,SHEFFIELD CITY COUNCIL,15531190,"786,161.78 "
Department of Health,NHS Sheffield CCG,31/12/2016,C&M-APMS Contract Value,PRC DELEGATED CO-COMMISSIONING,SHEFFIELD HEALTH & SOCIAL CARE NHS FOUNDATION TRUST,15309243,"116,428.79 "
Department of Health,NHS Sheffield CCG,31/12/2016,C&M-APMS OOH Opt Outs,PRC DELEGATED CO-COMMISSIONING,SHEFFIELD HEALTH & SOCIAL CARE NHS FOUNDATION TRUST,15309243,59.75 
Department of Health,NHS Sheffield CCG,31/12/2016,C&M-APMS Prem Other,PRC DELEGATED CO-COMMISSIONING,SHEFFIELD HEALTH & SOCIAL CARE NHS FOUNDATION TRUST,15309243,"14,988.09 "
Department of Health,NHS Sheffield CCG,31/12/2016,C&M-PMS DES Extended Hours Access,PRC DELEGATED CO-COMMISSIONING,SHEFFIELD HEALTH & SOCIAL CARE NHS FOUNDATION TRUST,15309243,"7,828.95 "
Department of Health,NHS Sheffield CCG,31/12/2016,C&M-PMS Out of Hours Opt Outs,PRC DELEGATED CO-COMMISSIONING,SHEFFIELD HEALTH & SOCIAL CARE NHS FOUNDATION TRUST,15309243,6.75 
Department of Health,NHS Sheffield CCG,31/12/2016,C&M-PMS QOF Aspiration,PRC DELEGATED CO-COMMISSIONING,SHEFFIELD HEALTH & SOCIAL CARE NHS FOUNDATION TRUST,15309243,"12,212.65 "
Department of Health,NHS Sheffield CCG,31/12/2016,C&M-APMS Contract Value,PRC DELEGATED CO-COMMISSIONING,SHEFFIELD HEALTH & SOCIAL CARE NHS FOUNDATION TRUST,15309245,"28,392.36 "
Department of Health,NHS Sheffield CCG,31/12/2016,C&M-APMS OOH Opt Outs,PRC DELEGATED CO-COMMISSIONING,SHEFFIELD HEALTH & SOCIAL CARE NHS FOUNDATION TRUST,15309245,62.51 
Department of Health,NHS Sheffield CCG,31/12/2016,C&M-PMS DES Extended Hours Access,PRC DELEGATED CO-COMMISSIONING,SHEFFIELD HEALTH & SOCIAL CARE NHS FOUNDATION TRUST,15309245,"2,367.88 "
Department of Health,NHS Sheffield CCG,31/12/2016,C&M-PMS Out of Hours Opt Outs,PRC DELEGATED CO-COMMISSIONING,SHEFFIELD HEALTH & SOCIAL CARE NHS FOUNDATION TRUST,15309245,103.97 
Department of Health,NHS Sheffield CCG,31/12/2016,Hcare Srv Rec Fdtn Trust-CQUIN,MENTAL HEALTH CONTRACTS,SHEFFIELD HEALTH & SOCIAL CARE NHS FOUNDATION TRUST,15384264,"778,945.00 "
Department of Health,NHS Sheffield CCG,31/12/2016,Hcare Srv Rec Fdtn Trust-Contract Baseline,IMPROVING ACCESS TO PSYCHOLOGICAL THERAPIES,SHEFFIELD HEALTH & SOCIAL CARE NHS FOUNDATION TRUST,15384264,"1,935,608.00 "
Department of Health,NHS Sheffield CCG,31/12/2016,Hcare Srv Rec Fdtn Trust-Contract Baseline,LEARNING DIFFICULTIES,SHEFFIELD HEALTH & SOCIAL CARE NHS FOUNDATION TRUST,15384264,"2,422,014.00 "
Department of Health,NHS Sheffield CCG,31/12/2016,Hcare Srv Rec Fdtn Trust-Contract Baseline,MENTAL HEALTH CONTRACTS,SHEFFIELD HEALTH & SOCIAL CARE NHS FOUNDATION TRUST,15384264,"(5,619,037.00)"
Department of Health,NHS Sheffield CCG,31/12/2016,Hcare Srv Rec Fdtn Trust-Contract Baseline,MENTAL HEALTH SERVICES - SPECIALIST SERVICES,SHEFFIELD HEALTH & SOCIAL CARE NHS FOUNDATION TRUST,15384264,"6,547,344.34 "
Department of Health,NHS Sheffield CCG,31/12/2016,Cont Care-Foundation Trust,CHC ADULT FULLY FUNDED,SHEFFIELD HEALTH & SOCIAL CARE NHS FOUNDATION TRUST,15384267,"235,291.00 "
Department of Health,NHS Sheffield CCG,31/12/2016,Hcare Srv Rec Fdtn Trust-Contract Baseline,LEARNING DIFFICULTIES,SHEFFIELD HEALTH & SOCIAL CARE NHS FOUNDATION TRUST,15384269,"41,487.00 "
Department of Health,NHS Sheffield CCG,31/12/2016,C&M-PMS Baseline Adjustment,PRC DELEGATED CO-COMMISSIONING,SHEFFIELD MEDICAL CENTRE,15290700,"1,302.58 "
Department of Health,NHS Sheffield CCG,31/12/2016,C&M-PMS Contract Value,PRC DELEGATED CO-COMMISSIONING,SHEFFIELD MEDICAL CENTRE,15290700,"25,462.56 "
Department of Health,NHS Sheffield CCG,31/12/2016,C&M-PMS Out of Hours Opt Outs,PRC DELEGATED CO-COMMISSIONING,SHEFFIELD MEDICAL CENTRE,15290700,(604.00)
Department of Health,NHS Sheffield CCG,31/12/2016,C&M-PMS PCO Seniority,PRC DELEGATED CO-COMMISSIONING,SHEFFIELD MEDICAL CENTRE,15290700,363.76 
Department of Health,NHS Sheffield CCG,31/12/2016,C&M-PMS Prem Notional Rent,PRC DELEGATED CO-COMMISSIONING,SHEFFIELD MEDICAL CENTRE,15290700,"2,191.27 "
Department of Health,NHS Sheffield CCG,31/12/2016,C&M-PMS Prem Rates,PRC DELEGATED CO-COMMISSIONING,SHEFFIELD MEDICAL CENTRE,15290700,859.10 
Department of Health,NHS Sheffield CCG,31/12/2016,C&M-PMS Prem Water Rates,PRC DELEGATED CO-COMMISSIONING,SHEFFIELD MEDICAL CENTRE,15290700,66.64 
Department of Health,NHS Sheffield CCG,31/12/2016,C&M-PMS QOF Aspiration,PRC DELEGATED CO-COMMISSIONING,SHEFFIELD MEDICAL CENTRE,15290700,"1,461.52 "
Department of Health,NHS Sheffield CCG,31/12/2016,Hcare Srv Rec Fdtn Trust-Contract Baseline,ACUTE COMMISSIONING,SHEFFIELD TEACHING HOSPITALS NHS FOUNDATION TRUST,15204183,"2,799,508.00 "
Department of Health,NHS Sheffield CCG,31/12/2016,Hcare Srv Rec Fdtn Trust-Contract Baseline,ACUTE COMMISSIONING,SHEFFIELD TEACHING HOSPITALS NHS FOUNDATION TRUST,15204193,"1,027,677.00 "
Department of Health,NHS Sheffield CCG,31/12/2016,Hcare Srv Rec Fdtn Trust-Contract Baseline,ACUTE COMMISSIONING,SHEFFIELD TEACHING HOSPITALS NHS FOUNDATION TRUST,15204197,"27,293,145.00 "
Department of Health,NHS Sheffield CCG,31/12/2016,Hcare Srv Rec Fdtn Trust-Contract Baseline,ACUTE COMMISSIONING,SHEFFIELD TEACHING HOSPITALS NHS FOUNDATION TRUST,15204204,"328,758.00 "
Department of Health,NHS Sheffield CCG,31/12/2016,Hcare Srv Rec Fdtn Trust-Contract Baseline,ACUTE COMMISSIONING,SHEFFIELD TEACHING HOSPITALS NHS FOUNDATION TRUST,15384234,"204,139.00 "
Department of Health,NHS Sheffield CCG,31/12/2016,Hcare Srv Rec Fdtn Trust-Contract Baseline,ACUTE COMMISSIONING,SHEFFIELD TEACHING HOSPITALS NHS FOUNDATION TRUST,15384235,"204,139.00 "
Department of Health,NHS Sheffield CCG,31/12/2016,Hcare Srv Rec Fdtn Trust-Contract Baseline,ACUTE COMMISSIONING,SHEFFIELD TEACHING HOSPITALS NHS FOUNDATION TRUST,15481541,"(56,600.00)"
Department of Health,NHS Sheffield CCG,31/12/2016,C&M-GMS Cost of Drugs -Prescribing,LOCAL ENHANCED SERVICES,SHIREGREEN MEDICAL CENTRE,15474585,"12,714.10 "
Department of Health,NHS Sheffield CCG,31/12/2016,C&M-GMS DES Extended Hours Access,PRC DELEGATED CO-COMMISSIONING,SHIREGREEN MEDICAL CENTRE,15474585,"3,605.25 "
Department of Health,NHS Sheffield CCG,31/12/2016,C&M-GMS Global Sum,PRC DELEGATED CO-COMMISSIONING,SHIREGREEN MEDICAL CENTRE,15474585,"51,646.60 "
Department of Health,NHS Sheffield CCG,31/12/2016,C&M-GMS MPIG Correction Factor,PRC DELEGATED CO-COMMISSIONING,SHIREGREEN MEDICAL CENTRE,15474585,907.38 
Department of Health,NHS Sheffield CCG,31/12/2016,C&M-GMS PCO Seniority,PRC DELEGATED CO-COMMISSIONING,SHIREGREEN MEDICAL CENTRE,15474585,"3,662.48 "
Department of Health,NHS Sheffield CCG,31/12/2016,C&M-GMS Prem Cost Rent,PRC DELEGATED CO-COMMISSIONING,SHIREGREEN MEDICAL CENTRE,15474585,"1,792.33 "
Department of Health,NHS Sheffield CCG,31/12/2016,C&M-GMS Prem Notional Rent,PRC DELEGATED CO-COMMISSIONING,SHIREGREEN MEDICAL CENTRE,15474585,"5,250.00 "
Department of Health,NHS Sheffield CCG,31/12/2016,C&M-GMS Prem Rates,PRC DELEGATED CO-COMMISSIONING,SHIREGREEN MEDICAL CENTRE,15474585,"2,562.63 "
Department of Health,NHS Sheffield CCG,31/12/2016,C&M-GMS Prem Water Rates,PRC DELEGATED CO-COMMISSIONING,SHIREGREEN MEDICAL CENTRE,15474585,69.41 
Department of Health,NHS Sheffield CCG,31/12/2016,C&M-GMS Prof Fees Prescribing,PRC DELEGATED CO-COMMISSIONING,SHIREGREEN MEDICAL CENTRE,15474585,"2,546.83 "
Department of Health,NHS Sheffield CCG,31/12/2016,C&M-GMS QOF Aspiration,PRC DELEGATED CO-COMMISSIONING,SHIREGREEN MEDICAL CENTRE,15474585,"5,994.92 "
Department of Health,NHS Sheffield CCG,31/12/2016,C&M-PMS Contract Value,PRC DELEGATED CO-COMMISSIONING,SLOAN MEDICAL CENTRE,15290693,"(75,956.58)"
Department of Health,NHS Sheffield CCG,31/12/2016,C&M-PMS GP Statutory Levy,PRC DELEGATED CO-COMMISSIONING,SLOAN MEDICAL CENTRE,15290693,(382.68)
Department of Health,NHS Sheffield CCG,31/12/2016,C&M-PMS Out of Hours Opt Outs,PRC DELEGATED CO-COMMISSIONING,SLOAN MEDICAL CENTRE,15290693,(275.33)
Department of Health,NHS Sheffield CCG,31/12/2016,C&M-PMS Voluntary Levy,PRC DELEGATED CO-COMMISSIONING,SLOAN MEDICAL CENTRE,15290693,(63.78)
Department of Health,NHS Sheffield CCG,31/12/2016,ME - PMS TPS Added Years Adj EEs,PRC DELEGATED CO-COMMISSIONING,SLOAN MEDICAL CENTRE,15290693,(325.88)
Department of Health,NHS Sheffield CCG,31/12/2016,C&M-PMS Baseline Adjustment,PRC DELEGATED CO-COMMISSIONING,SLOAN MEDICAL CENTRE,15290694,330.58 
Department of Health,NHS Sheffield CCG,31/12/2016,C&M-PMS Contract Value,PRC DELEGATED CO-COMMISSIONING,SLOAN MEDICAL CENTRE,15290694,"163,315.65 "
Department of Health,NHS Sheffield CCG,31/12/2016,C&M-PMS DES Learn Dsblty Hlth Chk,PRC DELEGATED CO-COMMISSIONING,SLOAN MEDICAL CENTRE,15290694,116.00 
Department of Health,NHS Sheffield CCG,31/12/2016,C&M-PMS DES UNPLANNED ADMISSIONS,PRC DELEGATED CO-COMMISSIONING,SLOAN MEDICAL CENTRE,15290694,"9,677.36 "
Department of Health,NHS Sheffield CCG,31/12/2016,C&M-PMS Out of Hours Opt Outs,PRC DELEGATED CO-COMMISSIONING,SLOAN MEDICAL CENTRE,15290694,"(4,015.17)"
Department of Health,NHS Sheffield CCG,31/12/2016,C&M-PMS PCO Seniority,PRC DELEGATED CO-COMMISSIONING,SLOAN MEDICAL CENTRE,15290694,819.17 
Department of Health,NHS Sheffield CCG,31/12/2016,C&M-PMS Prem Actual Rent,PRC DELEGATED CO-COMMISSIONING,SLOAN MEDICAL CENTRE,15290694,"15,943.33 "
Department of Health,NHS Sheffield CCG,31/12/2016,C&M-PMS Prem Notional Rent,PRC DELEGATED CO-COMMISSIONING,SLOAN MEDICAL CENTRE,15290694,608.33 
Department of Health,NHS Sheffield CCG,31/12/2016,C&M-PMS Prem Rates,PRC DELEGATED CO-COMMISSIONING,SLOAN MEDICAL CENTRE,15290694,"7,017.60 "
Department of Health,NHS Sheffield CCG,31/12/2016,C&M-PMS QOF Aspiration,PRC DELEGATED CO-COMMISSIONING,SLOAN MEDICAL CENTRE,15290694,"9,653.87 "
Department of Health,NHS Sheffield CCG,31/12/2016,C&M-PMS Cost of Drugs -Prescribing,LOCAL ENHANCED SERVICES,SLOAN MEDICAL CENTRE,15474580,"17,191.66 "
Department of Health,NHS Sheffield CCG,31/12/2016,C&M-PMS PCO Seniority,PRC DELEGATED CO-COMMISSIONING,SLOAN MEDICAL CENTRE,15474580,"5,548.30 "
Department of Health,NHS Sheffield CCG,31/12/2016,C&M-PMS Prof fees Prescribing,PRC DELEGATED CO-COMMISSIONING,SLOAN MEDICAL CENTRE,15474580,"4,384.76 "
Department of Health,NHS Sheffield CCG,31/12/2016,C&M-PMS Contract Value,PRC DELEGATED CO-COMMISSIONING,SOTHALL MEDICAL CENTRE,15290695,"(66,679.18)"
Department of Health,NHS Sheffield CCG,31/12/2016,C&M-PMS GP Statutory Levy,PRC DELEGATED CO-COMMISSIONING,SOTHALL MEDICAL CENTRE,15290695,(308.64)
Department of Health,NHS Sheffield CCG,31/12/2016,C&M-PMS Out of Hours Opt Outs,PRC DELEGATED CO-COMMISSIONING,SOTHALL MEDICAL CENTRE,15290695,(79.33)
Department of Health,NHS Sheffield CCG,31/12/2016,C&M-PMS Voluntary Levy,PRC DELEGATED CO-COMMISSIONING,SOTHALL MEDICAL CENTRE,15290695,(51.44)
Department of Health,NHS Sheffield CCG,31/12/2016,ME - PMS TPS Added Years Adj EEs,PRC DELEGATED CO-COMMISSIONING,SOTHALL MEDICAL CENTRE,15290695,(249.98)
Department of Health,NHS Sheffield CCG,31/12/2016,C&M-PMS Baseline Adjustment,PRC DELEGATED CO-COMMISSIONING,SOTHALL MEDICAL CENTRE,15290696,"6,927.58 "
Department of Health,NHS Sheffield CCG,31/12/2016,C&M-PMS Contract Value,PRC DELEGATED CO-COMMISSIONING,SOTHALL MEDICAL CENTRE,15290696,"132,966.83 "
Department of Health,NHS Sheffield CCG,31/12/2016,C&M-PMS DES Extended Hours Access,PRC DELEGATED CO-COMMISSIONING,SOTHALL MEDICAL CENTRE,15290696,"4,893.45 "
Department of Health,NHS Sheffield CCG,31/12/2016,C&M-PMS Out of Hours Opt Outs,PRC DELEGATED CO-COMMISSIONING,SOTHALL MEDICAL CENTRE,15290696,"(3,170.34)"
Department of Health,NHS Sheffield CCG,31/12/2016,C&M-PMS PCO Seniority,PRC DELEGATED CO-COMMISSIONING,SOTHALL MEDICAL CENTRE,15290696,"2,292.25 "
Department of Health,NHS Sheffield CCG,31/12/2016,C&M-PMS Prem Healthcentre Rent,PRC DELEGATED CO-COMMISSIONING,SOTHALL MEDICAL CENTRE,15290696,"1,302.92 "
Department of Health,NHS Sheffield CCG,31/12/2016,C&M-PMS Prem Notional Rent,PRC DELEGATED CO-COMMISSIONING,SOTHALL MEDICAL CENTRE,15290696,"5,116.67 "
Department of Health,NHS Sheffield CCG,31/12/2016,C&M-PMS Prem Rates,PRC DELEGATED CO-COMMISSIONING,SOTHALL MEDICAL CENTRE,15290696,894.60 
Department of Health,NHS Sheffield CCG,31/12/2016,C&M-PMS QOF Aspiration,PRC DELEGATED CO-COMMISSIONING,SOTHALL MEDICAL CENTRE,15290696,"8,054.95 "
Department of Health,NHS Sheffield CCG,31/12/2016,Clinical&Medical-Independent Sector,MENTAL HEALTH CONTRACTS,SOUTH YORKSHIRE HOUSING ASSOCIATION LTD,15384254,"34,435.00 "
Department of Health,NHS Sheffield CCG,31/12/2016,Cont Care- Adult 100% Fully Funded,CHC ADULT FULLY FUNDED,SOUTH YORKSHIRE HOUSING ASSOCIATION LTD,15384257,"103,928.00 "
Department of Health,NHS Sheffield CCG,31/12/2016,Cont Care-Physical Disab (<65),CHC ADULT FULLY FUNDED,SOUTH YORKSHIRE HOUSING ASSOCIATION LTD,15384300,"74,352.44 "
Department of Health,NHS Sheffield CCG,31/12/2016,C&M-PMS Contract Value,PRC DELEGATED CO-COMMISSIONING,SOUTHEY GREEN MEDICAL CENTRE,15290697,"(22,460.75)"
Department of Health,NHS Sheffield CCG,31/12/2016,C&M-PMS GP Statutory Levy,PRC DELEGATED CO-COMMISSIONING,SOUTHEY GREEN MEDICAL CENTRE,15290697,(87.96)
Department of Health,NHS Sheffield CCG,31/12/2016,C&M-PMS Out of Hours Opt Outs,PRC DELEGATED CO-COMMISSIONING,SOUTHEY GREEN MEDICAL CENTRE,15290697,(16.89)
Department of Health,NHS Sheffield CCG,31/12/2016,C&M-PMS Voluntary Levy,PRC DELEGATED CO-COMMISSIONING,SOUTHEY GREEN MEDICAL CENTRE,15290697,(14.66)
Department of Health,NHS Sheffield CCG,31/12/2016,C&M-PMS Baseline Adjustment,PRC DELEGATED CO-COMMISSIONING,SOUTHEY GREEN MEDICAL CENTRE,15290698,255.08 
Department of Health,NHS Sheffield CCG,31/12/2016,C&M-PMS Contract Value,PRC DELEGATED CO-COMMISSIONING,SOUTHEY GREEN MEDICAL CENTRE,15290698,"46,027.33 "
Department of Health,NHS Sheffield CCG,31/12/2016,C&M-PMS DES Extended Hours Access,PRC DELEGATED CO-COMMISSIONING,SOUTHEY GREEN MEDICAL CENTRE,15290698,"1,286.88 "
Department of Health,NHS Sheffield CCG,31/12/2016,C&M-PMS Out of Hours Opt Outs,PRC DELEGATED CO-COMMISSIONING,SOUTHEY GREEN MEDICAL CENTRE,15290698,"(1,132.90)"
Department of Health,NHS Sheffield CCG,31/12/2016,C&M-PMS PCO Seniority,PRC DELEGATED CO-COMMISSIONING,SOUTHEY GREEN MEDICAL CENTRE,15290698,479.89 
Department of Health,NHS Sheffield CCG,31/12/2016,C&M-PMS Prem Notional Rent,PRC DELEGATED CO-COMMISSIONING,SOUTHEY GREEN MEDICAL CENTRE,15290698,"3,362.50 "
Department of Health,NHS Sheffield CCG,31/12/2016,C&M-PMS Prem Water Rates,PRC DELEGATED CO-COMMISSIONING,SOUTHEY GREEN MEDICAL CENTRE,15290698,"1,382.12 "
Department of Health,NHS Sheffield CCG,31/12/2016,C&M-PMS QOF Aspiration,PRC DELEGATED CO-COMMISSIONING,SOUTHEY GREEN MEDICAL CENTRE,15290698,"2,611.21 "
Department of Health,NHS Sheffield CCG,31/12/2016,C&M-GMS Cost of Drugs -Prescribing,LOCAL ENHANCED SERVICES,STANNINGTON MEDICAL CENTRE,15474589,"6,147.00 "
Department of Health,NHS Sheffield CCG,31/12/2016,C&M-GMS DES Extended Hours Access,PRC DELEGATED CO-COMMISSIONING,STANNINGTON MEDICAL CENTRE,15474589,"1,459.20 "
Department of Health,NHS Sheffield CCG,31/12/2016,C&M-GMS Global Sum,PRC DELEGATED CO-COMMISSIONING,STANNINGTON MEDICAL CENTRE,15474589,"21,018.66 "
Department of Health,NHS Sheffield CCG,31/12/2016,C&M-GMS PCO Seniority,PRC DELEGATED CO-COMMISSIONING,STANNINGTON MEDICAL CENTRE,15474589,"1,669.69 "
Department of Health,NHS Sheffield CCG,31/12/2016,C&M-GMS Prem Notional Rent,PRC DELEGATED CO-COMMISSIONING,STANNINGTON MEDICAL CENTRE,15474589,"2,533.33 "
Department of Health,NHS Sheffield CCG,31/12/2016,C&M-GMS Prem Rates,PRC DELEGATED CO-COMMISSIONING,STANNINGTON MEDICAL CENTRE,15474589,450.12 
Department of Health,NHS Sheffield CCG,31/12/2016,C&M-GMS Prof Fees Prescribing,PRC DELEGATED CO-COMMISSIONING,STANNINGTON MEDICAL CENTRE,15474589,"1,838.93 "
Department of Health,NHS Sheffield CCG,31/12/2016,C&M-GMS QOF Aspiration,PRC DELEGATED CO-COMMISSIONING,STANNINGTON MEDICAL CENTRE,15474589,"2,958.00 "
Department of Health,NHS Sheffield CCG,31/12/2016,C&M-GMS DES Extended Hours Access,PRC DELEGATED CO-COMMISSIONING,STONECROFT MEDICAL CENTRE,15474587,"1,490.77 "
Department of Health,NHS Sheffield CCG,31/12/2016,C&M-GMS DES UNPLANNED ADMISSIONS,PRC DELEGATED CO-COMMISSIONING,STONECROFT MEDICAL CENTRE,15474587,"3,142.37 "
Department of Health,NHS Sheffield CCG,31/12/2016,C&M-GMS Global Sum,PRC DELEGATED CO-COMMISSIONING,STONECROFT MEDICAL CENTRE,15474587,"27,811.09 "
Department of Health,NHS Sheffield CCG,31/12/2016,C&M-GMS MPIG Correction Factor,PRC DELEGATED CO-COMMISSIONING,STONECROFT MEDICAL CENTRE,15474587,"1,236.50 "
Department of Health,NHS Sheffield CCG,31/12/2016,C&M-GMS PCO Seniority,PRC DELEGATED CO-COMMISSIONING,STONECROFT MEDICAL CENTRE,15474587,"2,455.84 "
Department of Health,NHS Sheffield CCG,31/12/2016,C&M-GMS Prem Notional Rent,PRC DELEGATED CO-COMMISSIONING,STONECROFT MEDICAL CENTRE,15474587,"2,808.33 "
Department of Health,NHS Sheffield CCG,31/12/2016,C&M-GMS Prem Rates,PRC DELEGATED CO-COMMISSIONING,STONECROFT MEDICAL CENTRE,15474587,969.15 
Department of Health,NHS Sheffield CCG,31/12/2016,C&M-GMS Prem Water Rates,PRC DELEGATED CO-COMMISSIONING,STONECROFT MEDICAL CENTRE,15474587,437.45 
Department of Health,NHS Sheffield CCG,31/12/2016,C&M-GMS QOF Aspiration,PRC DELEGATED CO-COMMISSIONING,STONECROFT MEDICAL CENTRE,15474587,"3,829.15 "
Department of Health,NHS Sheffield CCG,31/12/2016,Clinical&Medical-Independent Sector,MENTAL HEALTH CONTRACTS,SUSASH GB LTD T/A EAGLE HOUSE,15207442,"30,092.00 "
Department of Health,NHS Sheffield CCG,31/12/2016,Clinical&Medical-Independent Sector,MENTAL HEALTH CONTRACTS,SUSASH GB LTD T/A EAGLE HOUSE,15384251,"30,092.00 "
Department of Health,NHS Sheffield CCG,31/12/2016,C&M-GMS Cost of Drugs -Prescribing,LOCAL ENHANCED SERVICES,TOTLEY RISE MEDICAL CENTRE,15474591,"4,063.39 "
Department of Health,NHS Sheffield CCG,31/12/2016,C&M-GMS Global Sum,PRC DELEGATED CO-COMMISSIONING,TOTLEY RISE MEDICAL CENTRE,15474591,"20,425.63 "
Department of Health,NHS Sheffield CCG,31/12/2016,C&M-GMS MPIG Correction Factor,PRC DELEGATED CO-COMMISSIONING,TOTLEY RISE MEDICAL CENTRE,15474591,206.27 
Department of Health,NHS Sheffield CCG,31/12/2016,C&M-GMS PCO Seniority,PRC DELEGATED CO-COMMISSIONING,TOTLEY RISE MEDICAL CENTRE,15474591,"2,082.50 "
Department of Health,NHS Sheffield CCG,31/12/2016,C&M-GMS Prem Notional Rent,PRC DELEGATED CO-COMMISSIONING,TOTLEY RISE MEDICAL CENTRE,15474591,"1,491.67 "
Department of Health,NHS Sheffield CCG,31/12/2016,C&M-GMS Prem Rates,PRC DELEGATED CO-COMMISSIONING,TOTLEY RISE MEDICAL CENTRE,15474591,131.80 
Department of Health,NHS Sheffield CCG,31/12/2016,C&M-GMS Prof Fees Prescribing,PRC DELEGATED CO-COMMISSIONING,TOTLEY RISE MEDICAL CENTRE,15474591,"1,266.65 "
Department of Health,NHS Sheffield CCG,31/12/2016,C&M-GMS QOF Aspiration,PRC DELEGATED CO-COMMISSIONING,TOTLEY RISE MEDICAL CENTRE,15474591,"2,064.44 "
Department of Health,NHS Sheffield CCG,31/12/2016,C&M-GMS Cost of Drugs -Prescribing,LOCAL ENHANCED SERVICES,TRAMWAYS MEDICAL CENTRE,15474593,"7,640.52 "
Department of Health,NHS Sheffield CCG,31/12/2016,C&M-GMS DES Extended Hours Access,PRC DELEGATED CO-COMMISSIONING,TRAMWAYS MEDICAL CENTRE,15474593,"4,044.63 "
Department of Health,NHS Sheffield CCG,31/12/2016,C&M-GMS Global Sum,PRC DELEGATED CO-COMMISSIONING,TRAMWAYS MEDICAL CENTRE,15474593,"55,469.69 "
Department of Health,NHS Sheffield CCG,31/12/2016,C&M-GMS PCO Seniority,PRC DELEGATED CO-COMMISSIONING,TRAMWAYS MEDICAL CENTRE,15474593,"6,729.28 "
Department of Health,NHS Sheffield CCG,31/12/2016,C&M-GMS Prem Cost Rent,PRC DELEGATED CO-COMMISSIONING,TRAMWAYS MEDICAL CENTRE,15474593,"4,012.75 "
Department of Health,NHS Sheffield CCG,31/12/2016,C&M-GMS Prem Rates,PRC DELEGATED CO-COMMISSIONING,TRAMWAYS MEDICAL CENTRE,15474593,774.40 
Department of Health,NHS Sheffield CCG,31/12/2016,C&M-GMS Prem Water Rates,PRC DELEGATED CO-COMMISSIONING,TRAMWAYS MEDICAL CENTRE,15474593,296.27 
Department of Health,NHS Sheffield CCG,31/12/2016,C&M-GMS Prof Fees Prescribing,PRC DELEGATED CO-COMMISSIONING,TRAMWAYS MEDICAL CENTRE,15474593,"2,056.90 "
Department of Health,NHS Sheffield CCG,31/12/2016,C&M-GMS QOF Aspiration,PRC DELEGATED CO-COMMISSIONING,TRAMWAYS MEDICAL CENTRE,15474593,"5,763.61 "
Department of Health,NHS Sheffield CCG,31/12/2016,Hcare Srv Rec Fdtn Trust-Non Contract,NCAS/OATS,UNIVERSITY COLLEGE LONDON HOSPITALS NHS FOUNDATION TRUST,15481131,"64,174.00 "
Department of Health,NHS Sheffield CCG,31/12/2016,C&M-PMS Contract Value,PRC DELEGATED CO-COMMISSIONING,UNIVERSITY HEALTH SERVICE,15290701,"(124,234.04)"
Department of Health,NHS Sheffield CCG,31/12/2016,C&M-PMS GP Statutory Levy,PRC DELEGATED CO-COMMISSIONING,UNIVERSITY HEALTH SERVICE,15290701,(967.35)
Department of Health,NHS Sheffield CCG,31/12/2016,C&M-PMS Out of Hours Opt Outs,PRC DELEGATED CO-COMMISSIONING,UNIVERSITY HEALTH SERVICE,15290701,"(2,582.77)"
Department of Health,NHS Sheffield CCG,31/12/2016,C&M-PMS Voluntary Levy,PRC DELEGATED CO-COMMISSIONING,UNIVERSITY HEALTH SERVICE,15290701,(161.23)
Department of Health,NHS Sheffield CCG,31/12/2016,C&M-PMS Contract Value,PRC DELEGATED CO-COMMISSIONING,UNIVERSITY HEALTH SERVICE,15290702,"296,172.86 "
Department of Health,NHS Sheffield CCG,31/12/2016,C&M-PMS DES UNPLANNED ADMISSIONS,PRC DELEGATED CO-COMMISSIONING,UNIVERSITY HEALTH SERVICE,15290702,"22,564.08 "
Department of Health,NHS Sheffield CCG,31/12/2016,C&M-PMS Out of Hours Opt Outs,PRC DELEGATED CO-COMMISSIONING,UNIVERSITY HEALTH SERVICE,15290702,"(6,163.37)"
Department of Health,NHS Sheffield CCG,31/12/2016,C&M-PMS PCO Seniority,PRC DELEGATED CO-COMMISSIONING,UNIVERSITY HEALTH SERVICE,15290702,"2,372.79 "
Department of Health,NHS Sheffield CCG,31/12/2016,C&M-PMS Prem Notional Rent,PRC DELEGATED CO-COMMISSIONING,UNIVERSITY HEALTH SERVICE,15290702,"15,833.33 "
Department of Health,NHS Sheffield CCG,31/12/2016,C&M-PMS QOF Aspiration,PRC DELEGATED CO-COMMISSIONING,UNIVERSITY HEALTH SERVICE,15290702,"2,932.96 "
Department of Health,NHS Sheffield CCG,31/12/2016,C&M-GMS Cost of Drugs -Prescribing,LOCAL ENHANCED SERVICES,UPPERTHORPE MEDICAL CENTRE,15474596,"13,076.81 "
Department of Health,NHS Sheffield CCG,31/12/2016,C&M-GMS DES Extended Hours Access,PRC DELEGATED CO-COMMISSIONING,UPPERTHORPE MEDICAL CENTRE,15474596,"5,292.93 "
Department of Health,NHS Sheffield CCG,31/12/2016,C&M-GMS Global Sum,PRC DELEGATED CO-COMMISSIONING,UPPERTHORPE MEDICAL CENTRE,15474596,"74,050.19 "
Department of Health,NHS Sheffield CCG,31/12/2016,C&M-GMS MPIG Correction Factor,PRC DELEGATED CO-COMMISSIONING,UPPERTHORPE MEDICAL CENTRE,15474596,"2,651.47 "
Department of Health,NHS Sheffield CCG,31/12/2016,C&M-GMS PCO Seniority,PRC DELEGATED CO-COMMISSIONING,UPPERTHORPE MEDICAL CENTRE,15474596,"4,717.63 "
Department of Health,NHS Sheffield CCG,31/12/2016,C&M-GMS Prem Notional Rent,PRC DELEGATED CO-COMMISSIONING,UPPERTHORPE MEDICAL CENTRE,15474596,"2,497.83 "
Department of Health,NHS Sheffield CCG,31/12/2016,C&M-GMS Prem Rates,PRC DELEGATED CO-COMMISSIONING,UPPERTHORPE MEDICAL CENTRE,15474596,"1,857.65 "
Department of Health,NHS Sheffield CCG,31/12/2016,C&M-GMS Prof Fees Prescribing,PRC DELEGATED CO-COMMISSIONING,UPPERTHORPE MEDICAL CENTRE,15474596,"3,734.97 "
Department of Health,NHS Sheffield CCG,31/12/2016,C&M-GMS QOF Aspiration,PRC DELEGATED CO-COMMISSIONING,UPPERTHORPE MEDICAL CENTRE,15474596,"8,458.19 "
Department of Health,NHS Sheffield CCG,31/12/2016,C&M-PMS Contract Value,PRC DELEGATED CO-COMMISSIONING,UPWELL STREET SURGERY,15290703,"(39,217.92)"
Department of Health,NHS Sheffield CCG,31/12/2016,C&M-PMS GP Statutory Levy,PRC DELEGATED CO-COMMISSIONING,UPWELL STREET SURGERY,15290703,(143.91)
Department of Health,NHS Sheffield CCG,31/12/2016,C&M-PMS Out of Hours Opt Outs,PRC DELEGATED CO-COMMISSIONING,UPWELL STREET SURGERY,15290703,(25.34)
Department of Health,NHS Sheffield CCG,31/12/2016,C&M-PMS Voluntary Levy,PRC DELEGATED CO-COMMISSIONING,UPWELL STREET SURGERY,15290703,(23.99)
Department of Health,NHS Sheffield CCG,31/12/2016,ME - PMS TPS Added Years Adj EEs,PRC DELEGATED CO-COMMISSIONING,UPWELL STREET SURGERY,15290703,(710.01)
Department of Health,NHS Sheffield CCG,31/12/2016,C&M-PMS Baseline Adjustment,PRC DELEGATED CO-COMMISSIONING,UPWELL STREET SURGERY,15290704,"4,009.00 "
Department of Health,NHS Sheffield CCG,31/12/2016,C&M-PMS Contract Value,PRC DELEGATED CO-COMMISSIONING,UPWELL STREET SURGERY,15290704,"72,939.71 "
Department of Health,NHS Sheffield CCG,31/12/2016,C&M-PMS DES Extended Hours Access,PRC DELEGATED CO-COMMISSIONING,UPWELL STREET SURGERY,15290704,"2,320.38 "
Department of Health,NHS Sheffield CCG,31/12/2016,C&M-PMS Out of Hours Opt Outs,PRC DELEGATED CO-COMMISSIONING,UPWELL STREET SURGERY,15290704,"(1,614.36)"
Department of Health,NHS Sheffield CCG,31/12/2016,C&M-PMS PCO Seniority,PRC DELEGATED CO-COMMISSIONING,UPWELL STREET SURGERY,15290704,"1,485.27 "
Department of Health,NHS Sheffield CCG,31/12/2016,C&M-PMS Prem Notional Rent,PRC DELEGATED CO-COMMISSIONING,UPWELL STREET SURGERY,15290704,"8,137.50 "
Department of Health,NHS Sheffield CCG,31/12/2016,C&M-PMS Prem Rates,PRC DELEGATED CO-COMMISSIONING,UPWELL STREET SURGERY,15290704,880.10 
Department of Health,NHS Sheffield CCG,31/12/2016,C&M-PMS Prem Water Rates,PRC DELEGATED CO-COMMISSIONING,UPWELL STREET SURGERY,15290704,108.71 
Department of Health,NHS Sheffield CCG,31/12/2016,C&M-PMS QOF Aspiration,PRC DELEGATED CO-COMMISSIONING,UPWELL STREET SURGERY,15290704,"4,428.32 "
Department of Health,NHS Sheffield CCG,31/12/2016,C&M-PMS Contract Value,PRC DELEGATED CO-COMMISSIONING,VALLEY MEDICAL CENTRE,15290705,"(64,140.88)"
Department of Health,NHS Sheffield CCG,31/12/2016,C&M-PMS GP Statutory Levy,PRC DELEGATED CO-COMMISSIONING,VALLEY MEDICAL CENTRE,15290705,(285.72)
Department of Health,NHS Sheffield CCG,31/12/2016,C&M-PMS Out of Hours Opt Outs,PRC DELEGATED CO-COMMISSIONING,VALLEY MEDICAL CENTRE,15290705,(175.93)
Department of Health,NHS Sheffield CCG,31/12/2016,C&M-PMS Voluntary Levy,PRC DELEGATED CO-COMMISSIONING,VALLEY MEDICAL CENTRE,15290705,(47.62)
Department of Health,NHS Sheffield CCG,31/12/2016,ME - PMS TPS Added Years Adj EEs,PRC DELEGATED CO-COMMISSIONING,VALLEY MEDICAL CENTRE,15290705,(237.26)
Department of Health,NHS Sheffield CCG,31/12/2016,C&M-PMS Baseline Adjustment,PRC DELEGATED CO-COMMISSIONING,VALLEY MEDICAL CENTRE,15290706,542.25 
Department of Health,NHS Sheffield CCG,31/12/2016,C&M-PMS Contract Value,PRC DELEGATED CO-COMMISSIONING,VALLEY MEDICAL CENTRE,15290706,"136,358.66 "
Department of Health,NHS Sheffield CCG,31/12/2016,C&M-PMS Out of Hours Opt Outs,PRC DELEGATED CO-COMMISSIONING,VALLEY MEDICAL CENTRE,15290706,"(3,364.05)"
Department of Health,NHS Sheffield CCG,31/12/2016,C&M-PMS PCO Seniority,PRC DELEGATED CO-COMMISSIONING,VALLEY MEDICAL CENTRE,15290706,"2,607.04 "
Department of Health,NHS Sheffield CCG,31/12/2016,C&M-PMS Prem Actual Rent,PRC DELEGATED CO-COMMISSIONING,VALLEY MEDICAL CENTRE,15290706,"23,868.60 "
Department of Health,NHS Sheffield CCG,31/12/2016,C&M-PMS Prem Rates,PRC DELEGATED CO-COMMISSIONING,VALLEY MEDICAL CENTRE,15290706,969.15 
Department of Health,NHS Sheffield CCG,31/12/2016,C&M-PMS QOF Aspiration,PRC DELEGATED CO-COMMISSIONING,VALLEY MEDICAL CENTRE,15290706,"8,284.48 "
Department of Health,NHS Sheffield CCG,31/12/2016,C&M-GMS Cost of Drugs -Prescribing,LOCAL ENHANCED SERVICES,WALKLEY HOUSE MEDICAL CENTRE,15474602,"8,349.49 "
Department of Health,NHS Sheffield CCG,31/12/2016,C&M-GMS Global Sum,PRC DELEGATED CO-COMMISSIONING,WALKLEY HOUSE MEDICAL CENTRE,15474602,"72,758.39 "
Department of Health,NHS Sheffield CCG,31/12/2016,C&M-GMS PCO Seniority,PRC DELEGATED CO-COMMISSIONING,WALKLEY HOUSE MEDICAL CENTRE,15474602,"7,482.10 "
Department of Health,NHS Sheffield CCG,31/12/2016,C&M-GMS Prem Notional Rent,PRC DELEGATED CO-COMMISSIONING,WALKLEY HOUSE MEDICAL CENTRE,15474602,"5,581.34 "
Department of Health,NHS Sheffield CCG,31/12/2016,C&M-GMS Prem Rates,PRC DELEGATED CO-COMMISSIONING,WALKLEY HOUSE MEDICAL CENTRE,15474602,"1,217.65 "
Department of Health,NHS Sheffield CCG,31/12/2016,C&M-GMS Prof Fees Prescribing,PRC DELEGATED CO-COMMISSIONING,WALKLEY HOUSE MEDICAL CENTRE,15474602,"2,633.50 "
Department of Health,NHS Sheffield CCG,31/12/2016,C&M-GMS QOF Aspiration,PRC DELEGATED CO-COMMISSIONING,WALKLEY HOUSE MEDICAL CENTRE,15474602,"8,133.06 "
Department of Health,NHS Sheffield CCG,31/12/2016,C&M-GMS Cost of Drugs -Prescribing,LOCAL ENHANCED SERVICES,WHITE HOUSE SURGERY SHEFFIELD,15474600,"3,484.74 "
Department of Health,NHS Sheffield CCG,31/12/2016,C&M-GMS DES Extended Hours Access,PRC DELEGATED CO-COMMISSIONING,WHITE HOUSE SURGERY SHEFFIELD,15474600,"2,961.15 "
Department of Health,NHS Sheffield CCG,31/12/2016,C&M-GMS Global Sum,PRC DELEGATED CO-COMMISSIONING,WHITE HOUSE SURGERY SHEFFIELD,15474600,"44,578.24 "
Department of Health,NHS Sheffield CCG,31/12/2016,C&M-GMS MPIG Correction Factor,PRC DELEGATED CO-COMMISSIONING,WHITE HOUSE SURGERY SHEFFIELD,15474600,"2,782.59 "
Department of Health,NHS Sheffield CCG,31/12/2016,C&M-GMS PCO Seniority,PRC DELEGATED CO-COMMISSIONING,WHITE HOUSE SURGERY SHEFFIELD,15474600,"3,067.94 "
Department of Health,NHS Sheffield CCG,31/12/2016,C&M-GMS Prem Notional Rent,PRC DELEGATED CO-COMMISSIONING,WHITE HOUSE SURGERY SHEFFIELD,15474600,"9,104.17 "
Department of Health,NHS Sheffield CCG,31/12/2016,C&M-GMS Prem Rates,PRC DELEGATED CO-COMMISSIONING,WHITE HOUSE SURGERY SHEFFIELD,15474600,"1,801.62 "
Department of Health,NHS Sheffield CCG,31/12/2016,C&M-GMS Prem Water Rates,PRC DELEGATED CO-COMMISSIONING,WHITE HOUSE SURGERY SHEFFIELD,15474600,224.33 
Department of Health,NHS Sheffield CCG,31/12/2016,C&M-GMS Prof Fees Prescribing,PRC DELEGATED CO-COMMISSIONING,WHITE HOUSE SURGERY SHEFFIELD,15474600,"1,094.29 "
Department of Health,NHS Sheffield CCG,31/12/2016,C&M-GMS QOF Aspiration,PRC DELEGATED CO-COMMISSIONING,WHITE HOUSE SURGERY SHEFFIELD,15474600,"5,341.68 "
Department of Health,NHS Sheffield CCG,31/12/2016,Cont Care-Physical Disab (<65),CHC ADULT FULLY FUNDED,WILLOWBECK HEALTH CARE LTD,15384291,"195,622.88 "
Department of Health,NHS Sheffield CCG,31/12/2016,C&M-PMS Contract Value,PRC DELEGATED CO-COMMISSIONING,WINCOBANK MEDICAL CENTRE,15290711,"(48,960.67)"
Department of Health,NHS Sheffield CCG,31/12/2016,C&M-PMS GP Statutory Levy,PRC DELEGATED CO-COMMISSIONING,WINCOBANK MEDICAL CENTRE,15290711,(222.03)
Department of Health,NHS Sheffield CCG,31/12/2016,C&M-PMS Out of Hours Opt Outs,PRC DELEGATED CO-COMMISSIONING,WINCOBANK MEDICAL CENTRE,15290711,(150.79)
Department of Health,NHS Sheffield CCG,31/12/2016,C&M-PMS Voluntary Levy,PRC DELEGATED CO-COMMISSIONING,WINCOBANK MEDICAL CENTRE,15290711,(37.01)
Department of Health,NHS Sheffield CCG,31/12/2016,C&M-PMS Baseline Adjustment,PRC DELEGATED CO-COMMISSIONING,WINCOBANK MEDICAL CENTRE,15290712,19.92 
Department of Health,NHS Sheffield CCG,31/12/2016,C&M-PMS Contract Value,PRC DELEGATED CO-COMMISSIONING,WINCOBANK MEDICAL CENTRE,15290712,"104,955.52 "
Department of Health,NHS Sheffield CCG,31/12/2016,C&M-PMS DES Extended Hours Access,PRC DELEGATED CO-COMMISSIONING,WINCOBANK MEDICAL CENTRE,15290712,"3,460.38 "
Department of Health,NHS Sheffield CCG,31/12/2016,C&M-PMS Out of Hours Opt Outs,PRC DELEGATED CO-COMMISSIONING,WINCOBANK MEDICAL CENTRE,15290712,"(2,593.58)"
Department of Health,NHS Sheffield CCG,31/12/2016,C&M-PMS PCO Seniority,PRC DELEGATED CO-COMMISSIONING,WINCOBANK MEDICAL CENTRE,15290712,907.17 
Department of Health,NHS Sheffield CCG,31/12/2016,C&M-PMS Prem Healthcentre Rent,PRC DELEGATED CO-COMMISSIONING,WINCOBANK MEDICAL CENTRE,15290712,"40,840.62 "
Department of Health,NHS Sheffield CCG,31/12/2016,C&M-PMS QOF Aspiration,PRC DELEGATED CO-COMMISSIONING,WINCOBANK MEDICAL CENTRE,15290712,"6,279.11 "
Department of Health,NHS Sheffield CCG,31/12/2016,C&M-PMS Contract Value,PRC DELEGATED CO-COMMISSIONING,WOODHOUSE HEALTH CENTRE,15290707,"(89,176.40)"
Department of Health,NHS Sheffield CCG,31/12/2016,C&M-PMS GP Statutory Levy,PRC DELEGATED CO-COMMISSIONING,WOODHOUSE HEALTH CENTRE,15290707,(368.82)
Department of Health,NHS Sheffield CCG,31/12/2016,C&M-PMS Out of Hours Opt Outs,PRC DELEGATED CO-COMMISSIONING,WOODHOUSE HEALTH CENTRE,15290707,(89.74)
Department of Health,NHS Sheffield CCG,31/12/2016,C&M-PMS Voluntary Levy,PRC DELEGATED CO-COMMISSIONING,WOODHOUSE HEALTH CENTRE,15290707,(61.47)
Department of Health,NHS Sheffield CCG,31/12/2016,ME - PMS TPS Added Years Adj EEs,PRC DELEGATED CO-COMMISSIONING,WOODHOUSE HEALTH CENTRE,15290707,(826.25)
Department of Health,NHS Sheffield CCG,31/12/2016,C&M-PMS Baseline Adjustment,PRC DELEGATED CO-COMMISSIONING,WOODHOUSE HEALTH CENTRE,15290708,"5,552.58 "
Department of Health,NHS Sheffield CCG,31/12/2016,C&M-PMS Contract Value,PRC DELEGATED CO-COMMISSIONING,WOODHOUSE HEALTH CENTRE,15290708,"180,884.86 "
Department of Health,NHS Sheffield CCG,31/12/2016,C&M-PMS DES Extended Hours Access,PRC DELEGATED CO-COMMISSIONING,WOODHOUSE HEALTH CENTRE,15290708,"5,875.28 "
Department of Health,NHS Sheffield CCG,31/12/2016,C&M-PMS Out of Hours Opt Outs,PRC DELEGATED CO-COMMISSIONING,WOODHOUSE HEALTH CENTRE,15290708,"(4,394.46)"
Department of Health,NHS Sheffield CCG,31/12/2016,C&M-PMS PCO Seniority,PRC DELEGATED CO-COMMISSIONING,WOODHOUSE HEALTH CENTRE,15290708,"2,100.80 "
Department of Health,NHS Sheffield CCG,31/12/2016,C&M-PMS Prem Notional Rent,PRC DELEGATED CO-COMMISSIONING,WOODHOUSE HEALTH CENTRE,15290708,"6,338.59 "
Department of Health,NHS Sheffield CCG,31/12/2016,C&M-PMS Prem Rates,PRC DELEGATED CO-COMMISSIONING,WOODHOUSE HEALTH CENTRE,15290708,"1,080.97 "
Department of Health,NHS Sheffield CCG,31/12/2016,C&M-PMS QOF Aspiration,PRC DELEGATED CO-COMMISSIONING,WOODHOUSE HEALTH CENTRE,15290708,"13,394.35 "
Department of Health,NHS Sheffield CCG,31/12/2016,C&M-PMS Contract Value,PRC DELEGATED CO-COMMISSIONING,WOODSEATS MEDICAL CENTRE,15290709,"(55,148.92)"
Department of Health,NHS Sheffield CCG,31/12/2016,C&M-PMS GP Statutory Levy,PRC DELEGATED CO-COMMISSIONING,WOODSEATS MEDICAL CENTRE,15290709,(270.39)
Department of Health,NHS Sheffield CCG,31/12/2016,C&M-PMS Out of Hours Opt Outs,PRC DELEGATED CO-COMMISSIONING,WOODSEATS MEDICAL CENTRE,15290709,(202.37)
Department of Health,NHS Sheffield CCG,31/12/2016,C&M-PMS Voluntary Levy,PRC DELEGATED CO-COMMISSIONING,WOODSEATS MEDICAL CENTRE,15290709,(45.07)
Department of Health,NHS Sheffield CCG,31/12/2016,ME - PMS TPS Added Years Adj EEs,PRC DELEGATED CO-COMMISSIONING,WOODSEATS MEDICAL CENTRE,15290709,(251.33)
Department of Health,NHS Sheffield CCG,31/12/2016,C&M-PMS Baseline Adjustment,PRC DELEGATED CO-COMMISSIONING,WOODSEATS MEDICAL CENTRE,15290710,794.17 
Department of Health,NHS Sheffield CCG,31/12/2016,C&M-PMS Contract Value,PRC DELEGATED CO-COMMISSIONING,WOODSEATS MEDICAL CENTRE,15290710,"118,021.80 "
Department of Health,NHS Sheffield CCG,31/12/2016,C&M-PMS DES Extended Hours Access,PRC DELEGATED CO-COMMISSIONING,WOODSEATS MEDICAL CENTRE,15290710,"4,224.65 "
Department of Health,NHS Sheffield CCG,31/12/2016,C&M-PMS Out of Hours Opt Outs,PRC DELEGATED CO-COMMISSIONING,WOODSEATS MEDICAL CENTRE,15290710,"(2,886.33)"
Department of Health,NHS Sheffield CCG,31/12/2016,C&M-PMS PCO Seniority,PRC DELEGATED CO-COMMISSIONING,WOODSEATS MEDICAL CENTRE,15290710,"1,393.21 "
Department of Health,NHS Sheffield CCG,31/12/2016,C&M-PMS Prem Notional Rent,PRC DELEGATED CO-COMMISSIONING,WOODSEATS MEDICAL CENTRE,15290710,"3,578.92 "
Department of Health,NHS Sheffield CCG,31/12/2016,C&M-PMS Prem Rates,PRC DELEGATED CO-COMMISSIONING,WOODSEATS MEDICAL CENTRE,15290710,"1,379.18 "
Department of Health,NHS Sheffield CCG,31/12/2016,C&M-PMS Prem Water Rates,PRC DELEGATED CO-COMMISSIONING,WOODSEATS MEDICAL CENTRE,15290710,205.92 
Department of Health,NHS Sheffield CCG,31/12/2016,C&M-PMS QOF Aspiration,PRC DELEGATED CO-COMMISSIONING,WOODSEATS MEDICAL CENTRE,15290710,"7,370.55 "
Department of Health,NHS Sheffield CCG,31/12/2016,Hcare Srv Rec NHS Trust-Contract Baseline,AMBULANCE SERVICES,YORKSHIRE AMBULANCE SERVICE NHS TRUST,15234318,"122,502.08 "
Department of Health,NHS Sheffield CCG,31/12/2016,Hcare Srv Rec NHS Trust-Contract Baseline,NHS 111,YORKSHIRE AMBULANCE SERVICE NHS TRUST,15234325,"89,944.26 "
Department of Health,NHS Sheffield CCG,31/12/2016,Hcare Srv Rec NHS Trust-Contract Baseline,AMBULANCE SERVICES,YORKSHIRE AMBULANCE SERVICE NHS TRUST,15234330,"1,393,177.00 "
Department of Health,NHS Sheffield CCG,31/12/2016,Hcare Srv Rec NHS Trust-CQUIN,AMBULANCE SERVICES,YORKSHIRE AMBULANCE SERVICE NHS TRUST,15234349,"30,163.00 "
Department of Health,NHS Sheffield CCG,31/12/2016,Hcare Srv Rec NHS Trust-Contract Baseline,PATIENT TRANSPORT,YORKSHIRE AMBULANCE SERVICE NHS TRUST,15384229,"182,057.94 "
,,,,,,,"55,645,717.63 "
